Department,Entity, Transaction Date, Expense Type, Expense Area, Supplier Name,Transaction number, Amount, Invoice Description
DFID,DFID,29/04/2020,Subscriptions ,Communications Division ,E-Payment System  ,100177-101 ,514.56,
DFID,DFID,29/04/2020,Subscriptions ,Communications Division ,Adobe,100197-101 ,512.62,
DFID,DFID,29/04/2020,Subscriptions ,Human Resources ,IBM,100266-107 ,"3,015.51",
DFID,DFID,01/04/2020,Hotels - Accommodation only ,Asia  Caribbean and Overseas Territories ,Corporate Provider ,101624-101 ,698.01,
DFID,DFID,01/04/2020,Hotels - Accommodation only ,Asia  Caribbean and Overseas Territories ,Corporate Provider ,101624-101 ,698.01,
DFID,DFID,01/04/2020,Hotels - Accommodation only ,Asia  Caribbean and Overseas Territories ,Corporate Provider ,101624-101 ,698.01,
DFID,DFID,01/04/2020,Hotels - Accommodation only ,Asia  Caribbean and Overseas Territories ,Corporate Provider ,101624-101 ,698.01,
DFID,DFID,01/04/2020,Air fares ,Humanitarian  Security and Migration Division ,Corporate Provider ,100049-102 ,605.90,
DFID,DFID,01/04/2020,Hotels - Accommodation only ,Humanitarian  Security and Migration Division ,Corporate Provider ,100049-134 ,"1,075.54",
DFID,DFID,21/04/2020,Hotels - Accommodation only ,Asia  Caribbean and Overseas Territories ,Foreign & Commonwealth Office ,100084-101 ,"1,756.93",
DFID,DFID,01/04/2020,Air fares ,Asia  Caribbean and Overseas Territories ,Corporate Provider ,100084-101 ,"1,723.67",
DFID,DFID,01/04/2020,Hotels - Accommodation only ,Research and Evidence Division ,Corporate Provider ,100088-101 ,582.08,
DFID,DFID,01/04/2020,Hotels - Accommodation only ,Policy Division ,Corporate Provider ,100098-101 ,734.99,
DFID,DFID,01/04/2020,Hotels - Accommodation only ,Policy Division ,Corporate Provider ,100098-101 ,616.45,
DFID,DFID,01/04/2020,Hotels - Accommodation only ,Policy Division ,Corporate Provider ,100098-101 ,685.27,
DFID,DFID,01/04/2020,Hotels - Accommodation only ,Policy Division ,Corporate Provider ,100098-101 ,770.62,
DFID,DFID,29/04/2020,Office Supplies ,Group Operations ,Outdoor Gear,100106-101 ,718.20,
DFID,DFID,29/04/2020,Office Supplies ,Group Operations ,Banner ,100106-101 ,571.82,
DFID,DFID,01/04/2020,Air fares ,International Relations Division ,Corporate Provider ,100111-101 ,"1,009.22",
DFID,DFID,01/04/2020,Air fares ,International Relations Division ,Corporate Provider ,100111-101 ,"1,009.22",
DFID,DFID,01/04/2020,Hotels - Accommodation only ,International Relations Division ,Corporate Provider ,100111-101 ,"2,147.01",
DFID,DFID,01/04/2020,Air fares ,International Relations Division ,Corporate Provider ,100111-101 ,"1,009.22",
DFID,DFID,01/04/2020,Hotels - Accommodation only ,Internal Audit ,Corporate Provider ,100121-101 ,"1,509.35",
DFID,DFID,01/04/2020,Hotels - Accommodation only ,Internal Audit ,Corporate Provider ,100121-101 ,"1,509.35",
DFID,DFID,01/04/2020,Hotels - Accommodation only ,Internal Audit ,Corporate Provider ,100121-101 ,"1,509.35",
DFID,DFID,29/04/2020,Training - Course Fees ,Internal Audit ,Institute for Internal Auditors. Certified Internal Auditor qualification,100121-101 ,824.00,
DFID,DFID,01/04/2020,Hotels - Accommodation only ,Economic Development Division ,Corporate Provider ,100124-101 ,532.44,
DFID,DFID,01/04/2020,Hotels - Accommodation only ,Economic Development Division ,Corporate Provider ,100124-101 ,655.98,
DFID,DFID,01/04/2020,Hotels - Accommodation only ,Communications Division ,Corporate Provider ,100197-101 ,601.00,
DFID,DFID,01/04/2020,Hotels - Accommodation only ,Top Management Group ,Corporate Provider ,100232-104 ,811.04,
DFID,DFID,01/04/2020,Staff Travel - Air Fares ,Top Management Group ,Corporate Provider ,100232-104 ,"4,819.62",
DFID,DFID,01/04/2020,Hotels - Accommodation only ,Top Management Group ,Corporate Provider ,100232-104 ,"1,110.64",
DFID,DFID,01/04/2020,Hotels - Accommodation only ,Top Management Group ,Corporate Provider ,100232-104 ,551.60,
DFID,DFID,01/04/2020,Hotels - Accommodation only ,Top Management Group ,Corporate Provider ,100232-104 ,"2,142.68",
DFID,DFID,01/04/2020,Hotels - Accommodation only ,Top Management Group ,Corporate Provider ,100232-104 ,"2,215.26",
DFID,DFID,01/04/2020,Hotels - Accommodation only ,Top Management Group ,Corporate Provider ,100232-104 ,535.55,
DFID,DFID,01/04/2020,Air fares ,Top Management Group ,Corporate Provider ,100232-104 ,834.82,
DFID,DFID,03/04/2020,Hotels - Accommodation only ,East and Central Africa , ,100234-101 ,518.00,
DFID,DFID,01/04/2020,Hotels - Accommodation only ,International Relations Division ,Corporate Provider ,100240-101 ,697.60,
DFID,DFID,01/04/2020,Hotels - Accommodation only ,International Relations Division ,Corporate Provider ,100240-101 ,615.80,
DFID,DFID,01/04/2020,Hotels - Accommodation only ,International Relations Division ,Corporate Provider ,100240-101 ,703.84,
DFID,DFID,01/04/2020,Hotels - Accommodation only ,Economic Development Division ,Corporate Provider ,100275-101 ,527.71,
DFID,DFID,01/04/2020,Hotels - Accommodation only ,Economic Development Division ,Corporate Provider ,100275-101 ,"1,076.64",
DFID,DFID,01/04/2020,Hotels - Accommodation only ,Economic Development Division ,Corporate Provider ,100275-101 ,546.84,
DFID,DFID,01/04/2020,Hotels - Accommodation only ,Economic Development Division ,Corporate Provider ,100276-101 ,599.18,
DFID,DFID,01/04/2020,Air fares ,Central Department Division ,Corporate Provider ,100279-103 ,"1,169.60",
DFID,DFID,01/04/2020,Air fares ,Central Department Division ,Corporate Provider ,100279-103 ,"1,169.60",
DFID,DFID,01/04/2020,Air fares ,Central Department Division ,Corporate Provider ,100279-103 ,"1,169.60",
DFID,DFID,01/04/2020,Air fares ,Central Department Division ,Corporate Provider ,100279-104 ,905.30,
DFID,DFID,01/04/2020,Air fares ,Central Department Division ,Corporate Provider ,100279-104 ,"2,147.77",
DFID,DFID,01/04/2020,Air fares ,Central Department Division ,Corporate Provider ,100279-104 ,"2,147.77",
DFID,DFID,01/04/2020,Air fares ,Central Department Division ,Corporate Provider ,100279-104 ,"1,181.30",
DFID,DFID,01/04/2020,Air fares ,Central Department Division ,Corporate Provider ,100279-104 ,"2,347.40",
DFID,DFID,01/04/2020,Staff Travel - Air Fares ,Central Department Division ,Corporate Provider ,100279-104 ,"3,641.40",
DFID,DFID,01/04/2020,Air fares ,Central Department Division ,Corporate Provider ,100279-104 ,895.60,
DFID,DFID,01/04/2020,Air fares ,Central Department Division ,Corporate Provider ,100279-104 ,905.30,
DFID,DFID,01/04/2020,Air fares ,Central Department Division ,Corporate Provider ,100279-104 ,"1,496.07",
DFID,DFID,01/04/2020,Air fares ,Central Department Division ,Corporate Provider ,100279-104 ,"2,021.07",
DFID,DFID,01/04/2020,Air fares ,Central Department Division ,Corporate Provider ,100279-104 ,"2,021.07",
DFID,DFID,01/04/2020,Air fares ,Central Department Division ,Corporate Provider ,100279-104 ,"2,021.07",
DFID,DFID,01/04/2020,Hotels - Accommodation only ,Central Department Division ,Corporate Provider ,100279-104 ,"1,908.00",
DFID,DFID,01/04/2020,Air fares ,Central Department Division ,Corporate Provider ,100279-104 ,614.20,
DFID,DFID,01/04/2020,Air fares ,Central Department Division ,Corporate Provider ,100279-104 ,"1,181.30",
DFID,DFID,01/04/2020,Air fares ,Central Department Division ,Corporate Provider ,100279-104 ,"1,181.30",
DFID,DFID,01/04/2020,Air fares ,Central Department Division ,Corporate Provider ,100279-104 ,614.20,
DFID,DFID,01/04/2020,Air fares ,Central Department Division ,Corporate Provider ,100279-104 ,"1,169.60",
DFID,DFID,01/04/2020,Air fares ,Central Department Division ,Corporate Provider ,100279-104 ,"1,169.60",
DFID,DFID,01/04/2020,Air fares ,Asia  Caribbean and Overseas Territories ,Supplier Name withheld ,101601-110 ,835.80,
DFID,DFID,01/04/2020,Air fares ,Asia  Caribbean and Overseas Territories ,Supplier Name withheld ,101601-110 ,"2,434.40",
DFID,DFID,01/04/2020,Air fares ,Asia  Caribbean and Overseas Territories ,Supplier Name withheld ,101601-110 ,"1,539.06",
DFID,DFID,01/04/2020,Air fares ,Asia  Caribbean and Overseas Territories ,Supplier Name withheld ,101601-110 ,"1,043.76",
DFID,DFID,01/04/2020,Air fares ,Asia  Caribbean and Overseas Territories ,Supplier Name withheld ,101601-110 ,"1,504.56",
DFID,DFID,06/04/2020,Other passenger transport ,Asia  Caribbean and Overseas Territories ,Foreign & Commonwealth Office ,101601-110 ,723.09,
DFID,DFID,06/04/2020,Other passenger transport ,Asia  Caribbean and Overseas Territories ,Foreign & Commonwealth Office ,101601-110 ,"43,701.05",Other passenger transport
DFID,DFID,01/04/2020,Air fares ,Asia  Caribbean and Overseas Territories ,Corporate Provider ,101603-101 ,"1,050.40",
DFID,DFID,16/04/2020,Air fares ,Asia  Caribbean and Overseas Territories ,Foreign & Commonwealth Office ,101604-101 ,818.28,
DFID,DFID,21/04/2020,Training - Course Fees ,Asia  Caribbean and Overseas Territories ,Foreign & Commonwealth Office ,101605-101 ,"2,175.10",
DFID,DFID,21/04/2020,Air fares ,Asia  Caribbean and Overseas Territories ,Foreign & Commonwealth Office ,101605-101 ,"1,517.13",
DFID,DFID,01/04/2020,Air fares ,Asia  Caribbean and Overseas Territories ,Corporate Provider ,101605-101 ,933.40,
DFID,DFID,01/04/2020,Air fares ,Asia  Caribbean and Overseas Territories ,Corporate Provider ,101605-101 ,933.40,
DFID,DFID,01/04/2020,Air fares ,West and Southern Africa ,Corporate Provider ,101610-101 ,"1,366.50",
DFID,DFID,01/04/2020,Air fares ,West and Southern Africa ,Corporate Provider ,101610-101 ,961.20,
DFID,DFID,01/04/2020,Air fares ,West and Southern Africa ,Corporate Provider ,101610-101 ,879.30,
DFID,DFID,01/04/2020,Air fares ,West and Southern Africa ,Corporate Provider ,101610-101 ,775.90,
DFID,DFID,01/04/2020,Air fares ,West and Southern Africa ,Corporate Provider ,101610-101 ,"1,319.40",
DFID,DFID,01/04/2020,Air fares ,West and Southern Africa ,Corporate Provider ,101610-101 ,"1,319.40",
DFID,DFID,01/04/2020,Air fares ,West and Southern Africa ,Corporate Provider ,101610-101 ,"1,319.40",
DFID,DFID,01/04/2020,Air fares ,West and Southern Africa ,Corporate Provider ,101610-101 ,"1,012.60",
DFID,DFID,01/04/2020,Air fares ,West and Southern Africa ,Corporate Provider ,101610-101 ,"1,012.60",
DFID,DFID,01/04/2020,Air fares ,West and Southern Africa ,Corporate Provider ,101610-101 ,780.60,
DFID,DFID,21/04/2020,Telephone Usage & services ,West and Southern Africa ,Foreign & Commonwealth Office ,101610-101 ,"2,496.89",
DFID,DFID,21/04/2020,Telephone Usage & services ,West and Southern Africa ,Foreign & Commonwealth Office ,101610-101 ,"2,453.84",
DFID,DFID,06/04/2020,Telephone Usage & services ,West and Southern Africa ,Foreign & Commonwealth Office ,101610-101 ,"3,210.71",
DFID,DFID,01/04/2020,Air fares ,West and Southern Africa ,Corporate Provider ,101610-101 ,"2,244.40",
DFID,DFID,01/04/2020,Hotels - Accommodation only ,West and Southern Africa ,Corporate Provider ,101610-101 ,"1,106.00",
DFID,DFID,01/04/2020,Air fares ,West and Southern Africa ,Corporate Provider ,101610-101 ,"1,265.20",
DFID,DFID,01/04/2020,Air fares ,West and Southern Africa ,Corporate Provider ,101610-101 ,"1,265.20",
DFID,DFID,01/04/2020,Air fares ,West and Southern Africa ,Corporate Provider ,101610-101 ,"2,067.20",
DFID,DFID,01/04/2020,Air fares ,West and Southern Africa ,Corporate Provider ,101610-101 ,835.80,
DFID,DFID,01/04/2020,Air fares ,West and Southern Africa ,Corporate Provider ,101610-101 ,"2,244.40",
DFID,DFID,01/04/2020,Air fares ,West and Southern Africa ,Corporate Provider ,101610-101 ,"1,265.20",
DFID,DFID,01/04/2020,Air fares ,West and Southern Africa ,Corporate Provider ,101610-101 ,775.90,
DFID,DFID,01/04/2020,Air fares ,West and Southern Africa ,Corporate Provider ,101610-101 ,"2,332.40",
DFID,DFID,01/04/2020,Air fares ,West and Southern Africa ,Corporate Provider ,101610-101 ,934.30,
DFID,DFID,01/04/2020,Air fares ,West and Southern Africa ,Corporate Provider ,101610-101 ,"2,883.40",
DFID,DFID,01/04/2020,Air fares ,West and Southern Africa ,Corporate Provider ,101610-101 ,"2,883.40",
DFID,DFID,01/04/2020,Air fares ,West and Southern Africa ,Corporate Provider ,101610-101 ,"1,116.50",
DFID,DFID,01/04/2020,Hotels - Accommodation only ,West and Southern Africa ,Corporate Provider ,101610-101 ,667.60,
DFID,DFID,01/04/2020,Air fares ,West and Southern Africa ,Corporate Provider ,101610-101 ,934.30,
DFID,DFID,01/04/2020,Air fares ,West and Southern Africa ,Corporate Provider ,101610-103 ,"2,204.10",
DFID,DFID,06/04/2020,Project delivery costs – supplier services ,West and Southern Africa ,Foreign & Commonwealth Office ,101610-103 ,519.00,
DFID,DFID,01/04/2020,Air fares ,West and Southern Africa ,Corporate Provider ,101610-103 ,"1,265.20",
DFID,DFID,06/04/2020,Hotels - Accommodation only ,East and Central Africa ,Foreign & Commonwealth Office ,101612-101 ,584.33,
DFID,DFID,21/04/2020,Hotels - Accommodation only ,East and Central Africa ,Foreign & Commonwealth Office ,101612-101 ,"1,191.49",
DFID,DFID,01/04/2020,Hotels - Accommodation only ,East and Central Africa ,Corporate Provider ,101612-101 ,548.23,
DFID,DFID,01/04/2020,Hotels - Accommodation only ,West and Southern Africa ,Corporate Provider ,101618-101 ,"2,258.08",
DFID,DFID,01/04/2020,Air fares ,West and Southern Africa ,Corporate Provider ,101618-101 ,838.80,
DFID,DFID,01/04/2020,Air fares ,West and Southern Africa ,Corporate Provider ,101618-101 ,"2,204.50",
DFID,DFID,01/04/2020,Air fares ,West and Southern Africa ,Corporate Provider ,101618-101 ,"1,688.70",
DFID,DFID,01/04/2020,Air fares ,West and Southern Africa ,Corporate Provider ,101618-101 ,"1,688.70",
DFID,DFID,01/04/2020,Air fares ,West and Southern Africa ,Corporate Provider ,101618-101 ,"1,674.70",
DFID,DFID,01/04/2020,Air fares ,West and Southern Africa ,Corporate Provider ,101618-101 ,596.20,
DFID,DFID,01/04/2020,Air fares ,West and Southern Africa ,Corporate Provider ,101618-101 ,"1,310.80",
DFID,DFID,01/04/2020,Air fares ,West and Southern Africa ,Corporate Provider ,101618-101 ,"1,310.80",
DFID,DFID,01/04/2020,Air fares ,West and Southern Africa ,Corporate Provider ,101618-101 ,"1,674.70",
DFID,DFID,01/04/2020,Air fares ,West and Southern Africa ,Corporate Provider ,101618-101 ,838.80,
DFID,DFID,01/04/2020,Air fares ,West and Southern Africa ,Corporate Provider ,101618-101 ,914.90,
DFID,DFID,01/04/2020,Air fares ,West and Southern Africa ,Corporate Provider ,101618-101 ,952.30,
DFID,DFID,01/04/2020,Air fares ,West and Southern Africa ,Corporate Provider ,101618-101 ,"2,204.50",
DFID,DFID,01/04/2020,Air fares ,West and Southern Africa ,Corporate Provider ,101618-101 ,"1,706.50",
DFID,DFID,01/04/2020,Air fares ,West and Southern Africa ,Corporate Provider ,101618-101 ,914.90,
DFID,DFID,01/04/2020,Staff Travel - Air Fares ,West and Southern Africa ,Corporate Provider ,101618-101 ,"17,841.50",
DFID,DFID,01/04/2020,Secure Staff Accommodation ,West and Southern Africa ,Corporate Provider ,101620-101 ,"4,649.96",
DFID,DFID,01/04/2020,Air fares ,West and Southern Africa ,Corporate Provider ,101620-101 ,687.66,
DFID,DFID,01/04/2020,Hotels - Accommodation only ,West and Southern Africa ,Corporate Provider ,101620-101 ,"1,314.02",
DFID,DFID,21/04/2020,Hotels - Accommodation only ,West and Southern Africa ,Foreign & Commonwealth Office ,101620-101 ,"1,295.21",
DFID,DFID,06/04/2020,Telephone Usage & services ,Asia  Caribbean and Overseas Territories ,Foreign & Commonwealth Office ,101621-101 ,648.50,
DFID,DFID,01/04/2020,Air fares ,Asia  Caribbean and Overseas Territories ,Corporate Provider ,101621-101 ,703.62,
DFID,DFID,01/04/2020,Hotels - Accommodation only ,Asia  Caribbean and Overseas Territories ,Corporate Provider ,101621-101 ,973.20,
DFID,DFID,01/04/2020,Hotels - Accommodation only ,West and Southern Africa ,Supplier Name withheld ,101622-106 ,647.80,
DFID,DFID,29/04/2020,Training - Course Fees ,West and Southern Africa ,Project Management Institute(PMI) USA.  ,101622-106 ,678.15,
DFID,DFID,01/04/2020,Air fares ,West and Southern Africa ,Supplier Name withheld ,101622-106 ,777.62,
DFID,DFID,01/04/2020,Hotels - Accommodation only ,West and Southern Africa ,Supplier Name withheld ,101622-106 ,647.80,
DFID,DFID,21/04/2020,Telephone Usage & services ,Asia  Caribbean and Overseas Territories ,Foreign & Commonwealth Office ,101624-101 ,828.49,
DFID,DFID,08/04/2020,Hotels - Accommodation only ,Asia  Caribbean and Overseas Territories ,Foreign & Commonwealth Office ,101624-101 ,"2,542.00",
DFID,DFID,08/04/2020,Hotels - Accommodation only ,Asia  Caribbean and Overseas Territories ,Foreign & Commonwealth Office ,101624-101 ,"2,331.00",
DFID,DFID,01/04/2020,Air fares ,Asia  Caribbean and Overseas Territories ,Corporate Provider ,101624-101 ,"1,179.50",
DFID,DFID,01/04/2020,Air fares ,East and Central Africa ,Corporate Provider ,101625-113 ,800.51,
DFID,DFID,01/04/2020,Hotels - Accommodation only ,East and Central Africa ,Corporate Provider ,101625-113 ,874.02,
DFID,DFID,01/04/2020,Hotels - Accommodation only ,East and Central Africa ,Corporate Provider ,101625-113 ,951.99,
DFID,DFID,01/04/2020,Air fares ,East and Central Africa ,Corporate Provider ,101625-113 ,893.41,
DFID,DFID,01/04/2020,Air fares ,East and Central Africa ,Corporate Provider ,101625-114 ,"1,411.21",
DFID,DFID,01/04/2020,Air fares ,East and Central Africa ,Corporate Provider ,101625-115 ,"2,806.70",
DFID,DFID,01/04/2020,Air fares ,East and Central Africa ,Corporate Provider ,101625-115 ,666.64,
DFID,DFID,01/04/2020,Hotels - Accommodation only ,East and Central Africa ,Corporate Provider ,101625-115 ,"1,075.55",
DFID,DFID,01/04/2020,Hotels - Accommodation only ,East and Central Africa ,Corporate Provider ,101625-115 ,650.53,
DFID,DFID,01/04/2020,Air fares ,East and Central Africa ,Corporate Provider ,101625-115 ,"1,316.40",
DFID,DFID,01/04/2020,Hotels - Accommodation only ,East and Central Africa ,Corporate Provider ,101625-115 ,682.70,
DFID,DFID,01/04/2020,Hotels - Accommodation only ,East and Central Africa ,Corporate Provider ,101625-115 ,594.87,
DFID,DFID,01/04/2020,Air fares ,East and Central Africa ,Corporate Provider ,101625-115 ,722.07,
DFID,DFID,01/04/2020,Air fares ,East and Central Africa ,Corporate Provider ,101625-115 ,532.66,
DFID,DFID,01/04/2020,Air fares ,East and Central Africa ,Corporate Provider ,101625-115 ,623.37,
DFID,DFID,01/04/2020,Air fares ,East and Central Africa ,Corporate Provider ,101625-115 ,698.30,
DFID,DFID,01/04/2020,Air fares ,East and Central Africa ,Corporate Provider ,101625-115 ,"1,516.84",
DFID,DFID,06/04/2020,Hotels - Accommodation only ,East and Central Africa ,Foreign & Commonwealth Office ,101625-115 ,727.56,
DFID,DFID,01/04/2020,Air fares ,West and Southern Africa ,Corporate Provider ,101629-101 ,"2,015.80",
DFID,DFID,01/04/2020,Air fares ,West and Southern Africa ,Corporate Provider ,101629-101 ,"2,015.80",
DFID,DFID,01/04/2020,Air fares ,East and Central Africa ,Corporate Provider ,101633-101 ,814.22,
DFID,DFID,01/04/2020,Air fares ,East and Central Africa ,Corporate Provider ,101633-101 ,526.77,
DFID,DFID,06/04/2020,Telephone Usage & services ,East and Central Africa ,Foreign & Commonwealth Office ,101633-101 ,830.90,
DFID,DFID,21/04/2020,Medical/Health Services ,East and Central Africa ,Foreign & Commonwealth Office ,101633-101 ,"4,093.15",
DFID,DFID,01/04/2020,Hotels - Accommodation only ,East and Central Africa ,Corporate Provider ,101634-101 ,581.25,
DFID,DFID,01/04/2020,Air fares ,East and Central Africa ,Corporate Provider ,101634-101 ,"1,062.20",
DFID,DFID,01/04/2020,Air fares ,East and Central Africa ,Corporate Provider ,101634-101 ,"1,062.20",
DFID,DFID,01/04/2020,Air fares ,East and Central Africa ,Corporate Provider ,101634-101 ,604.80,
DFID,DFID,01/04/2020,Air fares ,East and Central Africa ,Corporate Provider ,101634-101 ,607.80,
DFID,DFID,01/04/2020,Hotels - Accommodation only ,East and Central Africa ,Corporate Provider ,101635-101 ,711.06,
DFID,DFID,01/04/2020,Air fares ,West and Southern Africa ,Corporate Provider ,101637-101 ,682.20,
DFID,DFID,01/04/2020,Air fares ,West and Southern Africa ,Corporate Provider ,101637-101 ,682.20,
DFID,DFID,01/04/2020,Air fares ,West and Southern Africa ,Corporate Provider ,101637-101 ,"1,026.40",
DFID,DFID,01/04/2020,Air fares ,West and Southern Africa ,Corporate Provider ,101637-101 ,"1,041.70",
DFID,DFID,01/04/2020,Air fares ,West and Southern Africa ,Corporate Provider ,101637-101 ,"1,500.10",
DFID,DFID,01/04/2020,Air fares ,West and Southern Africa ,Corporate Provider ,101637-101 ,"1,500.10",
DFID,DFID,01/04/2020,Air fares ,West and Southern Africa ,Corporate Provider ,101637-101 ,"1,191.10",
DFID,DFID,01/04/2020,Air fares ,West and Southern Africa ,Corporate Provider ,101637-101 ,"1,375.40",
DFID,DFID,01/04/2020,Air fares ,West and Southern Africa ,Corporate Provider ,101637-101 ,"1,317.70",
DFID,DFID,01/04/2020,Air fares ,West and Southern Africa ,Corporate Provider ,101637-101 ,"1,317.70",
DFID,DFID,01/04/2020,Air fares ,West and Southern Africa ,Corporate Provider ,101637-101 ,"1,026.40",
DFID,DFID,01/04/2020,Air fares ,West and Southern Africa ,Corporate Provider ,101637-101 ,"1,041.70",
DFID,DFID,01/04/2020,Air fares ,West and Southern Africa ,Corporate Provider ,101637-101 ,"1,316.40",
DFID,DFID,01/04/2020,Air fares ,West and Southern Africa ,Corporate Provider ,101637-101 ,546.37,
DFID,DFID,01/04/2020,Air fares ,West and Southern Africa ,Corporate Provider ,101637-101 ,854.20,
DFID,DFID,01/04/2020,Air fares ,West and Southern Africa ,Corporate Provider ,101637-101 ,682.20,
DFID,DFID,01/04/2020,Air fares ,West and Southern Africa ,Corporate Provider ,101637-101 ,872.90,
DFID,DFID,01/04/2020,Air fares ,West and Southern Africa ,Corporate Provider ,101637-101 ,"1,355.10",
DFID,DFID,01/04/2020,Air fares ,West and Southern Africa ,Corporate Provider ,101637-101 ,"1,041.70",
DFID,DFID,01/04/2020,Air fares ,West and Southern Africa ,Corporate Provider ,101637-101 ,854.20,
DFID,DFID,01/04/2020,Air fares ,West and Southern Africa ,Corporate Provider ,101637-101 ,"1,316.40",
DFID,DFID,01/04/2020,Air fares ,West and Southern Africa ,Corporate Provider ,101637-101 ,"1,316.40",
DFID,DFID,01/04/2020,Air fares ,West and Southern Africa ,Corporate Provider ,101637-101 ,"1,026.40",
DFID,DFID,01/04/2020,Air fares ,West and Southern Africa ,Corporate Provider ,101637-101 ,"1,191.10",
DFID,DFID,01/04/2020,Air fares ,West and Southern Africa ,Corporate Provider ,101637-101 ,"1,191.10",
DFID,DFID,21/04/2020,Telephone Usage & services ,West and Southern Africa ,Foreign & Commonwealth Office ,101637-101 ,"1,179.61",
DFID,DFID,06/04/2020,Telephone Usage & services ,West and Southern Africa ,Foreign & Commonwealth Office ,101637-101 ,961.68,
DFID,DFID,01/04/2020,Air fares ,West and Southern Africa ,Corporate Provider ,101638-101 ,"1,158.00",
DFID,DFID,01/04/2020,Air fares ,West and Southern Africa ,Corporate Provider ,101638-101 ,"2,546.70",
DFID,DFID,01/04/2020,Air fares ,West and Southern Africa ,Corporate Provider ,101638-101 ,"1,883.36",
DFID,DFID,01/04/2020,Air fares ,West and Southern Africa ,Corporate Provider ,101638-101 ,"1,355.20",
DFID,DFID,01/04/2020,Air fares ,West and Southern Africa ,Corporate Provider ,101638-101 ,"1,168.90",
DFID,DFID,01/04/2020,Air fares ,West and Southern Africa ,Corporate Provider ,101638-101 ,"1,168.90",
DFID,DFID,01/04/2020,Air fares ,West and Southern Africa ,Corporate Provider ,101638-101 ,947.80,
DFID,DFID,01/04/2020,Air fares ,West and Southern Africa ,Corporate Provider ,101638-101 ,"1,832.20",
DFID,DFID,01/04/2020,Air fares ,West and Southern Africa ,Corporate Provider ,101638-101 ,"1,210.80",
DFID,DFID,01/04/2020,Air fares ,West and Southern Africa ,Corporate Provider ,101638-101 ,"1,036.00",
DFID,DFID,01/04/2020,Air fares ,West and Southern Africa ,Corporate Provider ,101638-101 ,"1,426.20",
DFID,DFID,01/04/2020,Air fares ,West and Southern Africa ,Corporate Provider ,101638-101 ,"1,056.06",
DFID,DFID,01/04/2020,Air fares ,West and Southern Africa ,Corporate Provider ,101638-101 ,"1,832.20",
DFID,DFID,01/04/2020,Air fares ,West and Southern Africa ,Corporate Provider ,101638-101 ,"1,426.20",
DFID,DFID,01/04/2020,Air fares ,West and Southern Africa ,Corporate Provider ,101638-101 ,947.80,
DFID,DFID,01/04/2020,Air fares ,West and Southern Africa ,Corporate Provider ,101638-101 ,"1,292.00",
DFID,DFID,01/04/2020,Air fares ,West and Southern Africa ,Corporate Provider ,101638-101 ,"1,168.90",
DFID,DFID,01/04/2020,Air fares ,West and Southern Africa ,Corporate Provider ,101638-101 ,"1,883.36",
DFID,DFID,01/04/2020,Air fares ,West and Southern Africa ,Corporate Provider ,101638-101 ,"1,883.36",
DFID,DFID,01/04/2020,Air fares ,West and Southern Africa ,Corporate Provider ,101638-101 ,"1,292.00",
DFID,DFID,01/04/2020,Air fares ,West and Southern Africa ,Corporate Provider ,101638-101 ,688.98,
DFID,DFID,01/04/2020,Air fares ,West and Southern Africa ,Corporate Provider ,101638-101 ,"1,036.00",
DFID,DFID,01/04/2020,Air fares ,West and Southern Africa ,Corporate Provider ,101638-101 ,832.37,
DFID,DFID,01/04/2020,Air fares ,West and Southern Africa ,Corporate Provider ,101638-101 ,"1,803.80",
DFID,DFID,01/04/2020,Air fares ,West and Southern Africa ,Corporate Provider ,101638-101 ,"1,168.90",
DFID,DFID,01/04/2020,Hotels - Accommodation only ,Business Solutions Division Level ,Corporate Provider ,200001-101 ,925.99,
DFID,DFID,29/04/2020,Telephone Usage & services ,Business Solutions Division Level ,Textmagic,200001-101 ,"3,600.00",
DFID,DFID,01/04/2020,Rail Transport ,Business Solutions Division Level ,Corporate Provider ,200001-101 ,636.69,
DFID,DFID,01/04/2020,Air fares ,Business Solutions Division Level ,Corporate Provider ,200001-101 ,589.39,
DFID,DFID,06/04/2020,Data Network - land lines ,Business Solutions Division Level ,Foreign & Commonwealth Office ,200002-121 ,791.92,
DFID,DFID,29/04/2020,Computer Consumables - Cds/memory/accessories ,Business Solutions Division Level ,Proband,200002-153 ,"1,551.60",
DFID,DFID,29/04/2020,Computer Consumables - Cds/memory/accessories ,Business Solutions Division Level ,Amazon,200002-153 ,"1,551.60",
DFID,DFID,29/04/2020,Computer Consumables - Cds/memory/accessories ,Business Solutions Division Level ,Proband,200002-153 ,"1,011.13",
DFID,DFID,29/04/2020,Computer Consumables - Cds/memory/accessories ,Business Solutions Division Level ,Proband,200002-153 ,"3,083.94",
DFID,DFID,29/04/2020,Computer Consumables - Cds/memory/accessories ,Business Solutions Division Level ,Proband,200002-153 ,"3,083.94",
DFID,DFID,29/04/2020,Computer Consumables - Cds/memory/accessories ,Business Solutions Division Level ,Amazon,200002-153 ,"1,899.00",
DFID,DFID,29/04/2020,Computer Consumables - Cds/memory/accessories ,Business Solutions Division Level ,Amazon,200002-153 ,"1,899.00",
DFID,DFID,29/04/2020,Computer Consumables - Cds/memory/accessories ,Business Solutions Division Level ,CDW Ltd ,200002-153 ,"1,924.80",
DFID,DFID,29/04/2020,Computer Consumables - Cds/memory/accessories ,Business Solutions Division Level ,CDW Ltd ,200002-153 ,"1,924.80",
DFID,DFID,29/04/2020,Computer Consumables - Cds/memory/accessories ,Business Solutions Division Level ,Amazon,200002-153 ,"3,598.00",
DFID,DFID,29/04/2020,Computer Consumables - Cds/memory/accessories ,Business Solutions Division Level ,Proband,200002-153 ,"1,457.52",
DFID,DFID,29/04/2020,Computer Consumables - Cds/memory/accessories ,Business Solutions Division Level ,CDW Ltd ,200002-153 ,778.85,
DFID,DFID,29/04/2020,Printer Consumables ,Business Solutions Division Level ,Corel,200002-154 ,536.40,
DFID,DFID,29/04/2020,Computer Consumables - Cds/memory/accessories ,Business Solutions Division Level ,Amazon,200004-143 ,"3,206.94",
DFID,DFID,29/04/2020,Computer Consumables - Cds/memory/accessories ,Business Solutions Division Level ,Amazon,200004-150 ,"3,298.00",
DFID,DFID,29/04/2020,Computer Consumables - Cds/memory/accessories ,Business Solutions Division Level ,CDW Ltd ,200004-150 ,"1,788.90",
DFID,DFID,01/04/2020,Other passenger transport ,Business Solutions Division Level ,Corporate Travel Provider ,200005-159 ,533.60,
DFID,DFID,07/04/2020,Hardware -monitors ,Business Solutions Division Level ,Foreign & Commonwealth Office ,200005-165 ,"1,470.56",
DFID,DFID,21/04/2020,Hardware -monitors ,Business Solutions Division Level ,Foreign & Commonwealth Office ,200005-165 ,"3,457.45",
DFID,DFID,01/04/2020,Hotels - Accommodation only ,Middle East and North Africa Division ,Corporate Provider ,201701-101 ,915.48,
DFID,DFID,01/04/2020,Air fares ,Middle East and North Africa Division ,Corporate Provider ,201701-101 ,554.07,
DFID,DFID,01/04/2020,Hotels - Accommodation only ,Middle East and North Africa Division ,Corporate Provider ,201701-101 ,693.03,
DFID,DFID,01/04/2020,Hotels - Accommodation only ,Middle East and North Africa Division ,Corporate Provider ,201701-101 ,501.76,
DFID,DFID,01/04/2020,Hotels - Accommodation only ,Asia  Caribbean and Overseas Territories ,Corporate Provider ,201724-154 ,"1,008.50",
DFID,DFID,01/04/2020,Hotels - Accommodation only ,Policy Division ,Corporate Provider ,201879-113 ,658.03,
DFID,DFID,01/04/2020,Hotels - Accommodation only ,Policy Division ,Corporate Provider ,201879-113 ,589.98,
DFID,DFID,06/04/2020,Air fares ,Research and Evidence Division ,Foreign & Commonwealth Office ,202331-101 ,613.90,
DFID,DFID,01/04/2020,Air fares ,Economic Development Division ,Corporate Provider ,202373-101 ,978.60,
DFID,DFID,01/04/2020,Hotels - Accommodation only ,Economic Development Division ,Corporate Provider ,202373-101 ,547.38,
DFID,DFID,01/04/2020,Hotels - Accommodation only ,Economic Development Division ,Corporate Provider ,202373-101 ,723.17,
DFID,DFID,01/04/2020,Air fares ,Economic Development Division ,Corporate Provider ,202373-101 ,"1,804.80",
DFID,DFID,01/04/2020,Hotels - Accommodation only ,Research and Evidence Division ,Corporate Provider ,202392-101 ,554.21,
DFID,DFID,01/04/2020,Hotels - Accommodation only ,Research and Evidence Division ,Corporate Provider ,202392-104 ,964.49,
DFID,DFID,01/04/2020,Hotels - Accommodation only ,Research and Evidence Division ,Corporate Provider ,202392-107 ,822.49,
DFID,DFID,01/04/2020,Hotels - Accommodation only ,Research and Evidence Division ,Corporate Provider ,202392-113 ,695.66,
DFID,DFID,01/04/2020,Hotels - Accommodation only ,Research and Evidence Division ,Corporate Provider ,202392-113 ,566.43,
DFID,DFID,01/04/2020,Hotels - Accommodation only ,Policy Division ,Corporate Provider ,202396-101 ,511.62,
DFID,DFID,01/04/2020,Air fares ,Climate and Environment Division ,Corporate Provider ,202402-107 ,603.87,
DFID,DFID,01/04/2020,Hotels - Accommodation only ,Climate and Environment Division ,Corporate Provider ,202402-107 ,899.42,
DFID,DFID,01/04/2020,Hotels - Accommodation only ,Asia  Caribbean and Overseas Territories ,Corporate Provider ,202403-101 ,"1,710.99",
DFID,DFID,01/04/2020,Hotels - Accommodation only ,Asia  Caribbean and Overseas Territories ,Corporate Provider ,202403-101 ,585.96,
DFID,DFID,01/04/2020,Air fares ,Asia  Caribbean and Overseas Territories ,Corporate Provider ,202403-101 ,"1,550.87",
DFID,DFID,21/04/2020,Telephone Usage & services ,Asia  Caribbean and Overseas Territories ,Foreign & Commonwealth Office ,202403-101 ,"1,058.36",
DFID,DFID,01/04/2020,Hotels - Accommodation only ,Humanitarian  Security and Migration Division ,Corporate Provider ,202410-109 ,989.55,
DFID,DFID,01/04/2020,Hotels - Accommodation only ,Policy Division ,Corporate Provider ,202419-101 ,576.82,
DFID,DFID,01/04/2020,Air fares ,Policy Division ,Corporate Provider ,202419-101 ,606.17,
DFID,DFID,01/04/2020,Air fares ,East and Central Africa ,Corporate Provider ,202594-101 ,581.40,
DFID,DFID,01/04/2020,Air fares ,East and Central Africa ,Corporate Provider ,202594-101 ,637.40,
DFID,DFID,01/04/2020,Air fares ,East and Central Africa ,Corporate Provider ,202594-101 ,"1,359.00",
DFID,DFID,01/04/2020,Air fares ,East and Central Africa ,Corporate Provider ,202594-101 ,"1,396.40",
DFID,DFID,01/04/2020,Air fares ,East and Central Africa ,Corporate Provider ,202594-101 ,581.40,
DFID,DFID,01/04/2020,Air fares ,East and Central Africa ,Corporate Provider ,202594-101 ,685.30,
DFID,DFID,01/04/2020,Hotels - Accommodation only ,East and Central Africa ,Corporate Provider ,202594-101 ,644.66,
DFID,DFID,01/04/2020,Air fares ,East and Central Africa ,Corporate Provider ,202594-101 ,786.46,
DFID,DFID,01/04/2020,Hotels - Accommodation only ,East and Central Africa ,Corporate Provider ,202594-101 ,"3,057.60",
DFID,DFID,07/04/2020,Data Network - land lines ,Business Solutions Division Level ,Foreign & Commonwealth Office ,203329-102 ,"1,361.94",
DFID,DFID,06/04/2020,Data Network - land lines ,Business Solutions Division Level ,Foreign & Commonwealth Office ,203329-102 ,646.27,
DFID,DFID,06/04/2020,Data Network - land lines ,Business Solutions Division Level ,Foreign & Commonwealth Office ,203329-102 ,"1,847.81",
DFID,DFID,06/04/2020,Hardware - networking equipment ,Business Solutions Division Level ,Foreign & Commonwealth Office ,203329-102 ,"1,895.10",
DFID,DFID,23/04/2020,Data Network - land lines ,Business Solutions Division Level ,Foreign & Commonwealth Office ,203329-102 ,662.51,
DFID,DFID,23/04/2020,Data Network - land lines ,Business Solutions Division Level ,Foreign & Commonwealth Office ,203329-102 ,701.74,
DFID,DFID,23/04/2020,Data Network - land lines ,Business Solutions Division Level ,Foreign & Commonwealth Office ,203329-102 ,705.45,
DFID,DFID,23/04/2020,Data Network - land lines ,Business Solutions Division Level ,Foreign & Commonwealth Office ,203329-102 ,698.91,
DFID,DFID,23/04/2020,Data Network - land lines ,Business Solutions Division Level ,Foreign & Commonwealth Office ,203329-102 ,700.42,
DFID,DFID,23/04/2020,Data Network - land lines ,Business Solutions Division Level ,Foreign & Commonwealth Office ,203329-102 ,677.53,
DFID,DFID,23/04/2020,Data Network - land lines ,Business Solutions Division Level ,Foreign & Commonwealth Office ,203329-102 ,678.76,
DFID,DFID,23/04/2020,Data Network - land lines ,Business Solutions Division Level ,Foreign & Commonwealth Office ,203329-102 ,683.45,
DFID,DFID,23/04/2020,Data Network - land lines ,Business Solutions Division Level ,Foreign & Commonwealth Office ,203329-102 ,707.74,
DFID,DFID,23/04/2020,Data Network - land lines ,Business Solutions Division Level ,Foreign & Commonwealth Office ,203329-102 ,643.33,
DFID,DFID,23/04/2020,Data Network - land lines ,Business Solutions Division Level ,Foreign & Commonwealth Office ,203329-102 ,686.91,
DFID,DFID,06/04/2020,Aid Programme - Joint programme contribution ,Asia  Caribbean and Overseas Territories ,Foreign & Commonwealth Office ,203601-106 ,"1,942.05",
DFID,DFID,06/04/2020,DFID Purchased Relief Supplies ,West and Southern Africa ,Foreign & Commonwealth Office ,203674-103 ,"20,290.27",
DFID,DFID,06/04/2020,DFID Purchased Relief Supplies ,West and Southern Africa ,Foreign & Commonwealth Office ,203674-103 ,"3,736.75",
DFID,DFID,21/04/2020,DFID Purchased Relief Supplies ,West and Southern Africa ,Foreign & Commonwealth Office ,203674-103 ,"7,922.65",
DFID,DFID,21/04/2020,DFID Purchased Relief Supplies ,West and Southern Africa ,Foreign & Commonwealth Office ,203674-103 ,"9,620.54",
DFID,DFID,29/04/2020,Office Equipment - Purchases ,Group Operations ,Outdoor Gear Ltd,203717-101 ,718.20,
DFID,DFID,01/04/2020,Hotels - Accommodation only ,Research and Evidence Division ,Corporate Provider ,203874-101 ,710.70,
DFID,DFID,01/04/2020,Air fares ,Research and Evidence Division ,Corporate Provider ,203874-101 ,671.07,
DFID,DFID,01/04/2020,Hotels - Accommodation only ,Internal Audit ,Corporate Provider ,203914-101 ,685.96,
DFID,DFID,01/04/2020,Hotels - Accommodation only ,Asia  Caribbean and Overseas Territories ,Corporate Provider ,204053-101 ,774.27,
DFID,DFID,01/04/2020,Hotels - Accommodation only ,Middle East and North Africa Division ,Corporate Provider ,204055-101 ,752.44,
DFID,DFID,01/04/2020,Hotels - Accommodation only ,Middle East and North Africa Division ,Corporate Provider ,204055-101 ,922.10,
DFID,DFID,01/04/2020,Hotels - Accommodation only ,Middle East and North Africa Division ,Corporate Provider ,204055-101 ,691.83,
DFID,DFID,29/04/2020,Conferences  Seminars & Meeting/Event Resource ,Group Operations ,Holyrood Communictions Ltd,204284-101 ,936.00,
DFID,DFID,01/04/2020,Air fares ,East and Central Africa ,Corporate Provider ,204375-106 ,856.17,
DFID,DFID,23/04/2020,Hotels - Accommodation only,East and Central Africa ,Foreign & Commonwealth Office ,204641-104 ,"1,860.00",
DFID,DFID,01/04/2020,Hotels - Accommodation only ,Economic Development Division ,Corporate Provider ,204686-101 ,"1,606.65",
DFID,DFID,01/04/2020,Air fares ,Economic Development Division ,Corporate Provider ,204686-101 ,642.82,
DFID,DFID,01/04/2020,Air fares ,Policy Division ,Corporate Provider ,204766-105 ,565.47,
DFID,DFID,01/04/2020,Air fares ,Policy Division ,Corporate Provider ,204766-105 ,909.40,
DFID,DFID,21/04/2020,furniture and  fittings,Policy Division ,Foreign & Commonwealth Office ,204766-105 ,"12,272.84",
DFID,DFID,01/04/2020,Air fares ,Policy Division ,Corporate Provider ,204766-105 ,"1,059.34",
DFID,DFID,03/04/2020,Project delivery costs – supplier services ,Policy Division ,Corporate Travel Provider ,204766-101 ,"16,793,813.00",
DFID,DFID,01/04/2020,Hotels - Accommodation only ,Research and Evidence Division ,Corporate Provider ,204815-101 ,560.33,
DFID,DFID,01/04/2020,Hotels - Accommodation only ,Middle East and North Africa Division ,Corporate Provider ,204844-101 ,668.87,
DFID,DFID,01/04/2020,Air fares ,Finance and Corporate Performance Division ,Corporate Provider ,204846-101 ,801.26,
DFID,DFID,01/04/2020,Air fares ,Finance and Corporate Performance Division ,Corporate Provider ,204846-101 ,640.18,
DFID,DFID,06/04/2020,Secure Staff Accommodation ,Asia  Caribbean and Overseas Territories ,Foreign & Commonwealth Office ,204857-102 ,"3,017.16",
DFID,DFID,01/04/2020,Hotels - Accommodation only ,Non-Departmental Public Body ,Corporate Provider ,204873-102 ,603.33,
DFID,DFID,01/04/2020,Air fares ,Middle East and North Africa Division ,Corporate Provider ,204981-101 ,842.91,
DFID,DFID,01/04/2020,Air fares ,Middle East and North Africa Division ,Corporate Provider ,204981-101 ,681.70,
DFID,DFID,01/04/2020,Air fares ,Middle East and North Africa Division ,Corporate Provider ,204981-101 ,504.40,
DFID,DFID,01/04/2020,Air fares ,Middle East and North Africa Division ,Corporate Provider ,204981-101 ,780.76,
DFID,DFID,01/04/2020,Hotels - Accommodation only ,Middle East and North Africa Division ,Corporate Provider ,204983-101 ,"1,419.35",
DFID,DFID,06/04/2020,Contract Catering Services ,East and Central Africa ,Foreign & Commonwealth Office ,205068-102 ,"2,379.26",
DFID,DFID,06/04/2020,Secure Staff Accommodation ,Asia  Caribbean and Overseas Territories ,Foreign & Commonwealth Office ,205138-103 ,"4,538.15",
DFID,DFID,06/04/2020,Project delivery costs – supplier services ,Economic Development Division ,Foreign & Commonwealth Office ,205181-108 ,"3,039.80",
DFID,DFID,06/04/2020,Project delivery costs – supplier services ,Economic Development Division ,Foreign & Commonwealth Office ,205181-108 ,"8,062.02",
DFID,DFID,06/04/2020,Project delivery costs – supplier services ,Economic Development Division ,Foreign & Commonwealth Office ,205181-108 ,"3,381.20",
DFID,DFID,06/04/2020,Project delivery costs – supplier services ,Economic Development Division ,Foreign & Commonwealth Office ,205181-108 ,"3,039.81",
DFID,DFID,21/04/2020,Project delivery costs – supplier services ,Economic Development Division ,Foreign & Commonwealth Office ,205181-108 ,602.25,
DFID,DFID,21/04/2020,Project delivery costs – supplier services ,Economic Development Division ,Foreign & Commonwealth Office ,205181-108 ,859.02,
DFID,DFID,01/04/2020,Hotels - Accommodation only ,Economic Development Division ,Corporate Provider ,205231-121 ,614.23,
DFID,DFID,01/04/2020,Hotels - Accommodation only ,East and Central Africa ,Corporate Provider ,205241-110 ,662.67,
DFID,DFID,01/04/2020,Hotels - Accommodation only ,Humanitarian  Security and Migration Division ,Corporate Provider ,205280-102 ,997.43,
DFID,DFID,29/04/2020,Hotels - Accommodation only ,Humanitarian  Security and Migration Division ,E-Payment System  ,205280-102 ,752.85,
DFID,DFID,01/04/2020,Air fares ,Humanitarian  Security and Migration Division ,Corporate Provider ,205280-102 ,564.97,
DFID,DFID,01/04/2020,Air fares ,Research and Evidence Division ,Corporate Provider ,205288-102 ,629.97,
DFID,DFID,01/04/2020,Air fares ,Research and Evidence Division ,Corporate Provider ,205288-102 ,629.97,
DFID,DFID,01/04/2020,Hotels - Accommodation only ,Middle East and North Africa Division ,Corporate Provider ,300078-101 ,"1,259.80",
DFID,DFID,06/04/2020,Hotels - Accommodation only ,Middle East and North Africa Division ,Foreign & Commonwealth Office ,300078-101 ,821.26,
DFID,DFID,06/04/2020,Hotels - Accommodation only ,Middle East and North Africa Division ,Foreign & Commonwealth Office ,300078-101 ,709.41,
DFID,DFID,06/04/2020,Hotels - Accommodation only ,Middle East and North Africa Division ,Foreign & Commonwealth Office ,300078-101 ,894.75,
DFID,DFID,01/04/2020,Air fares ,East and Central Africa ,Corporate Provider ,300230-108 ,899.10,
DFID,DFID,01/04/2020,Air fares ,East and Central Africa ,Corporate Provider ,300230-108 ,705.10,
DFID,DFID,01/04/2020,Air fares ,East and Central Africa ,Corporate Provider ,300230-108 ,705.10,
DFID,DFID,01/04/2020,Air fares ,East and Central Africa ,Corporate Provider ,300230-108 ,899.10,
DFID,DFID,01/04/2020,Hotels - Accommodation only ,BSD Service Centre ,Corporate Provider ,300328-101 ,779.64,
DFID,DFID,01/04/2020,Hotels - Accommodation only ,BSD Service Centre ,Corporate Provider ,300328-101 ,740.57,
DFID,DFID,01/04/2020,Hotels - Accommodation only ,BSD Service Centre ,Corporate Provider ,300328-101 ,571.73,
DFID,DFID,01/04/2020,Air fares ,East and Central Africa ,Corporate Provider ,300427-106 ,"1,475.37",
DFID,DFID,01/04/2020,Air fares ,East and Central Africa ,Corporate Provider ,300427-106 ,907.40,
DFID,DFID,01/04/2020,Air fares ,East and Central Africa ,Corporate Provider ,300621-101 ,"1,698.31",
DFID,DFID,01/04/2020,Air fares ,International Relations Division ,Corporate Provider ,300628-101 ,707.47,
DFID,DFID,01/04/2020,Air fares ,International Relations Division ,Corporate Provider ,300628-101 ,509.32,
DFID,DFID,01/04/2020,Hotels - Accommodation only ,Stabilisation Unit ,Corporate Provider ,300646-103 ,"6,750.00",
DFID,DFID,01/04/2020,Hotels - Accommodation only ,Stabilisation Unit ,Corporate Provider ,300646-103 ,"1,108.23",
DFID,DFID,01/04/2020,Hotels - Accommodation only ,Stabilisation Unit ,Corporate Provider ,300646-103 ,"1,108.23",
DFID,DFID,01/04/2020,Hotels - Accommodation only ,Stabilisation Unit ,Corporate Provider ,300646-101 ,704.49,
DFID,DFID,21/04/2020,Medical/Health Services ,West and Southern Africa ,Foreign & Commonwealth Office ,300782-101 ,"1,352.43",
DFID,DFID,01/04/2020,Air fares ,West and Southern Africa ,Corporate Provider ,300782-101 ,624.08,
DFID,DFID,01/04/2020,Air fares ,West and Southern Africa ,Corporate Provider ,300782-101 ,"1,519.40",
DFID,DFID,01/04/2020,Air fares ,West and Southern Africa ,Corporate Provider ,300782-101 ,583.10,
DFID,DFID,01/04/2020,Air fares ,Research and Evidence Division ,Corporate Provider ,300785-102 ,984.57,
DFID,DFID,01/04/2020,Air fares ,Asia  Caribbean and Overseas Territories ,Supplier Name withheld ,301019-102 ,817.20,
DFID,DFID,01/04/2020,Air fares ,Asia  Caribbean and Overseas Territories ,Supplier Name withheld ,301019-102 ,"1,233.00",
DFID,DFID,01/04/2020,Air fares ,Asia  Caribbean and Overseas Territories ,Supplier Name withheld ,301019-102 ,"1,092.86",
DFID,DFID,01/04/2020,Air fares ,Middle East and North Africa Division ,Corporate Provider ,301021-101 ,"1,360.06",
DFID,DFID,28/04/2020,Aid Programme - Accountable Grant Payments ,Asia  Caribbean and Overseas Territories ,NIUA/FCRA ,300110-110 ,"73,892.00",
DFID,DFID,28/04/2020,Aid Programme - Accountable Grant Payments ,Asia  Caribbean and Overseas Territories ,NIUA/FCRA ,300110-111 ,"39,788.00",
DFID,DFID,27/04/2020,Air fares ,East and Central Africa ,SEVEN FOUR EIGHT AIR SERVICES (K) LIMITED ,101630-101 ,"3,063.98",
DFID,DFID,08/04/2020,Aid Programme - Accountable Grant Payments ,East and Central Africa ,World Vision Kenya ,204437-102 ,"51,803.00",
DFID,DFID,03/04/2020,Project delivery costs – supplier services ,West and Southern Africa ,C.Matsinhe Consultor E.I ,205074-104 ,"39,141.65",
DFID,DFID,07/04/2020,Fund monies to be managed and dispersed by the supplier ,East and Central Africa ,Crown Agents Bank Limited – CHAPS ,300368-106 ,"24,287.01",
DFID,DFID,30/04/2020,Project delivery costs – supplier services ,West and Southern Africa ,SEGREPIN s.a.r.l. ,202427-102 ,"8,850.40",
DFID,DFID,09/04/2020,Aid Programme - Accountable Grant Payments ,East and Central Africa ,ELECTORAL LAW AND GOVERNANCE INSTITUTE IN AFRICA ,204437-102 ,"61,390.38",
DFID,DFID,30/04/2020,Project delivery costs – supplier services ,Asia  Caribbean and Overseas Territories ,Acquisory Consulting LLP ,300421-102 ,"8,920.00",
DFID,DFID,21/04/2020,Project delivery costs – supplier services ,Economic Development Division ,Cowater UK ,204715-101 ,"887,463.11",
DFID,DFID,22/04/2020,Project delivery costs – supplier services ,Economic Development Division ,Cowater UK ,204715-103 ,"94,036.45",
DFID,DFID,27/04/2020,Project delivery costs – supplier services ,Economic Development Division ,Cowater UK ,205222-112 ,"50,684.94",
DFID,DFID,27/04/2020,Project delivery costs – supplier services ,Economic Development Division ,Cowater UK ,205222-111 ,"460,386.02",
DFID,DFID,20/04/2020,Aid Programme - Voluntary contributions ,Policy Division ,INTERPOL ,300784-101 ,"93,409.00",
DFID,DFID,15/04/2020,Aid Programme - Accountable Grant Payments ,East and Central Africa ,Sinapis Group ,300557-101 ,"503,871.00",
DFID,DFID,23/04/2020,Project delivery costs – supplier services ,Policy Division ,Roberta Gregoli ,300310-107 ,"2,687.25",
DFID,DFID,29/04/2020,Data Network -Satellite ,Business Solutions Division Level ,IPSEOS sprl ,200002-121 ,"5,324.71",
DFID,DFID,29/04/2020,Data Network -Satellite ,Business Solutions Division Level ,IPSEOS sprl ,203329-102 ,"12,424.33",
DFID,DFID,28/04/2020,other information and communication technologies ,Business Solutions Division Level ,BE-IT RESOURCING LTD ,200002-176 ,"4,950.00",
DFID,DFID,17/04/2020,Contract Catering Services ,East and Central Africa ,Tamarind Management Ltd ,101616-101 ,670.01,
DFID,DFID,30/04/2020,Aid Programme - Accountable Grant Payments ,Research and Evidence Division ,UNESCO IIEP ,203339-108 ,"129,449.00",
DFID,DFID,28/04/2020,Project delivery costs – supplier services ,West and Southern Africa ,Ernst & Young  Limitada ,203317-104 ,"6,862.37",
DFID,DFID,28/04/2020,Project delivery costs – supplier services ,West and Southern Africa ,Ernst & Young  Limitada ,203317-104 ,"10,293.56",
DFID,DFID,23/04/2020,Project delivery costs – supplier services ,Group Operations ,Fisher German LLP ,203717-101 ,"10,680.00",
DFID,DFID,09/04/2020,Aid Programme - Accountable Grant Payments ,Asia  Caribbean and Overseas Territories ,Sa-Dhan ,202867-105 ,"31,898.00",
DFID,DFID,28/04/2020,Project delivery costs – supplier services ,Economic Development Division ,60 Decibels  Inc. ,202939-123 ,"48,000.00",
DFID,DFID,06/04/2020,Aid Programme - Accountable Grant Payments ,Research and Evidence Division ,The Faraday Institution ,204867-111 ,"523,724.00",
DFID,DFID,29/04/2020,Project delivery costs – supplier services ,West and Southern Africa ,Greater Manchester Police ,300952-101 ,"26,340.00",
DFID,DFID,14/04/2020,Computer hardware maintenance ,Business Solutions Division Level ,Park Place Technologies Ltd ,200002-113 ,"6,876.97",
DFID,DFID,23/04/2020,Aid Programme - Accountable Grant Payments ,Research and Evidence Division ,World Resources Institute ,205053-137 ,"165,355.00",
DFID,DFID,24/04/2020,Aid Programme - Accountable Grant Payments ,Asia  Caribbean and Overseas Territories ,World Resources Institute ,300186-101 ,"151,948.00",
DFID,DFID,23/04/2020,Unanalysed/miscellaneous travel ,Asia  Caribbean and Overseas Territories ,Titan Airways ,300806-103 ,"187,189.00",
DFID,DFID,23/04/2020,Unanalysed/miscellaneous travel ,Asia  Caribbean and Overseas Territories ,Titan Airways ,300806-103 ,"2,079.00",
DFID,DFID,23/04/2020,Project delivery costs – supplier services ,West and Southern Africa ,Adam Smith International Ltd ,202584-106 ,"144,908.23",
DFID,DFID,02/04/2020,Project delivery costs – supplier services ,West and Southern Africa ,Adam Smith International Ltd ,202584-106 ,"67,735.58",
DFID,DFID,23/04/2020,Project delivery costs – supplier services ,West and Southern Africa ,Adam Smith International Ltd ,203161-110 ,"75,658.70",
DFID,DFID,01/04/2020,Project delivery costs – supplier services ,West and Southern Africa ,Adam Smith International Ltd ,203161-110 ,"1,065,937.50",
DFID,DFID,21/04/2020,Project delivery costs – supplier services ,West and Southern Africa ,Adam Smith International Ltd ,203674-102 ,"29,364.20",
DFID,DFID,30/04/2020,Project delivery costs – supplier services ,Asia  Caribbean and Overseas Territories ,Adam Smith International Ltd ,204619-104 ,"356,546.18",
DFID,DFID,27/04/2020,Project delivery costs – supplier services ,Asia  Caribbean and Overseas Territories ,Adam Smith International Ltd ,204619-104 ,"38,441.00",
DFID,DFID,06/04/2020,Project delivery costs – supplier services ,West and Southern Africa ,Adam Smith International Ltd ,204659-104 ,"149,999.21",
DFID,DFID,30/04/2020,Project delivery costs – supplier services ,West and Southern Africa ,Adam Smith International Ltd ,204659-104 ,"162,821.71",
DFID,DFID,03/04/2020,Project delivery costs – supplier services ,West and Southern Africa ,Adam Smith International Ltd ,204659-104 ,"145,385.48",
DFID,DFID,07/04/2020,Aid Programme - Accountable Grant Payments ,West and Southern Africa ,Action Against Hunger UK ,201874-105 ,"746,083.00",
DFID,DFID,16/04/2020,Office Supplies ,Group Operations ,QUADIENT LIMITED ,100182-101 ,633.60,
DFID,DFID,29/04/2020,Aid Programme - Accountable Grant Payments ,East and Central Africa ,British Council (UK) ,300365-105 ,"490,227.43",
DFID,DFID,08/04/2020,Aid Programme - Accountable Grant Payments ,Policy Division ,British Council (UK) ,300502-102 ,"1,321,387.00",
DFID,DFID,28/04/2020,Aid Programme - Accountable Grant Payments ,Policy Division ,British Council (UK) ,300502-102 ,"2,119,488.00",
DFID,DFID,01/04/2020,Project delivery costs – supplier services ,Humanitarian  Security and Migration Division ,DAI Europe Limited ,205255-105 ,"10,753.56",
DFID,DFID,22/04/2020,Aid Programme - Voluntary contributions ,Economic Development Division ,BANK OF ENGLAND ,300452-107 ,"484,418.97",
DFID,DFID,02/04/2020,Aid Programme - Voluntary contributions ,Asia  Caribbean and Overseas Territories ,BRITISH RED CROSS ,300003-107 ,"150,000.00",
DFID,DFID,02/04/2020,Aid Programme - Voluntary contributions ,Asia  Caribbean and Overseas Territories ,BRITISH RED CROSS ,300003-108 ,"155,607.00",
DFID,DFID,30/04/2020,Aid Programme - Humanitarian Material Relief Assistance and Services ,Humanitarian  Security and Migration Division ,BRITISH RED CROSS ,301150-116 ,"33,000,000.00",
DFID,DFID,22/04/2020,Aid Programme - Partnership Programme Arrangements ,Economic Development Division ,BRITISH GEOLOGICAL SURVEY ,205191-106 ,"251,749.56",
DFID,DFID,28/04/2020,Project delivery costs – supplier services ,Asia  Caribbean and Overseas Territories ,British Council ,203488-103 ,"139,648.97",
DFID,DFID,28/04/2020,Project delivery costs – supplier services ,Asia  Caribbean and Overseas Territories ,British Council ,203488-105 ,"209,473.46",
DFID,DFID,02/04/2020,Project delivery costs – supplier services ,West and Southern Africa ,British Council ,203816-102 ,"37,252.72",
DFID,DFID,30/04/2020,Project delivery costs – supplier services ,East and Central Africa ,British Council ,205135-101 ,"67,447.17",
DFID,DFID,22/04/2020,Aid Programme - Accountable Grant Payments ,West and Southern Africa ,Christian Aid ,300254-103 ,"78,251.42",
DFID,DFID,22/04/2020,Project delivery costs – supplier services ,Asia  Caribbean and Overseas Territories ,Crown Agents Ltd ,204196-103 ,"825,453.00",
DFID,DFID,29/04/2020,Project delivery costs – supplier services ,Asia  Caribbean and Overseas Territories ,Crown Agents Ltd ,204196-103 ,"835,054.76",
DFID,DFID,23/04/2020,Project delivery costs – supplier services ,Asia  Caribbean and Overseas Territories ,Crown Agents Ltd ,204196-103 ,"572,004.00",
DFID,DFID,23/04/2020,Project delivery costs – supplier services ,Asia  Caribbean and Overseas Territories ,Crown Agents Ltd ,204196-103 ,"990,000.00",
DFID,DFID,09/04/2020,Project delivery costs – supplier services ,Asia  Caribbean and Overseas Territories ,Crown Agents Ltd ,204612-101 ,"14,928.00",
DFID,DFID,06/04/2020,Project delivery costs – supplier services ,Policy Division ,Crown Agents Ltd ,205249-104 ,"49,346.20",
DFID,DFID,06/04/2020,Project delivery costs – supplier services ,Policy Division ,Crown Agents Ltd ,205249-104 ,"553,041.00",
DFID,DFID,09/04/2020,Project delivery costs – supplier services ,Policy Division ,Crown Agents Ltd ,205249-104 ,"15,466.60",
DFID,DFID,09/04/2020,Project delivery costs – supplier services ,Policy Division ,Crown Agents Ltd ,205249-104 ,"522,279.03",
DFID,DFID,06/04/2020,Project delivery costs – supplier services ,Asia  Caribbean and Overseas Territories ,Crown Agents Ltd ,300006-101 ,"100,839.46",
DFID,DFID,01/04/2020,AV conferencing systms - service & usage ,Business Solutions Division Level ,COMPUTACENTER (UK) LTD ,200002-135 ,"241,980.80",AV conferencing systms - service & usage 
DFID,DFID,03/04/2020,AV Conferencing systems -hardware ,Business Solutions Division Level ,COMPUTACENTER (UK) LTD ,200002-153 ,978.00,
DFID,DFID,15/04/2020,Aid Programme - Accountable Grant Payments ,West and Southern Africa ,Care International UK ,300852-104 ,"1,407,455.81",
DFID,DFID,21/04/2020,Aid Programme - Accountable Grant Payments ,Research and Evidence Division ,CENTRE FOR ECONOMIC POLICY RESEARCH ,202835-104 ,"114,751.02",
DFID,DFID,17/04/2020,Aid Programme - Accountable Grant Payments ,Policy Division ,COMIC RELIEF ,204961-101 ,"748,511.00",
DFID,DFID,22/04/2020,Professional member subscriptions ,Top Management Group ,UNIVERSITY OF CAMBRIDGE ,100232-104 ,"2,880.00",
DFID,DFID,01/04/2020,Training Providers/Facilitation Services ,Communications Division ,CABINET OFFICE ,100138-101 ,"1,172.00",
DFID,DFID,01/04/2020,Recruitment costs ,Communications Division ,CABINET OFFICE ,100138-101 ,"1,630.00",
DFID,DFID,08/04/2020,Training - Course Fees ,Policy Division ,CABINET OFFICE ,100191-101 ,"58,800.00",Training - Course Fees
DFID,DFID,15/04/2020,Training - Course Fees ,Human Resources ,CABINET OFFICE ,100269-153 ,"7,851.65",
DFID,DFID,17/04/2020,Training - Course Fees ,Human Resources ,CABINET OFFICE ,100269-117 ,"2,024.00",
DFID,DFID,17/04/2020,Recruitment costs ,Human Resources ,CABINET OFFICE ,100269-117 ,"3,792.00",
DFID,DFID,27/04/2020,Aid Programme - Core contributions ,West and Southern Africa ,CABINET OFFICE ,202643-105 ,"71,067.31",
DFID,DFID,29/04/2020,Project delivery costs – supplier services ,West and Southern Africa ,CABINET OFFICE ,204918-101 ,"13,505.05",
DFID,DFID,01/04/2020,Training - Course Fees ,Group Operations ,Capita  Business Services ,204284-102 ,"3,026.41",
DFID,DFID,06/04/2020,Training Providers/Facilitation Services ,Finance and Corporate Performance Division ,Capita  Business Services ,204846-103 ,"15,627.63",
DFID,DFID,27/04/2020,Training Providers/Facilitation Services ,Finance and Corporate Performance Division ,Capita  Business Services ,204846-103 ,"15,097.88",
DFID,DFID,27/04/2020,Training Providers/Facilitation Services ,Finance and Corporate Performance Division ,Capita  Business Services ,204846-103 ,"12,426.86",
DFID,DFID,30/04/2020,Project delivery costs – supplier services ,Asia  Caribbean and Overseas Territories ,Concern Worldwide ,203264-102 ,"71,474.47",
DFID,DFID,30/04/2020,Project delivery costs – supplier services ,Asia  Caribbean and Overseas Territories ,Concern Worldwide ,203264-102 ,"358,045.45",
DFID,DFID,21/04/2020,Training Providers/Facilitation Services ,Human Resources ,MINISTRY OF DEFENCE ,100269-153 ,"22,000.00",
DFID,DFID,29/04/2020,Project delivery costs – supplier services ,Asia  Caribbean and Overseas Territories ,Nathan Associates London Ltd ,202180-102 ,"29,361.43",
DFID,DFID,16/04/2020,Project delivery costs – supplier services ,East and Central Africa ,COFFEY INTERNATIONAL DEVELOPMENT LTD ,204338-102 ,"297,699.07",
DFID,DFID,02/04/2020,Project delivery costs – supplier services ,East and Central Africa ,COFFEY INTERNATIONAL DEVELOPMENT LTD ,204338-102 ,"148,849.53",
DFID,DFID,02/04/2020,Project delivery costs – supplier services ,East and Central Africa ,COFFEY INTERNATIONAL DEVELOPMENT LTD ,204637-102 ,"281,090.78",
DFID,DFID,02/04/2020,Project delivery costs – supplier services ,East and Central Africa ,COFFEY INTERNATIONAL DEVELOPMENT LTD ,204637-102 ,"276,892.88",
DFID,DFID,20/04/2020,Project delivery costs – supplier services ,Policy Division ,COFFEY INTERNATIONAL DEVELOPMENT LTD ,204766-103 ,"6,892.86",
DFID,DFID,17/04/2020,Project delivery costs – supplier services ,East and Central Africa ,COFFEY INTERNATIONAL DEVELOPMENT LTD ,205052-105 ,"38,162.00",
DFID,DFID,29/04/2020,Project delivery costs – supplier services ,Economic Development Division ,COFFEY INTERNATIONAL DEVELOPMENT LTD ,205222-109 ,"129,288.00",
DFID,DFID,22/04/2020,Project delivery costs – supplier services ,West and Southern Africa ,COFFEY INTERNATIONAL DEVELOPMENT LTD ,300028-101 ,"43,746.83",
DFID,DFID,22/04/2020,Project delivery costs – supplier services ,West and Southern Africa ,COFFEY INTERNATIONAL DEVELOPMENT LTD ,300028-101 ,"166,419.37",
DFID,DFID,29/04/2020,Project delivery costs – supplier services ,East and Central Africa ,COFFEY INTERNATIONAL DEVELOPMENT LTD ,300147-101 ,"825,388.60",
DFID,DFID,08/04/2020,Project delivery costs – supplier services ,Asia  Caribbean and Overseas Territories ,COFFEY INTERNATIONAL DEVELOPMENT LTD ,300166-103 ,"40,016.00",
DFID,DFID,07/04/2020,Aid Programme - Accountable Grant Payments ,Policy Division ,Edinburgh University ,201101-117 ,"75,016.06",
DFID,DFID,20/04/2020,Project delivery costs – supplier services ,Group Operations ,FCO Services ,100106-102 ,"24,416.99",
DFID,DFID,01/04/2020,Project delivery costs – supplier services ,Business Solutions Division Level ,FCO Services ,200005-165 ,"85,827.00",
DFID,DFID,01/04/2020,Computer hardware maintenance ,BSD Service Centre ,FCO RECOVERIES UNIT ,300328-101 ,"3,695.10",
DFID,DFID,22/04/2020,Project delivery costs – supplier services ,East and Central Africa ,BDO LLP ,300376-101 ,"197,238.57",
DFID,DFID,20/04/2020,Project delivery costs – supplier services ,Asia  Caribbean and Overseas Territories ,PALLADIUM ,201724-153 ,"123,707.62",
DFID,DFID,21/04/2020,Project delivery costs – supplier services ,Climate and Environment Division ,PALLADIUM ,201724-129 ,"592,324.77",
DFID,DFID,23/04/2020,Project delivery costs – supplier services ,Asia  Caribbean and Overseas Territories ,PALLADIUM ,201851-101 ,"22,026.56",
DFID,DFID,02/04/2020,Project delivery costs – supplier services ,West and Southern Africa ,PALLADIUM ,202098-106 ,"237,913.61",
DFID,DFID,23/04/2020,Hostile Environment Training ,Humanitarian  Security and Migration Division ,PALLADIUM ,202410-108 ,"3,726.00",
DFID,DFID,24/04/2020,Project delivery costs – supplier services ,East and Central Africa ,PALLADIUM ,202596-108 ,"1,931.56",
DFID,DFID,24/04/2020,Project delivery costs – supplier services ,East and Central Africa ,PALLADIUM ,202596-108 ,"5,815.75",
DFID,DFID,20/04/2020,Project delivery costs – supplier services ,Asia  Caribbean and Overseas Territories ,PALLADIUM ,203427-105 ,"78,100.61",
DFID,DFID,29/04/2020,Project delivery costs – supplier services ,West and Southern Africa ,PALLADIUM ,203429-109 ,"23,737.50",
DFID,DFID,28/04/2020,Project delivery costs – supplier services ,West and Southern Africa ,PALLADIUM ,203429-109 ,"17,583.33",
DFID,DFID,28/04/2020,Project delivery costs – supplier services ,West and Southern Africa ,PALLADIUM ,203429-109 ,"26,375.00",
DFID,DFID,28/04/2020,Project delivery costs – supplier services ,West and Southern Africa ,PALLADIUM ,203429-109 ,"12,858.57",
DFID,DFID,28/04/2020,Project delivery costs – supplier services ,West and Southern Africa ,PALLADIUM ,203429-109 ,"10,144.23",
DFID,DFID,28/04/2020,Project delivery costs – supplier services ,West and Southern Africa ,PALLADIUM ,203429-109 ,"13,187.50",
DFID,DFID,28/04/2020,Project delivery costs – supplier services ,West and Southern Africa ,PALLADIUM ,203429-109 ,"118,441.27",
DFID,DFID,28/04/2020,Project delivery costs – supplier services ,West and Southern Africa ,PALLADIUM ,203429-109 ,"17,583.33",
DFID,DFID,28/04/2020,Project delivery costs – supplier services ,West and Southern Africa ,PALLADIUM ,203429-109 ,"105,500.00",
DFID,DFID,30/04/2020,Project delivery costs – supplier services ,West and Southern Africa ,PALLADIUM ,203429-109 ,"2,028.85",
DFID,DFID,30/04/2020,Project delivery costs – supplier services ,West and Southern Africa ,PALLADIUM ,203429-109 ,"25,228.26",
DFID,DFID,03/04/2020,Project delivery costs – supplier services ,East and Central Africa ,PALLADIUM ,204012-106 ,"216,420.28",
DFID,DFID,03/04/2020,Project delivery costs – supplier services ,East and Central Africa ,PALLADIUM ,204012-106 ,"247,730.09",
DFID,DFID,21/04/2020,Project delivery costs – supplier services ,East and Central Africa ,PALLADIUM ,204019-107 ,"3,080.53",
DFID,DFID,22/04/2020,Project delivery costs – supplier services ,East and Central Africa ,PALLADIUM ,204019-107 ,"54,057.44",
DFID,DFID,24/04/2020,Aid Programme - Humanitarian Material Relief Assistance and Services ,Middle East and North Africa Division ,PALLADIUM ,204516-102 ,"7,981.07",
DFID,DFID,14/04/2020,Aid Programme - Humanitarian Material Relief Assistance and Services ,Middle East and North Africa Division ,PALLADIUM ,204516-102 ,"27,500.72",
DFID,DFID,20/04/2020,Aid Programme - Humanitarian Material Relief Assistance and Services ,Middle East and North Africa Division ,PALLADIUM ,204516-102 ,"20,522.14",
DFID,DFID,10/04/2020,Aid Programme - Humanitarian Material Relief Assistance and Services ,Middle East and North Africa Division ,PALLADIUM ,204516-102 ,"57,322.08",
DFID,DFID,09/04/2020,Aid Programme - Humanitarian Material Relief Assistance and Services ,Asia  Caribbean and Overseas Territories ,PALLADIUM ,204603-101 ,"1,419.12",
DFID,DFID,28/04/2020,Aid Programme - Humanitarian Material Relief Assistance and Services ,Asia  Caribbean and Overseas Territories ,PALLADIUM ,204603-101 ,530.12,
DFID,DFID,24/04/2020,Project delivery costs – supplier services ,Asia  Caribbean and Overseas Territories ,PALLADIUM ,204613-101 ,"80,941.39",
DFID,DFID,21/04/2020,Project delivery costs – supplier services ,East and Central Africa ,PALLADIUM ,204809-102 ,"62,585.40",
DFID,DFID,02/04/2020,Project delivery costs – supplier services ,West and Southern Africa ,PALLADIUM ,204822-102 ,"343,829.84",
DFID,DFID,14/04/2020,Project delivery costs – supplier services ,East and Central Africa ,PALLADIUM ,204940-112 ,"104,382.14",
DFID,DFID,21/04/2020,Project delivery costs – supplier services ,East and Central Africa ,PALLADIUM ,204940-112 ,"244,287.48",
DFID,DFID,21/04/2020,Project delivery costs – supplier services ,East and Central Africa ,PALLADIUM ,204940-113 ,"13,497.96",
DFID,DFID,27/04/2020,Project delivery costs – supplier services ,East and Central Africa ,PALLADIUM ,204940-113 ,"65,999.93",
DFID,DFID,21/04/2020,Project delivery costs – supplier services ,East and Central Africa ,PALLADIUM ,204940-103 ,"8,998.64",
DFID,DFID,27/04/2020,Project delivery costs – supplier services ,East and Central Africa ,PALLADIUM ,204940-103 ,"43,999.96",
DFID,DFID,02/04/2020,Project delivery costs – supplier services ,Humanitarian  Security and Migration Division ,PALLADIUM ,205176-110 ,"15,237.00",
DFID,DFID,17/04/2020,Project delivery costs – supplier services ,Humanitarian  Security and Migration Division ,PALLADIUM ,205176-110 ,"24,097.16",
DFID,DFID,21/04/2020,Project delivery costs – supplier services ,Humanitarian  Security and Migration Division ,PALLADIUM ,205176-110 ,"132,689.76",
DFID,DFID,17/04/2020,Project delivery costs – supplier services ,Humanitarian  Security and Migration Division ,PALLADIUM ,205176-101 ,"311,559.08",
DFID,DFID,17/04/2020,Project delivery costs – supplier services ,Humanitarian  Security and Migration Division ,PALLADIUM ,205176-103 ,"11,138.24",
DFID,DFID,17/04/2020,Project delivery costs – supplier services ,Humanitarian  Security and Migration Division ,PALLADIUM ,205176-104 ,"57,910.30",
DFID,DFID,17/04/2020,Project delivery costs – supplier services ,Humanitarian  Security and Migration Division ,PALLADIUM ,205176-105 ,"43,827.96",
DFID,DFID,15/04/2020,Project delivery costs – supplier services ,Humanitarian  Security and Migration Division ,PALLADIUM ,205176-106 ,"39,991.48",
DFID,DFID,30/04/2020,Project delivery costs – supplier services ,Humanitarian  Security and Migration Division ,PALLADIUM ,205176-106 ,"5,971.72",
DFID,DFID,06/04/2020,Project delivery costs – supplier services ,Asia  Caribbean and Overseas Territories ,PALLADIUM ,205268-112 ,"15,998.52",
DFID,DFID,03/04/2020,Project delivery costs – supplier services ,Middle East and North Africa Division ,PALLADIUM ,300060-101 ,"646,882.25",
DFID,DFID,03/04/2020,Project delivery costs – supplier services ,Middle East and North Africa Division ,PALLADIUM ,300060-101 ,"280,905.26",
DFID,DFID,14/04/2020,Project delivery costs – supplier services ,Middle East and North Africa Division ,PALLADIUM ,300231-103 ,"11,428.55",
DFID,DFID,09/04/2020,Project delivery costs – supplier services ,East and Central Africa ,PALLADIUM ,300363-107 ,"7,887.13",
DFID,DFID,08/04/2020,Project delivery costs – supplier services ,East and Central Africa ,PALLADIUM ,300363-107 ,"24,368.59",
DFID,DFID,08/04/2020,Project delivery costs – supplier services ,East and Central Africa ,PALLADIUM ,300363-107 ,"1,410.11",
DFID,DFID,15/04/2020,Project delivery costs – supplier services ,West and Southern Africa ,PALLADIUM ,300416-107 ,"15,542.39",
DFID,DFID,14/04/2020,Project delivery costs – supplier services ,Middle East and North Africa Division ,PALLADIUM ,300417-101 ,"185,471.28",
DFID,DFID,14/04/2020,Project delivery costs – supplier services ,Middle East and North Africa Division ,PALLADIUM ,300417-101 ,"63,076.09",
DFID,DFID,14/04/2020,Project delivery costs – supplier services ,Middle East and North Africa Division ,PALLADIUM ,300417-101 ,"7,045.54",
DFID,DFID,06/04/2020,Project delivery costs – supplier services ,East and Central Africa ,PALLADIUM ,300531-102 ,"24,834.35",
DFID,DFID,06/04/2020,Project delivery costs – supplier services ,East and Central Africa ,PALLADIUM ,300531-102 ,"29,524.16",
DFID,DFID,22/04/2020,Project delivery costs – supplier services ,East and Central Africa ,PALLADIUM ,300531-102 ,"3,304.56",
DFID,DFID,06/04/2020,Project delivery costs – supplier services ,Stabilisation Unit ,PALLADIUM ,300646-102 ,"3,705.48",
DFID,DFID,08/04/2020,Project delivery costs – supplier services ,Stabilisation Unit ,PALLADIUM ,300646-102 ,"2,578.07",
DFID,DFID,07/04/2020,Project delivery costs – supplier services ,Stabilisation Unit ,PALLADIUM ,300646-101 ,"16,760.42",
DFID,DFID,07/04/2020,Project delivery costs – supplier services ,West and Southern Africa ,PALLADIUM ,300719-104 ,"9,237.60",
DFID,DFID,22/04/2020,Project delivery costs – supplier services ,West and Southern Africa ,PALLADIUM ,300832-105 ,"3,719.18",
DFID,DFID,20/04/2020,Project delivery costs – supplier services ,West and Southern Africa ,PALLADIUM ,300832-105 ,"69,978.55",
DFID,DFID,22/04/2020,Project delivery costs – supplier services ,West and Southern Africa ,PALLADIUM ,300832-105 ,"3,158.86",
DFID,DFID,15/04/2020,Project delivery costs – supplier services ,West and Southern Africa ,PALLADIUM ,300852-101 ,"4,135.04",
DFID,DFID,15/04/2020,Project delivery costs – supplier services ,Humanitarian  Security and Migration Division ,PALLADIUM ,301150-104 ,"43,806.41",
DFID,DFID,29/04/2020,Aid Programme - Accountable Grant Payments ,Research and Evidence Division ,GALVmed ,300504-101 ,"187,433.00",
DFID,DFID,30/04/2020,Project delivery costs – supplier services ,Asia  Caribbean and Overseas Territories ,ICF Consulting Services Ltd ,300003-103 ,"74,000.00",
DFID,DFID,14/04/2020,Project delivery costs – supplier services ,West and Southern Africa ,DAI Global Health Ltd ,202694-101 ,"420,047.97",
DFID,DFID,28/04/2020,Contract & Agency Staff ,Business Solutions Division Level ,Hays Specialist Recruitment Ltd ,200002-251 ,"1,320.00",
DFID,DFID,24/04/2020,Contract & Agency Staff ,Business Solutions Division Level ,Hays Specialist Recruitment Ltd ,200002-251 ,"9,900.00",
DFID,DFID,03/04/2020,Project delivery costs – supplier services ,Business Solutions Division Level ,Hays Specialist Recruitment Ltd ,200005-160 ,"2,362.50",
DFID,DFID,24/04/2020,Research and development costs - supplier services ,Research and Evidence Division ,The Institute Of Development Studie ,204427-102 ,"427,855.42",
DFID,DFID,20/04/2020,Project delivery costs – supplier services ,Research and Evidence Division ,The Institute Of Development Studie ,205121-101 ,"114,165.28",
DFID,DFID,20/04/2020,Project delivery costs – supplier services ,Research and Evidence Division ,The Institute Of Development Studie ,205121-101 ,"229,965.34",
DFID,DFID,22/04/2020,Professional member subscriptions ,Internal Audit ,INSTITUTE OF INTERNAL AUDITORS-UK ,100121-101 ,"5,126.00",
DFID,DFID,28/04/2020,Aid Programme - Humanitarian Material Relief Assistance and Services ,Asia  Caribbean and Overseas Territories ,INTERNATIONAL RESCUE COMMITTEE UK ,204603-105 ,"159,364.00",
DFID,DFID,28/04/2020,Aid Programme - Accountable Grant Payments ,Asia  Caribbean and Overseas Territories ,INTERNATIONAL RESCUE COMMITTEE UK ,204603-116 ,"53,121.00",
DFID,DFID,03/04/2020,Project delivery costs – supplier services ,Research and Evidence Division ,Institute Of Development Studies ,203202-103 ,"20,811.70",
DFID,DFID,28/04/2020,Aid Programme - Trust Funds contributions ,Asia  Caribbean and Overseas Territories ,IBRD HSBC T ,202775-103 ,"3,000,000.00",
DFID,DFID,24/04/2020,Aid Programme - Trust Funds contributions ,Asia  Caribbean and Overseas Territories ,IBRD HSBC T ,202775-103 ,"500,000.00",
DFID,DFID,21/04/2020,Aid Programme - Trust Funds contributions ,Asia  Caribbean and Overseas Territories ,IBRD HSBC T ,203385-102 ,"450,000.00",
DFID,DFID,30/04/2020,Aid Programme - Trust Funds contributions ,Asia  Caribbean and Overseas Territories ,IBRD HSBC T ,204672-105 ,"490,000.00",
DFID,DFID,30/04/2020,Aid Programme - Refugee Relief Payments ,East and Central Africa ,IBRD HSBC T ,205206-105 ,"135,000.00",
DFID,DFID,29/04/2020,Aid Programme - Trust Funds contributions ,Economic Development Division ,IBRD HSBC T ,205231-104 ,"2,000,000.00",
DFID,DFID,14/04/2020,Aid Programme - Trust Funds contributions ,Research and Evidence Division ,IBRD HSBC T ,300123-102 ,"1,000,000.00",
DFID,DFID,30/04/2020,Aid Programme - Trust Funds contributions ,East and Central Africa ,IBRD HSBC T ,300139-103 ,"65,202.00",
DFID,DFID,17/04/2020,Aid Programme - Trust Funds contributions ,Policy Division ,IBRD HSBC T ,300745-101 ,"1,500,000.00",
DFID,DFID,21/04/2020,Aid Programme - Trust Funds contributions ,Middle East and North Africa Division ,IBRD HSBC T ,300874-101 ,"250,000.00",
DFID,DFID,16/04/2020,Project delivery costs – supplier services ,Climate and Environment Division ,IOD PARC ,203516-105 ,"2,025.00",
DFID,DFID,01/04/2020,Project delivery costs – supplier services ,Asia  Caribbean and Overseas Territories ,IOD PARC ,204984-106 ,"56,774.15",
DFID,DFID,01/04/2020,Project delivery costs – supplier services ,Research and Evidence Division ,IOD PARC ,205109-101 ,"77,358.49",
DFID,DFID,01/04/2020,Project delivery costs – supplier services ,Asia  Caribbean and Overseas Territories ,IOD PARC ,300003-102 ,"56,774.14",
DFID,DFID,14/04/2020,Aid Programme - Trust Funds contributions ,Research and Evidence Division ,IBRD (HSBC)  C/O THE WORLD BANK ,203185-106 ,"1,500,000.00",
DFID,DFID,02/04/2020,Aid Programme - Trust Funds contributions ,Research and Evidence Division ,IBRD (HSBC)  C/O THE WORLD BANK ,203872-102 ,"2,014,290.00",
DFID,DFID,01/04/2020,Aid Programme - Joint programme contribution ,Asia  Caribbean and Overseas Territories ,INTERNATIONAL TRADE CENTRE ,202762-101 ,"98,656.00",
DFID,DFID,17/04/2020,Computer software maintenance ,Business Solutions Division Level ,CHUBB SYSTEMS LTD ,200002-149 ,"7,940.52",
DFID,DFID,03/04/2020,Training Providers/Facilitation Services ,Human Resources ,INSIGHTS LEARNING & DEVELOPMENT LTD ,100269-153 ,"3,687.00",
DFID,DFID,09/04/2020,Aid Programme - Core contributions ,Policy Division ,IBRD-IFFIm ,111073-101 ,"56,056,350.00",
DFID,DFID,09/04/2020,Aid Programme - Core contributions ,Policy Division ,IBRD-IFFIm ,201185-101 ,"8,097,698.79",
DFID,DFID,02/04/2020,Subscriptions ,Top Management Group ,MENZIES DISTRIBUTION LTD TRADING AS JONES YARRELL LEADENHALL ,100232-104 ,542.40,
DFID,DFID,16/04/2020,Hostile Environment Training ,Asia  Caribbean and Overseas Territories ,Kellogg Brown & Root Limited ,100084-101 ,583.00,
DFID,DFID,16/04/2020,Hostile Environment Training ,Economic Development Division ,Kellogg Brown & Root Limited ,100124-101 ,683.52,
DFID,DFID,20/04/2020,Hostile Environment Training ,Economic Development Division ,Kellogg Brown & Root Limited ,100124-101 ,683.52,
DFID,DFID,23/04/2020,Hostile Environment Training ,Asia  Caribbean and Overseas Territories ,Kellogg Brown & Root Limited ,101605-101 ,683.52,
DFID,DFID,14/04/2020,Hostile Environment Training ,East and Central Africa ,Kellogg Brown & Root Limited ,101612-101 ,569.60,
DFID,DFID,02/04/2020,Hostile Environment Training ,East and Central Africa ,Kellogg Brown & Root Limited ,101625-115 ,515.14,
DFID,DFID,14/04/2020,Hostile Environment Training ,East and Central Africa ,Kellogg Brown & Root Limited ,101625-113 ,569.60,
DFID,DFID,06/04/2020,Hostile Environment Training ,East and Central Africa ,Kellogg Brown & Root Limited ,101630-101 ,569.60,
DFID,DFID,07/04/2020,Hostile Environment Training ,East and Central Africa ,Kellogg Brown & Root Limited ,101633-101 ,569.60,
DFID,DFID,15/04/2020,Hostile Environment Training ,East and Central Africa ,Kellogg Brown & Root Limited ,101633-101 ,569.60,
DFID,DFID,14/04/2020,Hostile Environment Training ,Economic Development Division ,Kellogg Brown & Root Limited ,202373-101 ,683.52,
DFID,DFID,03/04/2020,Hostile Environment Training ,Economic Development Division ,Kellogg Brown & Root Limited ,202373-101 ,683.52,
DFID,DFID,28/04/2020,Hostile Environment Training ,Climate and Environment Division ,Kellogg Brown & Root Limited ,202402-107 ,569.60,
DFID,DFID,21/04/2020,Hostile Environment Training ,East and Central Africa ,Kellogg Brown & Root Limited ,202594-101 ,683.52,
DFID,DFID,30/04/2020,Hostile Environment Training ,Middle East and North Africa Division ,Kellogg Brown & Root Limited ,204055-101 ,683.52,
DFID,DFID,01/04/2020,Hostile Environment Training ,International Relations Division ,Kellogg Brown & Root Limited ,300628-101 ,515.14,
DFID,DFID,30/04/2020,Project delivery costs – supplier services ,Research and Evidence Division ,London School Of Hygiene And Tropical Medicine ,114396-104 ,"141,779.77",
DFID,DFID,21/04/2020,Aid Programme - Accountable Grant Payments ,Research and Evidence Division ,London School Of Hygiene And Tropical Medicine ,300654-101 ,"175,430.00",
DFID,DFID,28/04/2020,Training - Course Fees ,Economic Development Division ,Reed Elsevier (UK) Ltd T/A LN ,300663-101 ,"2,043.00",
DFID,DFID,28/04/2020,Training - Course Fees ,Economic Development Division ,Reed Elsevier (UK) Ltd T/A LN ,300663-101 ,518.00,
DFID,DFID,15/04/2020,Aid Programme - Core contributions ,Research and Evidence Division ,MEDICAL RESEARCH COUNCIL ,201267-107 ,"7,421.54",
DFID,DFID,27/04/2020,Project delivery costs – supplier services ,West and Southern Africa ,Mott Macdonald Ltd ,202493-103 ,"1,236,638.06",
DFID,DFID,27/04/2020,Project delivery costs – supplier services ,Asia  Caribbean and Overseas Territories ,Mott Macdonald Ltd ,202697-109 ,"826,217.72",
DFID,DFID,27/04/2020,Project delivery costs – supplier services ,West and Southern Africa ,Mott Macdonald Ltd ,202942-102 ,"88,559.05",
DFID,DFID,14/04/2020,Project delivery costs – supplier services ,West and Southern Africa ,Mott Macdonald Ltd ,203154-103 ,"180,000.00",
DFID,DFID,21/04/2020,Project delivery costs – supplier services ,East and Central Africa ,Mott Macdonald Ltd ,203363-103 ,"32,003.25",
DFID,DFID,29/04/2020,Project delivery costs – supplier services ,Asia  Caribbean and Overseas Territories ,Mott Macdonald Ltd ,204023-104 ,"497,021.70",
DFID,DFID,06/04/2020,Project delivery costs – supplier services ,East and Central Africa ,Mott Macdonald Ltd ,204288-103 ,"234,540.32",
DFID,DFID,06/04/2020,Project delivery costs – supplier services ,East and Central Africa ,Mott Macdonald Ltd ,204288-103 ,"207,676.34",
DFID,DFID,06/04/2020,Project delivery costs – supplier services ,East and Central Africa ,Mott Macdonald Ltd ,204288-103 ,"160,330.98",
DFID,DFID,27/04/2020,Project delivery costs – supplier services ,East and Central Africa ,Mott Macdonald Ltd ,204641-103 ,"566,731.81",
DFID,DFID,06/04/2020,Project delivery costs – supplier services ,Asia  Caribbean and Overseas Territories ,Mott Macdonald Ltd ,204984-105 ,"129,453.29",
DFID,DFID,16/04/2020,Project delivery costs – supplier services ,Asia  Caribbean and Overseas Territories ,Mott Macdonald Ltd ,204984-105 ,"174,660.99",
DFID,DFID,02/04/2020,Project delivery costs – supplier services ,Asia  Caribbean and Overseas Territories ,Mott Macdonald Ltd ,205037-101 ,"178,801.39",
DFID,DFID,08/04/2020,Project delivery costs – supplier services ,Asia  Caribbean and Overseas Territories ,Mott Macdonald Ltd ,205037-101 ,"229,835.26",
DFID,DFID,06/04/2020,Project delivery costs – supplier services ,Asia  Caribbean and Overseas Territories ,Mott Macdonald Ltd ,205138-102 ,"669,281.54",
DFID,DFID,06/04/2020,Project delivery costs – supplier services ,Asia  Caribbean and Overseas Territories ,Mott Macdonald Ltd ,205138-108 ,"460,341.66",
DFID,DFID,22/04/2020,Project delivery costs – supplier services ,West and Southern Africa ,Mott Macdonald Ltd ,205195-103 ,"29,290.26",
DFID,DFID,30/04/2020,Project delivery costs – supplier services ,West and Southern Africa ,Mott Macdonald Ltd ,205234-102 ,"603,274.20",
DFID,DFID,30/04/2020,Project delivery costs – supplier services ,West and Southern Africa ,Mott Macdonald Ltd ,205234-108 ,"9,538.42",
DFID,DFID,22/04/2020,Project delivery costs – supplier services ,East and Central Africa ,Mott Macdonald Ltd ,300449-102 ,"575,780.31",
DFID,DFID,22/04/2020,Project delivery costs – supplier services ,East and Central Africa ,Mott Macdonald Ltd ,300449-105 ,"54,854.92",
DFID,DFID,30/04/2020,Project delivery costs – supplier services ,Economic Development Division ,Mott Macdonald Ltd ,300805-101 ,"74,509.00",
DFID,DFID,06/04/2020,Data Network - land lines ,Business Solutions Division Level ,VODAFONE LIMITED ,200002-187 ,"14,329.18",
DFID,DFID,01/04/2020,Project delivery costs – supplier services ,Asia  Caribbean and Overseas Territories ,Met Office ,203185-105 ,"725,288.00",
DFID,DFID,24/04/2020,Project delivery costs – supplier services ,East and Central Africa ,Mercy Corps Europe ,204012-104 ,"41,849.67",
DFID,DFID,24/04/2020,Project delivery costs – supplier services ,East and Central Africa ,Mercy Corps Europe ,204012-105 ,"10,243.21",
DFID,DFID,17/04/2020,Aid Programme - Accountable Grant Payments ,East and Central Africa ,Mercy Corps Europe ,300645-102 ,"250,000.00",
DFID,DFID,27/04/2020,Aid Programme - Accountable Grant Payments ,East and Central Africa ,ODI ,300589-103 ,"83,834.23",
DFID,DFID,22/04/2020,FCO shared service charges ,Policy Division ,FOREIGN AND COMMONWEALTH OFFICE (FCO) ,204963-106 ,"19,182.09",
DFID,DFID,27/04/2020,FCO shared service charges ,One HMG FCO Platform ,FOREIGN AND COMMONWEALTH OFFICE (FCO) ,204990-136 ,"1,447,852.75",FCO shared service charges 
DFID,DFID,27/04/2020,FCO shared service charges ,One HMG FCO Platform ,FOREIGN AND COMMONWEALTH OFFICE (FCO) ,204994-145 ,"17,162,782.38",FCO shared service charges 
DFID,DFID,27/04/2020,FCO shared service charges ,One HMG FCO Platform ,FOREIGN AND COMMONWEALTH OFFICE (FCO) ,300336-101 ,"1,386,441.25",
DFID,DFID,14/04/2020,Project delivery costs – supplier services ,West and Southern Africa ,Oxford Policy Management ,101629-101 ,"16,538.10",
DFID,DFID,20/04/2020,Project delivery costs – supplier services ,Research and Evidence Division ,Oxford Policy Management ,203051-103 ,"243,297.54",
DFID,DFID,27/04/2020,Project delivery costs – supplier services ,West and Southern Africa ,Oxford Policy Management ,203161-102 ,"27,824.10",
DFID,DFID,01/04/2020,Project delivery costs – supplier services ,West and Southern Africa ,Oxford Policy Management ,203161-102 ,"41,447.10",
DFID,DFID,21/04/2020,Project delivery costs – supplier services ,Asia  Caribbean and Overseas Territories ,Oxford Policy Management ,203185-104 ,"26,263.20",
DFID,DFID,16/04/2020,Project delivery costs – supplier services ,Asia  Caribbean and Overseas Territories ,Oxford Policy Management ,203186-106 ,"49,986.30",
DFID,DFID,28/04/2020,Project delivery costs – supplier services ,West and Southern Africa ,Oxford Policy Management ,203536-103 ,"28,594.00",
DFID,DFID,27/04/2020,Project delivery costs – supplier services ,East and Central Africa ,Oxford Policy Management ,204012-107 ,"7,192.50",
DFID,DFID,02/04/2020,Project delivery costs – supplier services ,East and Central Africa ,Oxford Policy Management ,204033-105 ,"11,466.00",
DFID,DFID,30/04/2020,Project delivery costs – supplier services ,Economic Development Division ,Oxford Policy Management ,204256-101 ,"245,230.79",
DFID,DFID,29/04/2020,Project delivery costs – supplier services ,East and Central Africa ,Oxford Policy Management ,204290-105 ,"57,272.50",
DFID,DFID,15/04/2020,Project delivery costs – supplier services ,West and Southern Africa ,Oxford Policy Management ,204330-103 ,"159,963.83",
DFID,DFID,20/04/2020,Project delivery costs – supplier services ,West and Southern Africa ,Oxford Policy Management ,204330-103 ,"237,561.75",
DFID,DFID,23/04/2020,Project delivery costs – supplier services ,East and Central Africa ,Oxford Policy Management ,204338-108 ,"73,075.42",
DFID,DFID,02/04/2020,Project delivery costs – supplier services ,East and Central Africa ,Oxford Policy Management ,204478-102 ,"31,742.00",
DFID,DFID,01/04/2020,Project delivery costs – supplier services ,West and Southern Africa ,Oxford Policy Management ,204497-103 ,"1,010,146.00",
DFID,DFID,24/04/2020,Project delivery costs – supplier services ,Asia  Caribbean and Overseas Territories ,Oxford Policy Management ,204607-102 ,"323,007.97",
DFID,DFID,01/04/2020,Research and development costs - supplier services ,Research and Evidence Division ,Oxford Policy Management ,204773-102 ,"100,602.00",
DFID,DFID,01/04/2020,Research and development costs - supplier services ,Research and Evidence Division ,Oxford Policy Management ,204773-103 ,"73,000.00",
DFID,DFID,29/04/2020,Project delivery costs – supplier services ,Research and Evidence Division ,Oxford Policy Management ,204806-106 ,"4,475.00",
DFID,DFID,30/04/2020,Project delivery costs – supplier services ,Research and Evidence Division ,Oxford Policy Management ,205053-141 ,"4,812.00",
DFID,DFID,30/04/2020,Project delivery costs – supplier services ,East and Central Africa ,Oxford Policy Management ,205065-107 ,"81,650.00",
DFID,DFID,27/04/2020,Project delivery costs – supplier services ,East and Central Africa ,Oxford Policy Management ,205065-107 ,"324,731.58",
DFID,DFID,20/04/2020,Project delivery costs – supplier services ,West and Southern Africa ,Oxford Policy Management ,205126-101 ,"267,186.46",
DFID,DFID,17/04/2020,Project delivery costs – supplier services ,East and Central Africa ,Oxford Policy Management ,205241-108 ,"38,405.20",
DFID,DFID,08/04/2020,Project delivery costs – supplier services ,Middle East and North Africa Division ,Oxford Policy Management ,300050-103 ,"115,330.77",
DFID,DFID,08/04/2020,Project delivery costs – supplier services ,West and Southern Africa ,Oxford Policy Management ,300075-103 ,"66,702.42",
DFID,DFID,23/04/2020,Project delivery costs – supplier services ,West and Southern Africa ,Oxford Policy Management ,300183-106 ,"22,585.86",
DFID,DFID,27/04/2020,Project delivery costs – supplier services ,Asia  Caribbean and Overseas Territories ,Oxford Policy Management ,300238-102 ,"36,469.00",
DFID,DFID,20/04/2020,Project delivery costs – supplier services ,West and Southern Africa ,Oxford Policy Management ,300254-101 ,"157,058.44",
DFID,DFID,02/04/2020,Project delivery costs – supplier services ,East and Central Africa ,Oxford Policy Management ,300363-101 ,"217,040.30",
DFID,DFID,07/04/2020,Project delivery costs – supplier services ,East and Central Africa ,Oxford Policy Management ,300363-101 ,"153,396.54",
DFID,DFID,23/04/2020,Project delivery costs – supplier services ,Research and Evidence Division ,Oxford Policy Management ,300369-102 ,"108,556.52",
DFID,DFID,08/04/2020,Project delivery costs – supplier services ,Research and Evidence Division ,Oxford Policy Management ,300369-102 ,"346,330.33",
DFID,DFID,08/04/2020,Project delivery costs – supplier services ,Research and Evidence Division ,Oxford Policy Management ,300369-102 ,"19,089.00",
DFID,DFID,15/04/2020,Project delivery costs – supplier services ,Policy Division ,Oxford Policy Management ,300468-101 ,"31,460.10",
DFID,DFID,22/04/2020,Project delivery costs – supplier services ,West and Southern Africa ,Oxford Policy Management ,300517-101 ,"198,982.26",
DFID,DFID,09/04/2020,Project delivery costs – supplier services ,West and Southern Africa ,Oxford Policy Management ,300517-101 ,"83,526.96",
DFID,DFID,03/04/2020,Project delivery costs – supplier services ,West and Southern Africa ,Oxford Policy Management ,300792-101 ,"1,500.00",
DFID,DFID,14/04/2020,Aid Programme - Accountable Grant Payments ,East and Central Africa ,OVERSEAS DEVELOPMENT INSTITUTE ,204793-103 ,"149,823.00",
DFID,DFID,30/04/2020,Aid Programme - Accountable Grant Payments ,Research and Evidence Division ,OVERSEAS DEVELOPMENT INSTITUTE ,300288-101 ,"889,028.28",
DFID,DFID,23/04/2020,Project delivery costs – supplier services ,Economic Development Division ,Pricewaterhousecoopers ,114178-104 ,"19,661.76",
DFID,DFID,03/04/2020,other information and communication technologies ,Business Solutions Division Level ,Pricewaterhousecoopers ,200002-258 ,"19,698.64",
DFID,DFID,01/04/2020,Project delivery costs – supplier services ,West and Southern Africa ,Pricewaterhousecoopers ,203161-104 ,"20,990.50",
DFID,DFID,01/04/2020,Project delivery costs – supplier services ,West and Southern Africa ,Pricewaterhousecoopers ,203161-104 ,"477,672.00",
DFID,DFID,29/04/2020,Project delivery costs – supplier services ,West and Southern Africa ,Pricewaterhousecoopers ,203161-104 ,"34,869.80",
DFID,DFID,29/04/2020,Project delivery costs – supplier services ,West and Southern Africa ,Pricewaterhousecoopers ,203161-104 ,"467,868.89",
DFID,DFID,29/04/2020,Project delivery costs – supplier services ,Economic Development Division ,Pricewaterhousecoopers ,204531-103 ,"455,072.63",
DFID,DFID,29/04/2020,Project delivery costs – supplier services ,Economic Development Division ,Pricewaterhousecoopers ,204531-104 ,"150,475.20",
DFID,DFID,03/04/2020,Project delivery costs – supplier services ,Policy Division ,Pricewaterhousecoopers ,204766-102 ,"845,447.82",
DFID,DFID,14/04/2020,Project delivery costs – supplier services ,Middle East and North Africa Division ,Pricewaterhousecoopers ,205093-103 ,"20,293.00",
DFID,DFID,20/04/2020,Project delivery costs – supplier services ,Middle East and North Africa Division ,Pricewaterhousecoopers ,205093-103 ,"1,680,348.00",
DFID,DFID,15/04/2020,Project delivery costs – supplier services ,Asia  Caribbean and Overseas Territories ,Pricewaterhousecoopers ,205245-101 ,"15,902.61",
DFID,DFID,20/04/2020,Project delivery costs – supplier services ,Asia  Caribbean and Overseas Territories ,Pricewaterhousecoopers ,205245-101 ,"26,162.51",
DFID,DFID,01/04/2020,Project delivery costs – supplier services ,West and Southern Africa ,Pricewaterhousecoopers ,301001-101 ,"740,586.95",
DFID,DFID,01/04/2020,Project delivery costs – supplier services ,West and Southern Africa ,Pricewaterhousecoopers ,301001-101 ,"1,210.07",
DFID,DFID,21/04/2020,Project delivery costs – supplier services ,West and Southern Africa ,Pricewaterhousecoopers ,301001-101 ,"276,423.00",
DFID,DFID,27/04/2020,Storage & Distribution costs ,Asia  Caribbean and Overseas Territories ,Supplier Name withheld ,101601-110 ,912.76,
DFID,DFID,28/04/2020,Storage & Distribution costs ,Middle East and North Africa Division ,PICKFORDS LTD ,201705-101 ,"5,296.50",
DFID,DFID,30/04/2020,Storage & Distribution costs ,West and Southern Africa ,PICKFORDS LTD ,300782-101 ,525.63,
DFID,DFID,17/04/2020,Aid Programme - Accountable Grant Payments ,East and Central Africa ,Population Services International ,204903-101 ,"1,175,164.59",
DFID,DFID,17/04/2020,Aid Programme - Accountable Grant Payments ,East and Central Africa ,Population Services International ,204903-101 ,"598,928.67",
DFID,DFID,15/04/2020,Aid Programme - Accountable Grant Payments ,East and Central Africa ,Population Services International ,204903-102 ,"29,610.18",
DFID,DFID,15/04/2020,Aid Programme - Accountable Grant Payments ,East and Central Africa ,Population Services International ,204903-102 ,"970,928.35",
DFID,DFID,03/04/2020,Aid Programme - Voluntary contributions ,Asia  Caribbean and Overseas Territories ,SAVE THE CHILDREN ,205268-109 ,"1,250,000.00",
DFID,DFID,23/04/2020,Research and development costs - supplier services ,Research and Evidence Division ,School Of Oriental & African Studies (UK) ,203752-104 ,"475,214.84",
DFID,DFID,14/04/2020,Project delivery costs – supplier services ,Policy Division ,Social Development Direct Ltd ,203245-106 ,"11,094.46",
DFID,DFID,27/04/2020,Project delivery costs – supplier services ,Policy Division ,Social Development Direct Ltd ,203245-106 ,"52,567.51",
DFID,DFID,27/04/2020,Project delivery costs – supplier services ,Policy Division ,Social Development Direct Ltd ,203245-106 ,"30,543.32",
DFID,DFID,28/04/2020,Project delivery costs – supplier services ,Policy Division ,Social Development Direct Ltd ,300648-103 ,"2,287.50",
DFID,DFID,01/04/2020,Project delivery costs – supplier services ,Policy Division ,SOUTHWOOD CONSULTANTS ,204963-101 ,"7,560.00",
DFID,DFID,20/04/2020,Computer Software Licenses ,Group Operations ,SHE SOFTWARE LTD ,203717-101 ,"16,122.17",
DFID,DFID,09/04/2020,Aid Programme - Accountable Grant Payments ,Research and Evidence Division ,SAVE THE CHILDREN UK ,203705-128 ,"333,741.00",
DFID,DFID,02/04/2020,Aid Programme - Humanitarian Material Relief Assistance and Services ,Humanitarian  Security and Migration Division ,SAVE THE CHILDREN UK ,300516-101 ,"8,000,000.00",
DFID,DFID,22/04/2020,Aid Programme - Humanitarian Material Relief Assistance and Services ,Humanitarian  Security and Migration Division ,SAVE THE CHILDREN UK ,300516-101 ,"3,300,000.00",
DFID,DFID,28/04/2020,Computer Software Licenses ,Business Solutions Division Level ,Trustmarque Solutions Ltd ,200002-191 ,"267,448.51",Computer Software Licenses 
DFID,DFID,28/04/2020,Computer Software Licenses ,Business Solutions Division Level ,Trustmarque Solutions Ltd ,200002-191 ,"157,841.16",Computer Software Licenses 
DFID,DFID,17/04/2020,Data Network - land lines ,Business Solutions Division Level ,Trustmarque Solutions Ltd ,200002-191 ,"136,944.68",Data Network - land lines 
DFID,DFID,28/04/2020,Computer Software Licenses ,Business Solutions Division Level ,Trustmarque Solutions Ltd ,200002-191 ,628.22,
DFID,DFID,28/04/2020,Computer Software Licenses ,Business Solutions Division Level ,Trustmarque Solutions Ltd ,300681-101 ,"255,689.77",Computer Software Licenses 
DFID,DFID,28/04/2020,Computer Software Licenses ,Business Solutions Division Level ,Trustmarque Solutions Ltd ,300681-101 ,"564,958.51",Computer Software Licenses
DFID,DFID,28/04/2020,Computer Software Licenses ,Business Solutions Division Level ,Trustmarque Solutions Ltd ,300681-101 ,"1,334.98",
DFID,DFID,15/04/2020,Aid Programme - Voluntary contributions ,East and Central Africa ,UNICEF ,204045-102 ,"602,941.68",
DFID,DFID,22/04/2020,Aid Programme - Joint programme contribution ,Policy Division ,UNICEF ,301168-103 ,"1,500,000.00",
DFID,DFID,02/04/2020,Professional member subscriptions ,Research and Evidence Division ,THE ROYAL STATISTICAL SOCIETY ,202331-101 ,628.50,
DFID,DFID,02/04/2020,Professional member subscriptions ,Research and Evidence Division ,THE ROYAL STATISTICAL SOCIETY ,202331-101 ,"2,000.25",
DFID,DFID,21/04/2020,Aid Programme - Joint programme contribution ,Asia  Caribbean and Overseas Territories ,UNDP GBP Contributions ,203385-102 ,"300,000.00",
DFID,DFID,09/04/2020,Aid Programme - Humanitarian Material Relief Assistance and Services ,Asia  Caribbean and Overseas Territories ,UNDP GBP Contributions ,205268-106 ,"3,000,000.00",
DFID,DFID,22/04/2020,Aid Programme - Core contributions ,International Relations Division ,UNDP GBP Contributions ,300396-101 ,"27,500,000.00",
DFID,DFID,29/04/2020,Aid Programme - Trust Funds contributions ,Humanitarian  Security and Migration Division ,UNDP GBP Contributions ,300544-106 ,"500,000.00",
DFID,DFID,16/04/2020,Aid Programme - Voluntary contributions ,West and Southern Africa ,UNDP GBP Contributions ,300820-101 ,"255,000.00",
DFID,DFID,21/04/2020,Aid Programme - Voluntary contributions ,East and Central Africa ,UNDP GBP Contributions ,300855-101 ,"179,656.70",
DFID,DFID,22/04/2020,Aid Programme - Core contributions ,International Relations Division ,UN WOMEN ,300396-104 ,"6,250,000.00",
DFID,DFID,21/04/2020,Aid Programme - Voluntary contributions ,Middle East and North Africa Division ,UN WOMEN ,300953-102 ,"137,157.00",
DFID,DFID,14/04/2020,Aid Programme - Pooled/Basket funding ,West and Southern Africa ,United Nation’s Children Fund (UNICEF) ,204856-109 ,"1,944,866.00",
DFID,DFID,14/04/2020,Aid Programme - Voluntary contributions ,West and Southern Africa ,United Nation’s Children Fund (UNICEF) ,204856-110 ,"109,560.00",
DFID,DFID,16/04/2020,Aid Programme - Refugee Relief Payments ,East and Central Africa ,United Nation’s Children Fund (UNICEF) ,205143-102 ,"5,000,000.00",
DFID,DFID,30/04/2020,Aid Programme - Voluntary contributions ,Middle East and North Africa Division ,United Nation’s Children Fund (UNICEF) ,205200-101 ,"298,242.00",
DFID,DFID,03/04/2020,Aid Programme - Humanitarian Material Relief Assistance and Services ,East and Central Africa ,United Nation’s Children Fund (UNICEF) ,300363-104 ,"7,000,000.00",
DFID,DFID,29/04/2020,Aid Programme - Voluntary contributions ,Middle East and North Africa Division ,United Nation’s Children Fund (UNICEF) ,300525-101 ,"6,809,003.00",
DFID,DFID,23/04/2020,Aid Programme - Accountable Grant Payments ,International Relations Division ,UNESCO ( ,204875-101 ,"71,114.98",
DFID,DFID,09/04/2020,Project delivery costs – supplier services ,Policy Division ,Voluntary Service Overseas ,204894-101 ,"5,302,369.20",
DFID,DFID,17/04/2020,Telephone Usage & services ,Business Solutions Division Level ,VODAFONE CORPORATE ,200002-170 ,"25,459.46",Telephone Usage & services 
DFID,DFID,17/04/2020,Telephone Usage & services ,Business Solutions Division Level ,VODAFONE CORPORATE ,200002-170 ,"21,944.89",
DFID,DFID,20/04/2020,Data Network - land lines ,Business Solutions Division Level ,VERIZON UK LIMITED ,200002-126 ,750.00,
DFID,DFID,17/04/2020,Data Network - land lines ,Business Solutions Division Level ,VERIZON UK LIMITED ,200002-126 ,"1,873.04",
DFID,DFID,17/04/2020,other information and communication technologies ,Business Solutions Division Level ,VERIZON UK LIMITED ,200002-126 ,"3,317.88",
DFID,DFID,23/04/2020,Data Network - land lines ,Business Solutions Division Level ,VERIZON UK LIMITED ,200002-126 ,"7,919.24",
DFID,DFID,14/04/2020,Training Providers/Facilitation Services ,Human Resources ,THE WHITEHALL & INDUSTRY GROUP ,100269-153 ,"5,100.00",
DFID,DFID,07/04/2020,Conferences  Seminars & Meeting/Event Resource ,Policy Division ,WILTON PARK ,300310-107 ,"81,546.00",
DFID,DFID,01/04/2020,Air fares ,West and Southern Africa ,Mukwa Travel and Tours ,101637-101 ,510.84,
DFID,DFID,01/04/2020,Air fares ,West and Southern Africa ,Mukwa Travel and Tours ,101637-101 ,513.78,
DFID,DFID,01/04/2020,Air fares ,West and Southern Africa ,Mukwa Travel and Tours ,101637-101 ,520.57,
DFID,DFID,01/04/2020,Staff Travel - Air Fares ,West and Southern Africa ,Mukwa Travel and Tours ,101637-101 ,"5,417.59",
DFID,DFID,01/04/2020,Hotels - Accommodation only ,International Relations Division ,Southern Sun Ridgeway ,300628-101 ,556.78,
DFID,DFID,08/04/2020,Air fares ,East and Central Africa ,Simbatravelcare Limited ,101635-101 ,"1,090.91",
DFID,DFID,22/04/2020,Hotels - Accommodation only ,West and Southern Africa ,Supplier Name withheld ,101622-106 ,567.23,
DFID,DFID,14/04/2020,Hotels - Accommodation only ,West and Southern Africa ,Supplier Name withheld ,101622-106 ,865.47,
DFID,DFID,14/04/2020,Hotels - Accommodation only ,West and Southern Africa ,Supplier Name withheld ,101622-106 ,979.70,
DFID,DFID,29/04/2020,Auditors Remuneration & Expenses - Cash ,West and Southern Africa ,PricewaterhouseCoopers NGN ,202584-107 ,"17,488.80",
DFID,DFID,30/04/2020,Research and development costs - supplier services ,Research and Evidence Division ,Overseas Development Institute ,201009-106 ,"82,506.34",
DFID,DFID,30/04/2020,Research and development costs - supplier services ,Research and Evidence Division ,Overseas Development Institute ,203529-106 ,"680,592.73",
DFID,DFID,01/04/2020,Aid Programme - Accountable Grant Payments ,West and Southern Africa ,Overseas Development Institute ,204822-108 ,"384,259.65",
DFID,DFID,14/04/2020,Professional member subscriptions ,Human Resources ,BUSINESS IN THE COMMUNITY ,100269-126 ,"4,800.00",
DFID,DFID,27/04/2020,Computer Software Licenses ,Group Operations ,CARDINUS LTD ,100106-101 ,"1,800.00",
DFID,DFID,16/04/2020,Aid Programme - Voluntary contributions ,East and Central Africa ,UN OCHA ,205128-105 ,"500,000.00",
DFID,DFID,30/04/2020,Aid Programme - Humanitarian Material Relief Assistance and Services ,East and Central Africa ,UN OCHA ,300363-103 ,"7,000,000.00",
DFID,DFID,21/04/2020,Aid Programme - Voluntary contributions ,Middle East and North Africa Division ,UN OCHA ,300511-101 ,"16,000,000.00",
DFID,DFID,08/04/2020,Project delivery costs – supplier services ,Asia  Caribbean and Overseas Territories ,Acclimatise Group Ltd ,203601-123 ,"6,058.25",
DFID,DFID,21/04/2020,Aid Programme - Voluntary contributions ,East and Central Africa ,FAO ,204019-110 ,"2,577,263.00",
DFID,DFID,22/04/2020,Aid Programme - Voluntary contributions ,East and Central Africa ,FAO ,204888-105 ,"41,014.00",
DFID,DFID,23/04/2020,Aid Programme - Voluntary contributions ,East and Central Africa ,WFP CONTRIBUTIONS UNIT ,204888-102 ,"3,712,465.11",
DFID,DFID,29/04/2020,Aid Programme - Emergency Food Aid ,East and Central Africa ,WFP CONTRIBUTIONS UNIT ,205143-105 ,"3,513,148.00",
DFID,DFID,22/04/2020,Aid Programme - Voluntary contributions ,East and Central Africa ,WFP CONTRIBUTIONS UNIT ,300139-102 ,"2,200,000.00",
DFID,DFID,16/04/2020,Aid Programme - Voluntary contributions ,Middle East and North Africa Division ,WFP CONTRIBUTIONS UNIT ,300231-101 ,"20,000,000.00",
DFID,DFID,15/04/2020,Aid Programme - Humanitarian Material Relief Assistance and Services ,Middle East and North Africa Division ,WFP CONTRIBUTIONS UNIT ,300417-103 ,"1,500,000.00",
DFID,DFID,01/04/2020,Aid Programme - Core contributions ,West and Southern Africa ,WFP CONTRIBUTIONS UNIT ,300432-112 ,"1,077,832.00",
DFID,DFID,21/04/2020,Aid Programme - Voluntary contributions ,Middle East and North Africa Division ,WFP CONTRIBUTIONS UNIT ,300434-101 ,"15,000,000.00",
DFID,DFID,29/04/2020,Aid Programme - Humanitarian Material Relief Assistance and Services ,East and Central Africa ,WFP CONTRIBUTIONS UNIT ,300531-103 ,"1,750,000.00",
DFID,DFID,21/04/2020,Aid Programme - Humanitarian Material Relief Assistance and Services ,East and Central Africa ,WFP CONTRIBUTIONS UNIT ,300535-105 ,"1,100,000.00",
DFID,DFID,21/04/2020,Aid Programme - Humanitarian Material Relief Assistance and Services ,East and Central Africa ,WFP CONTRIBUTIONS UNIT ,300535-108 ,"950,000.00",
DFID,DFID,29/04/2020,Aid Programme - Voluntary contributions ,Middle East and North Africa Division ,WFP CONTRIBUTIONS UNIT ,300540-105 ,"8,500,000.00",
DFID,DFID,07/04/2020,Telephone Usage & services ,Business Solutions Division Level ,KUBE NETWORKS LTD ,200002-130 ,"1,139.84",
DFID,DFID,14/04/2020,Aid Programme - Accountable Grant Payments ,Research and Evidence Division ,AATF ,204988-102 ,"150,000.00",
DFID,DFID,09/04/2020,Aid Programme - Accountable Grant Payments ,Research and Evidence Division ,AATF ,204988-102 ,"375,000.00",
DFID,DFID,28/04/2020,Project delivery costs – supplier services ,Human Resources ,MORTON FRASER ,100269-136 ,960.00,
DFID,DFID,20/04/2020,other information and communication technologies ,West and Southern Africa ,British High Commission (SL) ,101629-101 ,"5,564.03",
DFID,DFID,07/04/2020,Hotels - Accommodation only ,West and Southern Africa ,Labadi Beach Hotel ,101613-101 ,"1,594.19",
DFID,DFID,02/04/2020,Project delivery costs – supplier services ,West and Southern Africa ,Alisa Hotel North Ridge ,205058-103 ,"4,844.57",
DFID,DFID,14/04/2020,Medical/Health Services ,West and Southern Africa ,Nyaho Medical Centre ,101613-101 ,748.95,
DFID,DFID,29/04/2020,Aid Programme - Joint programme contribution ,West and Southern Africa ,UNFPA ,204640-103 ,"1,415,135.23",
DFID,DFID,29/04/2020,Aid Programme - Joint programme contribution ,West and Southern Africa ,UNFPA ,204640-110 ,"353,783.81",
DFID,DFID,20/04/2020,Aid Programme - Voluntary contributions ,West and Southern Africa ,UNFPA ,300036-122 ,"5,809,213.00",
DFID,DFID,15/04/2020,Aid Programme - Joint programme contribution ,East and Central Africa ,UNFPA ,300107-103 ,"1,000,000.00",
DFID,DFID,22/04/2020,Aid Programme - Core contributions ,International Relations Division ,UNFPA ,300396-103 ,"10,000,000.00",
DFID,DFID,16/04/2020,Aid Programme - Voluntary contributions ,East and Central Africa ,UNHCR ,300139-101 ,"2,500,000.00",
DFID,DFID,20/04/2020,Aid Programme - Voluntary contributions ,Middle East and North Africa Division ,UNHCR ,300404-102 ,"1,715,450.00",
DFID,DFID,29/04/2020,Aid Programme - Voluntary contributions ,Middle East and North Africa Division ,UNHCR ,300540-101 ,"8,500,000.00",
DFID,DFID,02/04/2020,Fund monies to be managed and dispersed by the supplier ,Climate and Environment Division ,KPMG LLP ,201724-102 ,"4,741,762.99",
DFID,DFID,01/04/2020,Project delivery costs – supplier services ,Climate and Environment Division ,KPMG LLP ,201724-102 ,"69,874.63",
DFID,DFID,02/04/2020,Fund monies to be managed and dispersed by the supplier ,Climate and Environment Division ,KPMG LLP ,201724-142 ,"17,911.01",
DFID,DFID,08/04/2020,Project delivery costs – supplier services ,Economic Development Division ,KPMG LLP ,204252-113 ,"266,214.08",
DFID,DFID,30/04/2020,Aid Programme - Humanitarian Material Relief Assistance and Services ,East and Central Africa ,WHO (GENEVA) ,204805-115 ,"250,000.00",
DFID,DFID,07/04/2020,Aid Programme - Voluntary contributions ,West and Southern Africa ,WHO (GENEVA) ,300163-108 ,"540,000.00",
DFID,DFID,07/04/2020,Aid Programme - Voluntary contributions ,West and Southern Africa ,WHO (GENEVA) ,300163-108 ,"250,000.00",
DFID,DFID,03/04/2020,Aid Programme - Voluntary contributions ,Middle East and North Africa Division ,WHO (GENEVA) ,301163-101 ,"340,000.00",
DFID,DFID,14/04/2020,Subscriptions ,Communications Division ,THE PRESS ASSOCIATION ,100197-101 ,680.90,
DFID,DFID,21/04/2020,Project delivery costs – supplier services ,Middle East and North Africa Division ,Chemonics ,300460-103 ,"781,120.00",
DFID,DFID,09/04/2020,Aid Programme - Voluntary contributions ,East and Central Africa ,IOM ,204019-112 ,"800,000.00",
DFID,DFID,02/04/2020,Aid Programme - Voluntary contributions ,Asia  Caribbean and Overseas Territories ,IOM ,300051-101 ,"49,500.00",
DFID,DFID,02/04/2020,Aid Programme - Voluntary contributions ,Asia  Caribbean and Overseas Territories ,IOM ,300619-101 ,"205,212.00",
DFID,DFID,30/04/2020,Project delivery costs – supplier services ,Climate and Environment Division ,IPE Global Ltd ,201724-134 ,"193,283.34",
DFID,DFID,17/04/2020,Project delivery costs – supplier services ,Policy Division ,IPE Global Ltd ,203166-105 ,"41,056.00",
DFID,DFID,01/04/2020,Project delivery costs – supplier services ,Asia  Caribbean and Overseas Territories ,IPE Global Ltd ,204237-101 ,"18,705.66",
DFID,DFID,14/04/2020,Project delivery costs – supplier services ,Asia  Caribbean and Overseas Territories ,IPE Global Ltd ,204794-103 ,"18,349.00",
DFID,DFID,14/04/2020,Project delivery costs – supplier services ,Asia  Caribbean and Overseas Territories ,IPE Global Ltd ,204794-103 ,"12,322.00",
DFID,DFID,14/04/2020,Project delivery costs – supplier services ,Asia  Caribbean and Overseas Territories ,IPE Global Ltd ,204794-103 ,"13,367.00",
DFID,DFID,14/04/2020,Project delivery costs – supplier services ,Asia  Caribbean and Overseas Territories ,IPE Global Ltd ,204794-103 ,"16,481.06",
DFID,DFID,14/04/2020,Project delivery costs – supplier services ,Asia  Caribbean and Overseas Territories ,IPE Global Ltd ,204794-103 ,"175,998.54",
DFID,DFID,14/04/2020,Project delivery costs – supplier services ,Asia  Caribbean and Overseas Territories ,IPE Global Ltd ,204794-103 ,"10,267.00",
DFID,DFID,14/04/2020,Project delivery costs – supplier services ,Asia  Caribbean and Overseas Territories ,IPE Global Ltd ,204794-103 ,"27,348.24",
DFID,DFID,14/04/2020,Project delivery costs – supplier services ,Asia  Caribbean and Overseas Territories ,IPE Global Ltd ,204794-103 ,"34,024.30",
DFID,DFID,14/04/2020,Project delivery costs – supplier services ,Asia  Caribbean and Overseas Territories ,IPE Global Ltd ,204794-103 ,"58,322.38",
DFID,DFID,14/04/2020,Project delivery costs – supplier services ,Asia  Caribbean and Overseas Territories ,IPE Global Ltd ,204794-103 ,"68,088.39",
DFID,DFID,16/04/2020,Project delivery costs – supplier services ,Economic Development Division ,IPE Global Ltd ,205222-112 ,"22,145.00",
DFID,DFID,16/04/2020,Project delivery costs – supplier services ,Economic Development Division ,IPE Global Ltd ,205222-112 ,"4,299.00",
DFID,DFID,16/04/2020,Project delivery costs – supplier services ,Economic Development Division ,IPE Global Ltd ,205222-112 ,"8,646.00",
DFID,DFID,16/04/2020,Project delivery costs – supplier services ,Economic Development Division ,IPE Global Ltd ,205222-112 ,"23,301.00",
DFID,DFID,28/04/2020,Project delivery costs – supplier services ,Economic Development Division ,IPE Global Ltd ,205222-112 ,"11,294.00",
DFID,DFID,28/04/2020,Project delivery costs – supplier services ,Economic Development Division ,IPE Global Ltd ,205222-112 ,"5,501.00",
DFID,DFID,16/04/2020,Project delivery costs – supplier services ,Economic Development Division ,IPE Global Ltd ,205222-112 ,"9,208.00",
DFID,DFID,16/04/2020,Project delivery costs – supplier services ,Economic Development Division ,IPE Global Ltd ,205222-112 ,"28,678.00",
DFID,DFID,16/04/2020,Project delivery costs – supplier services ,Economic Development Division ,IPE Global Ltd ,205222-112 ,862.00,
DFID,DFID,28/04/2020,Project delivery costs – supplier services ,Economic Development Division ,IPE Global Ltd ,205222-112 ,"4,340.00",
DFID,DFID,28/04/2020,Project delivery costs – supplier services ,Economic Development Division ,IPE Global Ltd ,205222-112 ,862.00,
DFID,DFID,29/04/2020,Project delivery costs – supplier services ,Economic Development Division ,IPE Global Ltd ,205222-112 ,"28,079.00",
DFID,DFID,29/04/2020,Project delivery costs – supplier services ,Economic Development Division ,IPE Global Ltd ,205222-112 ,"26,645.00",
DFID,DFID,24/04/2020,Project delivery costs – supplier services ,Economic Development Division ,IPE Global Ltd ,205222-112 ,"4,298.00",
DFID,DFID,29/04/2020,Project delivery costs – supplier services ,Economic Development Division ,IPE Global Ltd ,205222-111 ,"26,644.00",
DFID,DFID,29/04/2020,Project delivery costs – supplier services ,Economic Development Division ,IPE Global Ltd ,205222-111 ,"3,120.00",
DFID,DFID,28/04/2020,Project delivery costs – supplier services ,Economic Development Division ,IPE Global Ltd ,205222-111 ,"7,763.00",
DFID,DFID,28/04/2020,Project delivery costs – supplier services ,Economic Development Division ,IPE Global Ltd ,205222-111 ,684.00,
DFID,DFID,28/04/2020,Project delivery costs – supplier services ,Economic Development Division ,IPE Global Ltd ,205222-111 ,"4,340.00",
DFID,DFID,16/04/2020,Project delivery costs – supplier services ,Economic Development Division ,IPE Global Ltd ,205222-111 ,"7,763.00",
DFID,DFID,16/04/2020,Project delivery costs – supplier services ,Economic Development Division ,IPE Global Ltd ,205222-111 ,"21,486.00",
DFID,DFID,28/04/2020,Project delivery costs – supplier services ,Economic Development Division ,IPE Global Ltd ,205222-111 ,"5,501.00",
DFID,DFID,28/04/2020,Project delivery costs – supplier services ,Economic Development Division ,IPE Global Ltd ,205222-111 ,"26,352.00",
DFID,DFID,16/04/2020,Project delivery costs – supplier services ,Economic Development Division ,IPE Global Ltd ,205222-111 ,"23,300.00",
DFID,DFID,16/04/2020,Project delivery costs – supplier services ,Economic Development Division ,IPE Global Ltd ,205222-111 ,"8,647.00",
DFID,DFID,16/04/2020,Project delivery costs – supplier services ,Economic Development Division ,IPE Global Ltd ,205222-111 ,"4,300.00",
DFID,DFID,16/04/2020,Project delivery costs – supplier services ,Economic Development Division ,IPE Global Ltd ,205222-111 ,"2,461.00",
DFID,DFID,20/04/2020,Aid Programme - Trust Funds contributions ,Climate and Environment Division ,UNEP ,201733-123 ,"2,000,000.00",
DFID,DFID,24/04/2020,Aid Programme - Voluntary contributions ,Asia  Caribbean and Overseas Territories ,THE INTERNATIONAL COMMITTEE OF THE RED CROSS (ICRC) ,204196-113 ,"3,500,000.00",
DFID,DFID,09/04/2020,Aid Programme - Humanitarian Material Relief Assistance and Services ,East and Central Africa ,THE INTERNATIONAL COMMITTEE OF THE RED CROSS (ICRC) ,300535-102 ,"1,500,000.00",
DFID,DFID,28/04/2020,Aid Programme - Accountable Grant Payments ,West and Southern Africa ,CIP (Centro de Integridade Publica) ,300210-102 ,"200,000.00",
DFID,DFID,24/04/2020,Aid Programme - Accountable Grant Payments ,Asia  Caribbean and Overseas Territories ,Management Sciences for Health ,203864-104 ,"1,700,000.00",
DFID,DFID,23/04/2020,Aid Programme - Accountable Grant Payments ,Humanitarian  Security and Migration Division ,Peace Research Institute Oslo ,300358-119 ,"19,941.29",
DFID,DFID,02/04/2020,Aid Programme - Core contributions ,Research and Evidence Division ,WELLCOME TRUST ,204133-103 ,"4,676.83",
DFID,DFID,02/04/2020,Aid Programme - Core contributions ,Research and Evidence Division ,WELLCOME TRUST ,204133-103 ,"147,163.85",
DFID,DFID,14/04/2020,Aid Programme - Accountable Grant Payments ,East and Central Africa ,Twaweza East Africa ,204804-104 ,"500,000.00",
DFID,DFID,02/04/2020,Aid Programme - Humanitarian Material Relief Assistance and Services ,Asia  Caribbean and Overseas Territories ,WORLD HEALTH ORGANISATION (WHO) ,204603-104 ,"1,059,047.60",
DFID,DFID,28/04/2020,Aid Programme - Accountable Grant Payments ,Asia  Caribbean and Overseas Territories ,Caribbean Policy Research Institute (CaPRI) ,203643-104 ,"10,080.60",
DFID,DFID,30/04/2020,Aid Programme - Voluntary contributions ,Economic Development Division ,EITI Secretariat ,203308-117 ,"100,000.00",
DFID,DFID,06/04/2020,Project delivery costs – supplier services ,Middle East and North Africa Division ,Ecorys UK Ltd ,300359-101 ,"117,609.00",
DFID,DFID,08/04/2020,Project delivery costs – supplier services ,East and Central Africa ,Ecorys UK Ltd ,300589-105 ,"47,936.88",
DFID,DFID,23/04/2020,Aid Programme - Voluntary contributions ,Research and Evidence Division ,BILL & MELINDA GATES FOUNDATION (USD) ,300442-101 ,"2,025,931.93",
DFID,DFID,07/04/2020,Aid Programme - Accountable Grant Payments ,Asia  Caribbean and Overseas Territories ,Consumer Unity & Trust Society ,204469-109 ,"26,536.00",
DFID,DFID,09/04/2020,Aid Programme - Accountable Grant Payments ,Asia  Caribbean and Overseas Territories ,Consumer Unity & Trust Society ,204469-109 ,"32,893.00",
DFID,DFID,07/04/2020,Aid Programme - Accountable Grant Payments ,Asia  Caribbean and Overseas Territories ,Consumer Unity & Trust Society ,204469-114 ,"13,519.00",
DFID,DFID,07/04/2020,Aid Programme - Accountable Grant Payments ,Economic Development Division ,Carnegie Endowment for International Peace ,300626-101 ,"181,671.00",
DFID,DFID,06/04/2020,Project delivery costs – supplier services ,West and Southern Africa ,BMB Mott Macdonald ,204242-102 ,"354,945.91",
DFID,DFID,20/04/2020,Project delivery costs – supplier services ,East and Central Africa ,BMB Mott Macdonald ,204903-105 ,"803,120.77",
DFID,DFID,23/04/2020,Aid Programme - Accountable Grant Payments ,Asia  Caribbean and Overseas Territories ,UCEP - Underpriveliged Childrens Education Programs ,203870-104 ,"144,000.00",
DFID,DFID,22/04/2020,Aid Programme - Accountable Grant Payments ,Middle East and North Africa Division ,Agency For Technical Cooperation And Development (Acted) ,300540-104 ,"69,233.98",
DFID,DFID,24/04/2020,Aid Programme - Accountable Grant Payments ,Asia  Caribbean and Overseas Territories ,Center for International Forestry Research (CIFOR) (GBP) ,300185-101 ,"61,899.00",
DFID,DFID,16/04/2020,Project delivery costs – supplier services ,Asia  Caribbean and Overseas Territories ,Cardno Emerging Markets (UK) Ltd ,202328-107 ,"34,504.59",
DFID,DFID,20/04/2020,Fund monies to be managed and dispersed by the supplier ,Research and Evidence Division ,Cardno Emerging Markets (UK) Ltd ,203048-105 ,"387,646.08",
DFID,DFID,20/04/2020,Fund monies to be managed and dispersed by the supplier ,Research and Evidence Division ,Cardno Emerging Markets (UK) Ltd ,203048-106 ,"62,786.03",
DFID,DFID,20/04/2020,Project delivery costs – supplier services ,East and Central Africa ,Cardno Emerging Markets (UK) Ltd ,205052-102 ,"5,032.23",
DFID,DFID,22/04/2020,Project delivery costs – supplier services ,East and Central Africa ,Cardno Emerging Markets (UK) Ltd ,205052-102 ,"125,739.16",
DFID,DFID,22/04/2020,Project delivery costs – supplier services ,East and Central Africa ,Cardno Emerging Markets (UK) Ltd ,205052-102 ,"64,777.00",
DFID,DFID,22/04/2020,Project delivery costs – supplier services ,East and Central Africa ,Cardno Emerging Markets (UK) Ltd ,205052-104 ,"9,249.45",
DFID,DFID,14/04/2020,Project delivery costs – supplier services ,Economic Development Division ,Cardno Emerging Markets (UK) Ltd ,205222-111 ,"233,239.00",
DFID,DFID,14/04/2020,Project delivery costs – supplier services ,Economic Development Division ,Cardno Emerging Markets (UK) Ltd ,205222-111 ,"262,686.00",
DFID,DFID,30/04/2020,Subscriptions ,Communications Division ,NEWSPAPER LICENSING AGENCY ,100197-101 ,"13,314.67",
DFID,DFID,14/04/2020,Aid Programme - Core contributions ,Middle East and North Africa Division , USAID ,300802-107 ,"375,000.00",
DFID,DFID,01/04/2020,Bank Charges/Services ,Group Operations ,Government Actuary's Department ,100182-101 ,"3,213.85",
DFID,DFID,20/04/2020,Aid Programme - Accountable Grant Payments ,Asia  Caribbean and Overseas Territories ,National Democratic Institute (Ndi) ,204613-102 ,"93,105.00",
DFID,DFID,17/04/2020,Aid Programme - Accountable Grant Payments ,Asia  Caribbean and Overseas Territories ,National Democratic Institute (Ndi) ,204613-102 ,"65,945.00",
DFID,DFID,29/04/2020,Aid Programme - Voluntary contributions ,East and Central Africa ,UNDP MULTI-PARTNER TRUST FUND OFFICE (USD) ACCOUNT ,204019-106 ,"7,250,000.00",
DFID,DFID,21/04/2020,Aid Programme - Core contributions ,Research and Evidence Division ,Asian Vegetable Research and Development Center (AVRDC) ,205271-102 ,"1,200,000.00",
DFID,DFID,30/04/2020,Aid Programme - Accountable Grant Payments ,Asia  Caribbean and Overseas Territories ,THE GURKHA WELFARE SCHEME ,203187-102 ,"1,399,477.47",
DFID,DFID,30/04/2020,Aid Programme - Accountable Grant Payments ,Asia  Caribbean and Overseas Territories ,THE GURKHA WELFARE SCHEME ,203187-103 ,"190,877.53",
DFID,DFID,20/04/2020,Data Network - land lines ,Business Solutions Division Level ,NAYATEL (PVT) LTD ,203329-102 ,"2,024.26",
DFID,DFID,24/04/2020,Aid Programme - Accountable Grant Payments ,East and Central Africa ,IFPRI ,300559-110 ,"316,806.54",
DFID,DFID,22/04/2020,Aid Programme - Core contributions ,Research and Evidence Division ,Drugs for Neglected Diseases Initiative ,300341-103 ,"4,046,875.00",
DFID,DFID,20/04/2020,Project delivery costs – supplier services ,East and Central Africa ,Cowatersogema International Inc ,300553-101 ,"324,158.29",
DFID,DFID,20/04/2020,Project delivery costs – supplier services ,East and Central Africa ,Cowatersogema International Inc ,300553-101 ,"218,212.90",
DFID,DFID,23/04/2020,Project delivery costs – supplier services ,Research and Evidence Division ,Cowatersogema International Inc ,300655-102 ,"233,416.01",
DFID,DFID,23/04/2020,Project delivery costs – supplier services ,Economic Development Division ,Palladium International ,202939-121 ,"60,866.40",
DFID,DFID,23/04/2020,Project delivery costs – supplier services ,Economic Development Division ,Palladium International ,202939-121 ,"638,424.52",
DFID,DFID,15/04/2020,Project delivery costs – supplier services ,West and Southern Africa ,Palladium International ,202992-101 ,"148,512.44",
DFID,DFID,03/04/2020,Project delivery costs – supplier services ,West and Southern Africa ,Palladium International ,204640-113 ,"13,390.27",
DFID,DFID,21/04/2020,Project delivery costs – supplier services ,West and Southern Africa ,Palladium International ,300035-104 ,"21,928.42",
DFID,DFID,29/04/2020,Project delivery costs – supplier services ,Economic Development Division ,Palladium International ,300291-101 ,"66,817.87",
DFID,DFID,20/04/2020,Project delivery costs – supplier services ,Asia  Caribbean and Overseas Territories ,Palladium International ,300435-105 ,"15,877.04",
DFID,DFID,20/04/2020,Project delivery costs – supplier services ,Asia  Caribbean and Overseas Territories ,Palladium International ,300435-105 ,"78,636.27",
DFID,DFID,01/04/2020,Aid Programme - Voluntary contributions ,Research and Evidence Division ,International Monetary Fund (GBP) ,202960-105 ,"1,700,000.00",
DFID,DFID,09/04/2020,Aid Programme - Voluntary contributions ,Asia  Caribbean and Overseas Territories ,International Monetary Fund (GBP) ,300524-101 ,"630,000.00",
DFID,DFID,21/04/2020,Aid Programme - Contributions to Debt Relief ,International Relations Division ,International Monetary Fund (GBP) ,300996-101 ,"40,000,000.00",
DFID,DFID,06/04/2020,Aid Programme - Trust Funds contributions ,International Relations Division ,International Monetary Fund (GBP) ,301162-101 ,"75,000,000.00",
DFID,DFID,03/04/2020,Project delivery costs – supplier services ,Economic Development Division ,Basel Institute On Governance ,205181-108 ,"4,466.93",
DFID,DFID,03/04/2020,Project delivery costs – supplier services ,Economic Development Division ,Basel Institute On Governance ,205181-108 ,"4,150.67",
DFID,DFID,17/04/2020,Aid Programme - Core contributions ,Climate and Environment Division ,The World Bank (EFO) ,202745-110 ,"1,083,083.00",
DFID,DFID,30/04/2020,Aid Programme - Voluntary contributions ,East and Central Africa ,The World Bank (EFO) ,205128-101 ,"115,000.00",
DFID,DFID,24/04/2020,Aid Programme - Voluntary contributions ,Economic Development Division ,The World Bank (EFO) ,300539-104 ,"155,000.00",
DFID,DFID,23/04/2020,Project delivery costs – supplier services ,Asia  Caribbean and Overseas Territories ,LAND EQUITY INTERNATIONAL PTY LTD ,300424-101 ,"282,000.00",
DFID,DFID,09/04/2020,Aid Programme - Core contributions ,Research and Evidence Division ,The Foundation for Innovative Diagnostics (FIND) ,300341-102 ,"12,800,000.00",
DFID,DFID,14/04/2020,Aid Programme - Core contributions ,Policy Division ,GAVI ,204240-101 ,"200,000,000.00",
DFID,DFID,27/04/2020,Encashment of Promissory Notes ,Climate and Environment Division ,Global Environment Facility ,202216-104 ,"1,834,000.00",
DFID,DFID,15/04/2020,Encashment of Promissory Notes ,International Relations Division ,International Development Association ,202969-108 ,"35,962,500.00",
DFID,DFID,03/04/2020,Encashment of Promissory Notes ,International Relations Division ,Asian Development Fund ,203547-104 ,"4,450,000.00",
DFID,DFID,15/04/2020,Encashment of Promissory Notes ,International Relations Division ,International Development Association,204002-107 ,"110,903,000.00",
DFID,DFID,27/04/2020,Encashment of Promissory Notes ,Climate and Environment Division ,Global Environment Facility ,204056-101 ,"1,890,000.00",
DFID,DFID,27/04/2020,Encashment of Promissory Notes ,Climate and Environment Division ,Global Environment Facility ,204056-102 ,"2,835,000.00",
DFID,DFID,15/04/2020,Encashment of Promissory Notes ,International Relations Division ,International Development Association,204085-102 ,"91,205,000.00",
DFID,DFID,03/04/2020,Encashment of Promissory Notes ,International Relations Division ,Asian Development Fund ,204673-101 ,"5,225,000.00",
DFID,DFID,27/04/2020,Encashment of Promissory Notes ,Asia  Caribbean and Overseas Territories ,Caribbean Infrastructure Fund ,205157-102 ,"2,987,950.78",
DFID,DFID,27/04/2020,Encashment of Promissory Notes ,Asia  Caribbean and Overseas Territories ,Caribbean Infrastructure Fund ,205157-105 ,"2,501,540.18",
DFID,DFID,27/04/2020,Encashment of Promissory Notes ,Asia  Caribbean and Overseas Territories ,Caribbean Infrastructure Fund ,205157-106 ,"222,628.37",
DFID,DFID,27/04/2020,Encashment of Promissory Notes ,Asia  Caribbean and Overseas Territories ,Caribbean Infrastructure Fund ,205157-108 ,"795,577.10",
DFID,DFID,27/04/2020,Encashment of Promissory Notes ,Asia  Caribbean and Overseas Territories ,Caribbean Infrastructure Fund ,205157-109 ,"56,043.72",
DFID,DFID,27/04/2020,Encashment of Promissory Notes ,Asia  Caribbean and Overseas Territories ,Caribbean Infrastructure Fund ,205157-111 ,"132,586.46",
DFID,DFID,27/04/2020,Encashment of Promissory Notes ,Asia  Caribbean and Overseas Territories ,Caribbean Infrastructure Fund ,205157-112 ,"17,329.31",
DFID,DFID,27/04/2020,Encashment of Promissory Notes ,Climate and Environment Division ,Global Environment Facility ,300057-101 ,"5,445,000.00",
DFID,DFID,27/04/2020,Encashment of Promissory Notes ,Climate and Environment Division ,Global Environment Facility ,300057-102 ,"7,755,000.00",
DFID,DFID,27/04/2020,Encashment of Promissory Notes ,Climate and Environment Division ,Global Environment Facility ,300057-103 ,"3,300,000.00",
DFID,DFID,09/04/2020,Project delivery costs – supplier services ,East and Central Africa ,DANISH REFUGEE COUNCIL ,205143-107 ,"662,522.09",
DFID,DFID,09/04/2020,Aid Programme - Accountable Grant Payments ,Middle East and North Africa Division ,Supplier Name withheld ,300086-101 ,"452,407.10",
DFID,DFID,15/04/2020,Aid Programme - Accountable Grant Payments ,Middle East and North Africa Division ,Supplier Name withheld ,300086-101 ,"846,986.48",
DFID,DFID,20/04/2020,Aid Programme - Accountable Grant Payments ,Middle East and North Africa Division ,Supplier Name withheld ,300086-101 ,"453,228.97",
DFID,DFID,09/04/2020,Project delivery costs – supplier services ,East and Central Africa ,DANISH REFUGEE COUNCIL ,300531-106 ,"19,787.71",
DFID,DFID,17/04/2020,Project delivery costs – supplier services ,Humanitarian  Security and Migration Division ,DANISH REFUGEE COUNCIL ,300828-103 ,"27,182.58",
DFID,DFID,17/04/2020,Project delivery costs – supplier services ,Humanitarian  Security and Migration Division ,DANISH REFUGEE COUNCIL ,300828-103 ,"16,828.73",
DFID,DFID,15/04/2020,Aid Programme - Accountable Grant Payments ,West and Southern Africa ,DANISH REFUGEE COUNCIL ,300832-104 ,"25,801.78",
DFID,DFID,21/04/2020,Project delivery costs – supplier services ,West and Southern Africa ,HERA ,300158-103 ,"72,749.39",
DFID,DFID,09/04/2020,Aid Programme - Accountable Grant Payments ,Research and Evidence Division ,MASSACHUSETTS INSTITUTE OF TECHNOLOGY ,204291-102 ,"135,754.00",
DFID,DFID,23/04/2020,Aid Programme - Accountable Grant Payments ,Asia  Caribbean and Overseas Territories ,The Asia Foundation (GBP) ,204623-101 ,"115,903.00",
DFID,DFID,23/04/2020,Aid Programme - Accountable Grant Payments ,Asia  Caribbean and Overseas Territories ,The Asia Foundation (GBP) ,204623-101 ,"146,285.00",
DFID,DFID,24/04/2020,Aid Programme - Trust Funds contributions ,Economic Development Division ,World Trade Organization (USD) ,204713-106 ,"312,500.00",
DFID,DFID,08/04/2020,Data Network - land lines ,Business Solutions Division Level ,Virgin Media Business ,200002-217 ,"106,799.70",Data Network - land lines 
DFID,DFID,06/04/2020,Aid Programme - Accountable Grant Payments ,Middle East and North Africa Division ,Norwegian Refugee Council ,300680-103 ,"428,201.00",
DFID,DFID,27/04/2020,Aid Programme - Accountable Grant Payments ,East and Central Africa ,Education Development Trust ,204463-108 ,"1,387,770.77",
DFID,DFID,24/04/2020,Project delivery costs – supplier services ,East and Central Africa ,Education Development Trust ,300236-102 ,"91,204.46",
DFID,DFID,02/04/2020,Project delivery costs – supplier services ,East and Central Africa ,Education Development Trust ,300236-102 ,"17,019.72",
DFID,DFID,02/04/2020,Project delivery costs – supplier services ,East and Central Africa ,Education Development Trust ,300236-102 ,"926,410.75",
DFID,DFID,21/04/2020,Aid Programme - Voluntary contributions ,Middle East and North Africa Division ,Social Fund for Development ,300527-101 ,"4,200,000.00",
DFID,DFID,28/04/2020,Aid Programme - Strategic Grant Arrangement payments ,Research and Evidence Division ,USDA-ARS ,300644-105 ,"315,000.00",
DFID,DFID,14/04/2020,Research and development costs - supplier services ,Research and Evidence Division ,University Of Edinburgh - Finance Department ,204326-102 ,"282,891.56",
DFID,DFID,29/04/2020,Aid Programme - Accountable Grant Payments ,East and Central Africa ,AgDevCo ,204012-102 ,"54,829.00",
DFID,DFID,30/04/2020,Aid Programme - Accountable Grant Payments ,East and Central Africa ,AgDevCo ,204270-107 ,"66,994.00",
DFID,DFID,29/04/2020,Aid Programme - Accountable Grant Payments ,East and Central Africa ,AgDevCo ,204270-110 ,"46,291.41",
DFID,DFID,29/04/2020,Aid Programme - Accountable Grant Payments ,West and Southern Africa ,AgDevCo ,204270-111 ,"22,218.99",
DFID,DFID,29/04/2020,Aid Programme - Accountable Grant Payments ,East and Central Africa ,AgDevCo ,204270-119 ,"69,437.60",
DFID,DFID,29/04/2020,Aid Programme - Accountable Grant Payments ,West and Southern Africa ,AgDevCo ,204270-126 ,"12,162.00",
DFID,DFID,29/04/2020,Aid Programme - Accountable Grant Payments ,West and Southern Africa ,AgDevCo ,204270-128 ,"18,243.00",
DFID,DFID,30/04/2020,Aid Programme - Accountable Grant Payments ,East and Central Africa ,AgDevCo ,204270-130 ,"112,987.00",
DFID,DFID,29/04/2020,Aid Programme - Accountable Grant Payments ,East and Central Africa ,AgDevCo ,204940-107 ,"29,894.00",
DFID,DFID,28/04/2020,Project delivery costs – supplier services ,Asia  Caribbean and Overseas Territories ,IMC Worldwide Ltd ,202328-107 ,"97,850.67",
DFID,DFID,28/04/2020,Project delivery costs – supplier services ,Asia  Caribbean and Overseas Territories ,IMC Worldwide Ltd ,202328-107 ,"101,619.33",
DFID,DFID,24/04/2020,Project delivery costs – supplier services ,West and Southern Africa ,IMC Worldwide Ltd ,202455-107 ,"14,575.78",
DFID,DFID,15/04/2020,Project delivery costs – supplier services ,West and Southern Africa ,IMC Worldwide Ltd ,202455-102 ,"164,490.00",
DFID,DFID,10/04/2020,Project delivery costs – supplier services ,West and Southern Africa ,IMC Worldwide Ltd ,202455-104 ,"14,194.64",
DFID,DFID,03/04/2020,Project delivery costs – supplier services ,West and Southern Africa ,IMC Worldwide Ltd ,202585-105 ,"52,881.38",
DFID,DFID,24/04/2020,Project delivery costs – supplier services ,East and Central Africa ,IMC Worldwide Ltd ,202692-108 ,"79,735.50",
DFID,DFID,27/04/2020,Project delivery costs – supplier services ,Asia  Caribbean and Overseas Territories ,IMC Worldwide Ltd ,202697-104 ,"233,958.00",
DFID,DFID,27/04/2020,Project delivery costs – supplier services ,Asia  Caribbean and Overseas Territories ,IMC Worldwide Ltd ,202697-104 ,"43,099.00",
DFID,DFID,28/04/2020,Project delivery costs – supplier services ,Asia  Caribbean and Overseas Territories ,IMC Worldwide Ltd ,202697-111 ,"148,866.76",
DFID,DFID,28/04/2020,Project delivery costs – supplier services ,Asia  Caribbean and Overseas Territories ,IMC Worldwide Ltd ,202697-111 ,"159,827.21",
DFID,DFID,23/04/2020,Project delivery costs – supplier services ,Asia  Caribbean and Overseas Territories ,IMC Worldwide Ltd ,203186-108 ,"41,665.00",
DFID,DFID,23/04/2020,Project delivery costs – supplier services ,Asia  Caribbean and Overseas Territories ,IMC Worldwide Ltd ,203186-109 ,"294,849.48",
DFID,DFID,23/04/2020,Project delivery costs – supplier services ,Asia  Caribbean and Overseas Territories ,IMC Worldwide Ltd ,203186-111 ,"19,281.47",
DFID,DFID,30/04/2020,Project delivery costs – supplier services ,Asia  Caribbean and Overseas Territories ,IMC Worldwide Ltd ,203427-109 ,"178,203.08",
DFID,DFID,30/04/2020,Project delivery costs – supplier services ,Asia  Caribbean and Overseas Territories ,IMC Worldwide Ltd ,203427-110 ,"178,203.08",
DFID,DFID,16/04/2020,Project delivery costs – supplier services ,Climate and Environment Division ,IMC Worldwide Ltd ,203516-101 ,"8,476.61",
DFID,DFID,01/04/2020,Project delivery costs – supplier services ,Policy Division ,IMC Worldwide Ltd ,203709-112 ,"39,481.00",
DFID,DFID,17/04/2020,Project delivery costs – supplier services ,Research and Evidence Division ,IMC Worldwide Ltd ,203844-104 ,"122,246.10",
DFID,DFID,29/04/2020,Project delivery costs – supplier services ,Economic Development Division ,IMC Worldwide Ltd ,204250-116 ,"20,865.00",
DFID,DFID,29/04/2020,Project delivery costs – supplier services ,Economic Development Division ,IMC Worldwide Ltd ,204253-105 ,545.10,
DFID,DFID,23/04/2020,Project delivery costs – supplier services ,Economic Development Division ,IMC Worldwide Ltd ,204253-105 ,"30,839.60",
DFID,DFID,28/04/2020,Research and development costs - supplier services ,Research and Evidence Division ,IMC Worldwide Ltd ,204806-107 ,"7,821.21",
DFID,DFID,30/04/2020,Project delivery costs – supplier services ,West and Southern Africa ,IMC Worldwide Ltd ,205058-103 ,"27,863.70",
DFID,DFID,08/04/2020,Project delivery costs – supplier services ,West and Southern Africa ,IMC Worldwide Ltd ,205195-102 ,"1,400,695.56",
DFID,DFID,06/04/2020,Project delivery costs – supplier services ,Humanitarian  Security and Migration Division ,IMC Worldwide Ltd ,300466-102 ,"245,274.00",
DFID,DFID,07/04/2020,Project delivery costs – supplier services ,East and Central Africa ,IMC Worldwide Ltd ,300559-115 ,"25,610.25",
DFID,DFID,23/04/2020,Project delivery costs – supplier services ,Middle East and North Africa Division ,IMC Worldwide Ltd ,300667-106 ,"30,171.32",
DFID,DFID,22/04/2020,Project delivery costs – supplier services ,Asia  Caribbean and Overseas Territories ,Integrity Research And Consultancy ,203264-103 ,"30,877.08",
DFID,DFID,16/04/2020,Project delivery costs – supplier services ,West and Southern Africa ,Integrity Research And Consultancy ,203445-112 ,"19,828.00",
DFID,DFID,21/04/2020,Project delivery costs – supplier services ,West and Southern Africa ,Integrity Research And Consultancy ,203445-112 ,"7,931.20",
DFID,DFID,21/04/2020,Project delivery costs – supplier services ,East and Central Africa ,Integrity Research And Consultancy ,205067-101 ,"11,135.70",
DFID,DFID,21/04/2020,Project delivery costs – supplier services ,East and Central Africa ,Integrity Research And Consultancy ,205067-101 ,"43,087.19",
DFID,DFID,08/04/2020,Project delivery costs – supplier services ,Asia  Caribbean and Overseas Territories ,Integrity Research And Consultancy ,300435-104 ,"19,070.23",
DFID,DFID,23/04/2020,Project delivery costs – supplier services ,Asia  Caribbean and Overseas Territories ,Integrity Research And Consultancy ,300435-104 ,"159,805.40",
DFID,DFID,16/04/2020,Project delivery costs – supplier services ,Humanitarian  Security and Migration Division ,Integrity Research And Consultancy ,300461-108 ,"324,203.01",
DFID,DFID,24/04/2020,Project delivery costs – supplier services ,West and Southern Africa ,DAI Europe ,201857-102 ,"84,691.11",
DFID,DFID,24/04/2020,Project delivery costs – supplier services ,West and Southern Africa ,DAI Europe ,201857-102 ,"53,772.30",
DFID,DFID,24/04/2020,Project delivery costs – supplier services ,West and Southern Africa ,DAI Europe ,201857-102 ,"135,217.19",
DFID,DFID,06/04/2020,Project delivery costs – supplier services ,West and Southern Africa ,DAI Europe ,201857-102 ,"121,649.57",
DFID,DFID,06/04/2020,Project delivery costs – supplier services ,West and Southern Africa ,DAI Europe ,201857-105 ,"88,091.06",
DFID,DFID,24/04/2020,Project delivery costs – supplier services ,West and Southern Africa ,DAI Europe ,201857-105 ,"97,915.89",
DFID,DFID,24/04/2020,Project delivery costs – supplier services ,West and Southern Africa ,DAI Europe ,201857-105 ,"38,938.56",
DFID,DFID,24/04/2020,Project delivery costs – supplier services ,West and Southern Africa ,DAI Europe ,201857-105 ,"61,328.05",
DFID,DFID,09/04/2020,Project delivery costs – supplier services ,East and Central Africa ,DAI Europe ,202596-105 ,"327,480.64",
DFID,DFID,09/04/2020,Project delivery costs – supplier services ,East and Central Africa ,DAI Europe ,202596-105 ,"111,239.44",
DFID,DFID,09/04/2020,Project delivery costs – supplier services ,East and Central Africa ,DAI Europe ,202596-105 ,"195,000.00",
DFID,DFID,09/04/2020,Project delivery costs – supplier services ,East and Central Africa ,DAI Europe ,202596-105 ,"212,011.85",
DFID,DFID,21/04/2020,Project delivery costs – supplier services ,West and Southern Africa ,DAI Europe ,203922-101 ,"190,828.97",
DFID,DFID,02/04/2020,Project delivery costs – supplier services ,East and Central Africa ,DAI Europe ,204437-102 ,"7,935.75",
DFID,DFID,02/04/2020,Project delivery costs – supplier services ,East and Central Africa ,DAI Europe ,204437-104 ,"5,594.36",
DFID,DFID,30/04/2020,Project delivery costs – supplier services ,East and Central Africa ,DAI Europe ,204471-102 ,"17,956.13",
DFID,DFID,30/04/2020,Project delivery costs – supplier services ,Asia  Caribbean and Overseas Territories ,DAI Europe ,204604-102 ,"391,254.30",
DFID,DFID,06/04/2020,Project delivery costs – supplier services ,Asia  Caribbean and Overseas Territories ,DAI Europe ,204608-101 ,"54,665.00",
DFID,DFID,30/04/2020,Project delivery costs – supplier services ,Asia  Caribbean and Overseas Territories ,DAI Europe ,204672-102 ,"660,576.18",
DFID,DFID,03/04/2020,Research and development costs - supplier services ,Research and Evidence Division ,DAI Europe ,204806-106 ,"3,464.30",
DFID,DFID,15/04/2020,Project delivery costs – supplier services ,West and Southern Africa ,DAI Europe ,204822-101 ,"158,984.68",
DFID,DFID,22/04/2020,Project delivery costs – supplier services ,West and Southern Africa ,DAI Europe ,204918-101 ,"10,862.70",
DFID,DFID,03/04/2020,Project delivery costs – supplier services ,East and Central Africa ,DAI Europe ,205143-103 ,"31,842.92",
DFID,DFID,03/04/2020,Project delivery costs – supplier services ,East and Central Africa ,DAI Europe ,205143-103 ,"478,740.52",
DFID,DFID,27/04/2020,Project delivery costs – supplier services ,East and Central Africa ,DAI Europe ,205143-103 ,"27,340.24",
DFID,DFID,17/04/2020,Project delivery costs – supplier services ,Humanitarian  Security and Migration Division ,DAI Europe ,205176-106 ,"52,143.44",
DFID,DFID,21/04/2020,Project delivery costs – supplier services ,East and Central Africa ,DAI Europe ,205206-109 ,"29,878.00",
DFID,DFID,23/04/2020,Project delivery costs – supplier services ,East and Central Africa ,DAI Europe ,205242-102 ,"29,159.19",
DFID,DFID,17/04/2020,Project delivery costs – supplier services ,East and Central Africa ,DAI Europe ,205242-102 ,"89,985.06",
DFID,DFID,20/04/2020,Project delivery costs – supplier services ,East and Central Africa ,DAI Europe ,300102-104 ,"14,754.20",
DFID,DFID,17/04/2020,Project delivery costs – supplier services ,Research and Evidence Division ,DAI Europe ,300126-107 ,"103,967.55",
DFID,DFID,30/04/2020,Project delivery costs – supplier services ,Policy Division ,DAI Europe ,300310-105 ,"92,133.60",
DFID,DFID,30/04/2020,Project delivery costs – supplier services ,Policy Division ,DAI Europe ,300310-105 ,"22,262.52",
DFID,DFID,15/04/2020,Project delivery costs – supplier services ,Asia  Caribbean and Overseas Territories ,DAI Europe ,300392-101 ,"194,686.20",
DFID,DFID,28/04/2020,Project delivery costs – supplier services ,Middle East and North Africa Division ,DAI Europe ,300426-103 ,"36,596.72",
DFID,DFID,24/04/2020,Project delivery costs – supplier services ,Policy Division ,DAI Europe ,300467-101 ,"5,976.00",
DFID,DFID,24/04/2020,Project delivery costs – supplier services ,Policy Division ,DAI Europe ,300467-101 ,567.60,
DFID,DFID,24/04/2020,Project delivery costs – supplier services ,Policy Division ,DAI Europe ,300467-101 ,"28,398.64",
DFID,DFID,24/04/2020,Project delivery costs – supplier services ,Policy Division ,DAI Europe ,300467-101 ,"9,257.62",
DFID,DFID,02/04/2020,Project delivery costs – supplier services ,Asia  Caribbean and Overseas Territories ,DAI Europe ,300923-101 ,"13,628.30",
DFID,DFID,14/04/2020,Aid Programme - Accountable Grant Payments ,Asia  Caribbean and Overseas Territories ,Marie Stopes International (Msi) ,203100-106 ,"551,197.00",
DFID,DFID,06/04/2020,Project delivery costs – supplier services ,East and Central Africa ,Marie Stopes International (Msi) ,205241-103 ,"767,123.00",
DFID,DFID,22/04/2020,Project delivery costs – supplier services ,East and Central Africa ,Marie Stopes International (Msi) ,205241-103 ,"339,567.00",
DFID,DFID,06/04/2020,Project delivery costs – supplier services ,East and Central Africa ,Marie Stopes International (Msi) ,205241-104 ,"426,524.00",
DFID,DFID,14/04/2020,Project delivery costs – supplier services ,Policy Division ,PATH ,204954-102 ,"10,522.11",
DFID,DFID,28/04/2020,Project delivery costs – supplier services ,Policy Division ,PATH ,204954-102 ,"8,368.66",
DFID,DFID,14/04/2020,Project delivery costs – supplier services ,Policy Division ,PATH ,204954-102 ,"24,695.01",
DFID,DFID,09/04/2020,Project delivery costs – supplier services ,Policy Division ,PATH ,204954-102 ,"89,728.98",
DFID,DFID,09/04/2020,Project delivery costs – supplier services ,Policy Division ,PATH ,204954-102 ,"1,111.97",
DFID,DFID,09/04/2020,Project delivery costs – supplier services ,Policy Division ,PATH ,204954-102 ,"1,266.25",
DFID,DFID,09/04/2020,Project delivery costs – supplier services ,Policy Division ,PATH ,204954-102 ,"14,132.46",
DFID,DFID,09/04/2020,Project delivery costs – supplier services ,Policy Division ,PATH ,204954-102 ,"20,298.58",
DFID,DFID,09/04/2020,Project delivery costs – supplier services ,Policy Division ,PATH ,204954-102 ,"27,013.20",
DFID,DFID,09/04/2020,Project delivery costs – supplier services ,Policy Division ,PATH ,204954-102 ,"4,577.18",
DFID,DFID,09/04/2020,Project delivery costs – supplier services ,Policy Division ,PATH ,204954-102 ,"31,213.55",
DFID,DFID,09/04/2020,Project delivery costs – supplier services ,Policy Division ,PATH ,204954-102 ,"33,044.50",
DFID,DFID,09/04/2020,Project delivery costs – supplier services ,Policy Division ,PATH ,204954-102 ,"50,816.98",
DFID,DFID,21/04/2020,Project delivery costs – supplier services ,West and Southern Africa ,WYG International ,204842-102 ,"132,663.00",
DFID,DFID,06/04/2020,Project delivery costs – supplier services ,East and Central Africa ,WYG International ,300230-105 ,"9,085.95",
DFID,DFID,27/04/2020,Project delivery costs – supplier services ,West and Southern Africa ,WYG International ,300274-101 ,"581,390.16",
DFID,DFID,17/04/2020,Project delivery costs – supplier services ,Climate and Environment Division ,LTS International Ltd ,201724-135 ,"64,057.50",
DFID,DFID,21/04/2020,Project delivery costs – supplier services ,Climate and Environment Division ,LTS International Ltd ,201724-135 ,"13,150.00",
DFID,DFID,22/04/2020,Aid Programme - Accountable Grant Payments ,Policy Division ,Mannion Daniels Limited ,202035-104 ,"1,368.00",
DFID,DFID,24/04/2020,Project delivery costs – supplier services ,Policy Division ,Mannion Daniels Limited ,202035-102 ,"1,513.12",
DFID,DFID,24/04/2020,Project delivery costs – supplier services ,Policy Division ,Mannion Daniels Limited ,202035-107 ,"843,063.10",
DFID,DFID,24/04/2020,Project delivery costs – supplier services ,Policy Division ,Mannion Daniels Limited ,202035-107 ,"45,617.65",
DFID,DFID,22/04/2020,Aid Programme - Accountable Grant Payments ,Policy Division ,Mannion Daniels Limited ,205210-106 ,"1,368.00",
DFID,DFID,14/04/2020,Aid Programme - Accountable Grant Payments ,Research and Evidence Division ,MIT/J-PAL ,300049-101 ,"954,335.00",
DFID,DFID,17/04/2020,Aid Programme - Programme Contribution ,International Relations Division ,Commonwealth Scholarships Comm ,204043-101 ,"6,944,000.00",
DFID,DFID,17/04/2020,Other Admin Costs ,International Relations Division ,Commonwealth Scholarships Comm ,204043-102 ,"106,000.00",Other Admin Costs 
DFID,DFID,30/04/2020,Project delivery costs – supplier services ,East and Central Africa ,Transtec ,205128-107 ,"582,098.95",
DFID,DFID,17/04/2020,Project delivery costs – supplier services ,Middle East and North Africa Division ,Transtec ,300680-101 ,"210,344.00",
DFID,DFID,15/04/2020,Project delivery costs – supplier services ,Middle East and North Africa Division ,Transtec ,300726-104 ,"274,334.55",
DFID,DFID,02/04/2020,Project delivery costs – supplier services ,Asia  Caribbean and Overseas Territories ,Pricewaterhousecoopers Pvt Ltd ,204135-101 ,"126,468.00",
DFID,DFID,02/04/2020,Project delivery costs – supplier services ,Asia  Caribbean and Overseas Territories ,Pricewaterhousecoopers Pvt Ltd ,204135-101 ,"14,014.00",
DFID,DFID,02/04/2020,Project delivery costs – supplier services ,Asia  Caribbean and Overseas Territories ,Pricewaterhousecoopers Pvt Ltd ,204135-102 ,"77,854.00",
DFID,DFID,23/04/2020,Aid Programme - Voluntary contributions ,Asia  Caribbean and Overseas Territories ,CDB ,205157-114 ,"40,617.69",
DFID,DFID,29/04/2020,Project delivery costs – supplier services ,East and Central Africa ,IMA World Health ,203631-102 ,"1,056,557.00",
DFID,DFID,23/04/2020,Project delivery costs – supplier services ,West and Southern Africa ,IMA World Health ,300158-101 ,"5,644,794.00",
DFID,DFID,16/04/2020,Hostile Environment Training ,East and Central Africa ,KBR ,100016-110 ,569.60,
DFID,DFID,27/04/2020,Training Providers/Facilitation Services ,Research and Evidence Division ,KBR ,202331-101 ,683.52,
DFID,DFID,22/04/2020,Hostile Environment Training ,Research and Evidence Division ,KBR ,300769-102 ,683.52,
DFID,DFID,23/04/2020,Aid Programme - Accountable Grant Payments ,West and Southern Africa ,JHU Center for Communication Programs ,300191-103 ,"418,443.00",
DFID,DFID,15/04/2020,Project delivery costs – supplier services ,Policy Division ,SNV Netherlands Development Organisation ,203572-101 ,"1,307,716.00",
DFID,DFID,30/04/2020,Aid Programme - Accountable Grant Payments ,West and Southern Africa ,SNV Netherlands Development Organisation ,204856-108 ,"345,756.00",
DFID,DFID,29/04/2020,Aid Programme - Accountable Grant Payments ,Asia  Caribbean and Overseas Territories ,Idara-e-Taleem-o-Aagahi (ITA) ,202697-113 ,"333,961.00",
DFID,DFID,29/04/2020,Aid Programme - Accountable Grant Payments ,Asia  Caribbean and Overseas Territories ,Idara-e-Taleem-o-Aagahi (ITA) ,202697-113 ,"92,435.00",
DFID,DFID,09/04/2020,"Repairs, Maint, Alter - Property & Constrct. Services",Business Solutions Division Level ,Flexiform Business Furniture Limited ,200004-146 ,"48,179.80",
DFID,DFID,28/04/2020,Aid Programme - Accountable Grant Payments ,Research and Evidence Division ,International Union Against Tuberculosis and Lung Disease ,202506-104 ,"171,105.01",
DFID,DFID,08/04/2020,Data Network -Satellite ,Communications Division ,Applied Satellite Technology Systems Ltd ,100197-101 ,"1,187.08",
DFID,DFID,23/04/2020,Aid Programme - Accountable Grant Payments ,Humanitarian  Security and Migration Division ,UK-Med ,202878-103 ,"741,097.00",
DFID,DFID,21/04/2020,Project delivery costs – supplier services ,Humanitarian  Security and Migration Division ,UK-Med ,205176-106 ,"6,329.47",
DFID,DFID,21/04/2020,Project delivery costs – supplier services ,Humanitarian  Security and Migration Division ,UK-Med ,205176-106 ,"15,225.04",
DFID,DFID,02/04/2020,Project delivery costs – supplier services ,Humanitarian  Security and Migration Division ,UK-Med ,205176-106 ,"4,505.80",
DFID,DFID,02/04/2020,Project delivery costs – supplier services ,Humanitarian  Security and Migration Division ,UK-Med ,205176-106 ,"11,987.27",
DFID,DFID,09/04/2020,Aid Programme - Accountable Grant Payments ,West and Southern Africa ,UK-Med ,300832-103 ,"17,527.48",
DFID,DFID,21/04/2020,Project delivery costs – supplier services ,Humanitarian  Security and Migration Division ,UK-Med ,301150-105 ,"38,171.94",
DFID,DFID,21/04/2020,Aid Programme - Accountable Grant Payments ,Asia  Caribbean and Overseas Territories ,Centre for Economic Research in Pakistan (CERP) ,202328-113 ,"26,000.00",
DFID,DFID,21/04/2020,Aid Programme - Accountable Grant Payments ,Asia  Caribbean and Overseas Territories ,Centre for Economic Research in Pakistan (CERP) ,202328-113 ,"26,000.00",
DFID,DFID,02/04/2020,Project delivery costs – supplier services ,Asia  Caribbean and Overseas Territories ,Shardul Amarchand Mangaldas & Co ,202869-103 ,"5,751.25",
DFID,DFID,02/04/2020,Project delivery costs – supplier services ,Asia  Caribbean and Overseas Territories ,Shardul Amarchand Mangaldas & Co ,202869-103 ,"1,450.00",
DFID,DFID,02/04/2020,Project delivery costs – supplier services ,Asia  Caribbean and Overseas Territories ,Shardul Amarchand Mangaldas & Co ,202869-103 ,"2,286.50",
DFID,DFID,06/04/2020,Project delivery costs – supplier services ,Asia  Caribbean and Overseas Territories ,Shardul Amarchand Mangaldas & Co ,202869-103 ,"1,463.12",
DFID,DFID,30/04/2020,Other ICT ,Business Solutions Division Level ,CDW Ltd ,200002-176 ,"136,222.67",Other ICT 
DFID,DFID,02/04/2020,Consultancy Services (As defined by central gov) ,Finance and Corporate Performance Division ,Maplecroft ,100201-101 ,"67,811.95",Consultancy Services (As defined by central gov) 
DFID,DFID,02/04/2020,Computer Software Licenses ,Finance and Corporate Performance Division ,Maplecroft ,100201-101 ,"4,500.00",
DFID,DFID,30/04/2020,Aid Programme - Accountable Grant Payments ,Policy Division ,Guttmacher Institute ,203177-101 ,"698,694.00",
DFID,DFID,22/04/2020,Aid Programme - Accountable Grant Payments ,Asia  Caribbean and Overseas Territories ,People in Need ,300462-101 ,"50,944.27",
DFID,DFID,22/04/2020,Aid Programme - Accountable Grant Payments ,Asia  Caribbean and Overseas Territories ,People in Need ,300462-101 ,"138,444.59",
DFID,DFID,21/04/2020,Aid Programme - Other Financial Aid to Government ,Asia  Caribbean and Overseas Territories ,St Helena Corporate Finance ,300806-101 ,"8,844,503.00",
DFID,DFID,21/04/2020,Aid Programme - Other Financial Aid to Government ,Asia  Caribbean and Overseas Territories ,St Helena Corporate Finance ,300806-102 ,"1,155,497.00",
DFID,DFID,03/04/2020,Aid Programme - Accountable Grant Payments ,Research and Evidence Division ,Energy Saving Trust ,300111-101 ,"284,699.54",
DFID,DFID,09/04/2020,Aid Programme - Other Financial Aid to Government ,Asia  Caribbean and Overseas Territories ,INDECOM Jamaica ,204232-103 ,"48,013.00",
DFID,DFID,23/04/2020,Aid Programme - Other Financial Aid to Government ,Asia  Caribbean and Overseas Territories ,INDECOM Jamaica ,300970-103 ,"307,550.00",
DFID,DFID,30/04/2020,Aid Programme - Other Financial Aid to Government ,Asia  Caribbean and Overseas Territories ,Government of Montserrat - Montserrat Budget Support Grant ,204728-101 ,"8,165,792.45",
DFID,DFID,30/04/2020,Aid Programme - Other Financial Aid to Government ,Asia  Caribbean and Overseas Territories ,Government of Montserrat - Montserrat Budget Support Grant ,204728-102 ,"566,037.74",
DFID,DFID,30/04/2020,Aid Programme - Other Financial Aid to Government ,Asia  Caribbean and Overseas Territories ,Government of Montserrat - Montserrat Budget Support Grant ,204728-103 ,"851,033.02",
DFID,DFID,16/04/2020,Aid Programme - Other Financial Aid to Government ,Asia  Caribbean and Overseas Territories ,Pitcairn Islands Office ,300235-101 ,"605,000.00",
DFID,DFID,16/04/2020,Aid Programme - Accountable Grant Payments ,Research and Evidence Division ,University of Manchester  Research ,300484-101 ,"153,575.29",
DFID,DFID,16/04/2020,Aid Programme - Accountable Grant Payments ,Research and Evidence Division ,University of Manchester  Research ,300484-101 ,"126,301.76",
DFID,DFID,28/04/2020,Project delivery costs – supplier services ,West and Southern Africa ,KPMG IDAS WA ,202493-106 ,"20,854.93",
DFID,DFID,28/04/2020,Aid Programme - Voluntary contributions ,Economic Development Division ,CDC Group plc ,202939-119 ,"331,847.71",
DFID,DFID,28/04/2020,Aid Programme - Voluntary contributions ,Economic Development Division ,CDC Group plc ,202939-120 ,"600,000.00",
DFID,DFID,28/04/2020,Aid Programme - Voluntary contributions ,Economic Development Division ,CDC Group plc ,202939-120 ,"758,756.07",
DFID,DFID,21/04/2020,Aid Programme - Accountable Grant Payments ,East and Central Africa ,World Vision Australia ,204888-107 ,"492,075.00",
DFID,DFID,15/04/2020,Aid Programme - Other Financial Aid to Government ,East and Central Africa ,Ministry of Finance Tanzania  Public Financial Management Reform Programme ,300379-101 ,"1,900,000.00",
DFID,DFID,08/04/2020,Aid Programme - Other Financial Aid to Government ,Asia  Caribbean and Overseas Territories ,Ministry of Finance and Planning Jamaica  Financial Investigation Division ,204232-102 ,"14,500.00",
DFID,DFID,23/04/2020,Aid Programme - Other Financial Aid to Government ,Asia  Caribbean and Overseas Territories ,Ministry of Finance and Planning Jamaica  FID Task Force ,300970-102 ,"197,500.00",
DFID,DFID,06/04/2020,Aid Programme - Accountable Grant Payments ,West and Southern Africa ,Catholic Relief Services - USCCB ,300067-111 ,"97,665.00",
DFID,DFID,01/04/2020,Aid Programme - Accountable Grant Payments ,East and Central Africa ,WFT Africa ,204941-101 ,"142,324.00",
DFID,DFID,01/04/2020,Aid Programme - Accountable Grant Payments ,East and Central Africa ,WFT Africa ,204941-102 ,"60,996.00",
DFID,DFID,01/04/2020,Aid Programme - Accountable Grant Payments ,East and Central Africa ,WFT Africa ,204941-104 ,"87,205.00",
DFID,DFID,01/04/2020,Aid Programme - Accountable Grant Payments ,East and Central Africa ,WFT Africa ,204941-105 ,"37,374.00",
DFID,DFID,17/04/2020,Aid Programme - Humanitarian Material Relief Assistance and Services ,East and Central Africa ,UNDP Multi-Partner Trust Fund Office ,300196-102 ,"25,000,000.00",
DFID,DFID,06/04/2020,Aid Programme - Humanitarian Material Relief Assistance and Services ,East and Central Africa ,UNDP Multi-Partner Trust Fund Office ,300535-101 ,"5,000,000.00",
DFID,DFID,15/04/2020,Subscriptions ,Communications Division ,Intelogy Limited ,100197-101 ,"1,584.00",
DFID,DFID,30/04/2020,Data Network - land lines ,Business Solutions Division Level ,Liquid Telecommunications Rwanda Ltd ,200002-121 ,"1,101.78",
DFID,DFID,30/04/2020,Data Network - land lines ,Business Solutions Division Level ,Liquid Telecommunications Rwanda Ltd ,203329-102 ,"2,570.83",
DFID,DFID,02/04/2020,Computer Software Licenses ,Business Solutions Division Level ,Evolve Secure Solutions Limited ,200002-176 ,"45,198.19",Computer Software Licenses 
DFID,DFID,15/04/2020,Promotional Print Advertising ,West and Southern Africa ,SHREEJI INVESTMENTS LTD ,100254-101 ,"1,907.93",
DFID,DFID,08/04/2020,Aid Programme - Accountable Grant Payments ,East and Central Africa ,CANADEM ,204019-107 ,"37,080.14",
DFID,DFID,08/04/2020,Aid Programme - Humanitarian Material Relief Assistance and Services ,Asia  Caribbean and Overseas Territories ,CANADEM ,204603-101 ,"21,389.32",
DFID,DFID,16/04/2020,Project delivery costs – supplier services ,West and Southern Africa ,CANADEM ,300719-105 ,"33,480.92",
DFID,DFID,27/04/2020,Project delivery costs – supplier services ,West and Southern Africa ,CANADEM ,300719-105 ,"13,333.72",
DFID,DFID,08/04/2020,Aid Programme - Accountable Grant Payments ,West and Southern Africa ,CANADEM ,300832-104 ,"12,989.43",
DFID,DFID,27/04/2020,Aid Programme - Accountable Grant Payments ,West and Southern Africa ,CANADEM ,300832-104 ,"1,765.08",
DFID,DFID,27/04/2020,Aid Programme - Accountable Grant Payments ,West and Southern Africa ,CANADEM ,300832-104 ,"6,256.84",
DFID,DFID,27/04/2020,Aid Programme - Accountable Grant Payments ,West and Southern Africa ,CANADEM ,300832-104 ,977.59,
DFID,DFID,27/04/2020,Aid Programme - Accountable Grant Payments ,West and Southern Africa ,CANADEM ,300832-104 ,"4,706.76",
DFID,DFID,27/04/2020,Aid Programme - Accountable Grant Payments ,West and Southern Africa ,CANADEM ,300832-104 ,"1,945.14",
DFID,DFID,27/04/2020,Aid Programme - Accountable Grant Payments ,West and Southern Africa ,CANADEM ,300832-104 ,"34,058.03",
DFID,DFID,27/04/2020,Aid Programme - Accountable Grant Payments ,West and Southern Africa ,CANADEM ,300832-104 ,"30,794.19",
DFID,DFID,28/04/2020,Project delivery costs – supplier services ,West and Southern Africa ,RENAN CONSULT LTD ,204918-101 ,"3,218.15",
DFID,DFID,28/04/2020,Aid Programme - Accountable Grant Payments ,Asia  Caribbean and Overseas Territories ,Health And Nutrition Development Society - (HANDS) ,300238-106 ,"87,300.00",
DFID,DFID,15/04/2020,Aid Programme - Accountable Grant Payments ,Asia  Caribbean and Overseas Territories ,Health And Nutrition Development Society - (HANDS) ,300238-106 ,"84,855.60",
DFID,DFID,03/04/2020,Data Network - land lines ,Business Solutions Division Level ,Annodata Business Systems Limited ,200002-124 ,"1,125.00",
DFID,DFID,02/04/2020,Aid Programme - Accountable Grant Payments ,Middle East and North Africa Division ,Queen Mary University of London ,300534-101 ,"78,207.46",
DFID,DFID,21/04/2020,Training - Course Fees ,Research and Evidence Division ,Global Partners Governance ,202331-101 ,"2,450.00",
DFID,DFID,21/04/2020,Training - Course Fees ,Research and Evidence Division ,Global Partners Governance ,300836-101 ,"3,675.00",
DFID,DFID,14/04/2020,Telephone Usage & services ,West and Southern Africa ,Emerging Markets Telecommunications Services Ltd ,101622-106 ,"3,557.78",
DFID,DFID,30/04/2020,Project delivery costs – supplier services ,Climate and Environment Division ,Emerging Markets Private Equity Association (EMPEA) ,201733-116 ,"3,117.66",
DFID,DFID,03/04/2020,Project delivery costs – supplier services ,Policy Division ,Cambridge University Technical Services Limited ,204766-103 ,"16,784.04",
DFID,DFID,14/04/2020,Other ICT ,Business Solutions Division Level ,Leidos Innovations UK ,200002-173 ,"53,563.52",Other ICT 
DFID,DFID,14/04/2020,Other ICT ,Business Solutions Division Level ,Leidos Innovations UK ,200002-173 ,"84,259.99",Other ICT
DFID,DFID,22/04/2020,Project delivery costs – supplier services ,East and Central Africa ,KPMG Advisory Limited ,204804-102 ,"129,945.81",
DFID,DFID,22/04/2020,Aid Programme - Trust Funds contributions ,Asia  Caribbean and Overseas Territories ,UNOPS-HQ ,201239-101 ,"12,500,000.00",
DFID,DFID,16/04/2020,Aid Programme - Voluntary contributions ,East and Central Africa ,UNOPS-HQ ,205069-103 ,"1,984,660.00",
DFID,DFID,30/04/2020,Aid Programme - Trust Funds contributions ,Economic Development Division ,UNOPS-HQ ,205260-102 ,"812,500.00",
DFID,DFID,27/04/2020,Aid Programme - Voluntary contributions ,Asia  Caribbean and Overseas Territories ,UNOPS-HQ ,205268-101 ,"96,607.10",
DFID,DFID,27/04/2020,Aid Programme - Voluntary contributions ,Asia  Caribbean and Overseas Territories ,UNOPS-HQ ,205268-102 ,"884,594.90",
DFID,DFID,28/04/2020,Aid Programme - Refugee Relief Payments ,Asia  Caribbean and Overseas Territories ,UNOPS-HQ ,205268-112 ,"1,521,787.00",
DFID,DFID,15/04/2020,Aid Programme - Voluntary contributions ,Middle East and North Africa Division ,UNOPS-HQ ,300001-101 ,"300,000.00",
DFID,DFID,22/04/2020,Joint programme contribution ,Policy Division ,European Commission GBP 8225 ,204953-101 ,"945,000.00",
DFID,DFID,20/04/2020,Data Network - land lines ,Business Solutions Division Level ,Lintel SL Limited ,200002-121 ,"2,648.78",
DFID,DFID,20/04/2020,Data Network - land lines ,Business Solutions Division Level ,Lintel SL Limited ,200002-121 ,"2,648.78",
DFID,DFID,20/04/2020,Data Network - land lines ,Business Solutions Division Level ,Lintel SL Limited ,203329-102 ,"6,180.49",
DFID,DFID,20/04/2020,Data Network - land lines ,Business Solutions Division Level ,Lintel SL Limited ,203329-102 ,"6,180.49",
DFID,DFID,20/04/2020,Aid Programme - Accountable Grant Payments ,Asia  Caribbean and Overseas Territories ,Perkumpulan Dewan Bisnis Indonesia Untuk Pembangunan Berkelanjutan ,204623-107 ,"33,609.72",
DFID,DFID,07/04/2020,Project delivery costs – supplier services ,West and Southern Africa ,PRICEWATERHOUSECOOPERS  GHANA ,202455-104 ,"28,396.73",
DFID,DFID,29/04/2020,Project delivery costs – supplier services ,Research and Evidence Division ,Research Fish Ltd ,300615-101 ,"12,900.00",
DFID,DFID,30/04/2020,Aid Programme - Accountable Grant Payments ,Economic Development Division ,International Federation of Accountants ,204680-101 ,"624,244.00",
DFID,DFID,03/04/2020,Aid Programme - Accountable Grant Payments ,Economic Development Division ,Advocates for international Development ,205191-109 ,"319,410.34",
DFID,DFID,02/04/2020,Air fares ,East and Central Africa ,ELITE TRAVEL SERVICES LIMITED ,101616-101 ,"1,679.59",
DFID,DFID,02/04/2020,Air fares ,East and Central Africa ,ELITE TRAVEL SERVICES LIMITED ,101616-101 ,715.90,
DFID,DFID,01/04/2020,Air fares ,East and Central Africa ,ELITE TRAVEL SERVICES LIMITED ,101616-101 ,829.11,
DFID,DFID,01/04/2020,Air fares ,East and Central Africa ,ELITE TRAVEL SERVICES LIMITED ,101616-101 ,"1,361.06",
DFID,DFID,20/04/2020,Staff Travel - Air Fares ,East and Central Africa ,ELITE TRAVEL SERVICES LIMITED ,101616-101 ,"4,749.10",
DFID,DFID,20/04/2020,Air fares ,East and Central Africa ,ELITE TRAVEL SERVICES LIMITED ,101625-113 ,"1,305.30",
DFID,DFID,24/04/2020,Air fares ,East and Central Africa ,ELITE TRAVEL SERVICES LIMITED ,101630-101 ,"1,538.86",
DFID,DFID,20/04/2020,Staff Travel - Air Fares ,East and Central Africa ,ELITE TRAVEL SERVICES LIMITED ,101630-101 ,"7,735.00",
DFID,DFID,20/04/2020,Air fares ,East and Central Africa ,ELITE TRAVEL SERVICES LIMITED ,101630-101 ,"1,213.61",
DFID,DFID,02/04/2020,Hotels - Accommodation only ,Economic Development Division ,ELITE TRAVEL SERVICES LIMITED ,202373-101 ,595.89,
DFID,DFID,02/04/2020,Hotels - Accommodation only ,Economic Development Division ,ELITE TRAVEL SERVICES LIMITED ,202373-101 ,595.89,
DFID,DFID,02/04/2020,Hotels - Accommodation only ,Economic Development Division ,ELITE TRAVEL SERVICES LIMITED ,202373-101 ,595.89,
DFID,DFID,17/04/2020,Hotels - Accommodation only ,East and Central Africa ,ELITE TRAVEL SERVICES LIMITED ,300650-106 ,"1,064.33",
DFID,DFID,20/04/2020,Hotels - Accommodation only ,East and Central Africa ,ELITE TRAVEL SERVICES LIMITED ,300650-106 ,708.66,
DFID,DFID,09/04/2020,Project delivery costs – supplier services ,Asia  Caribbean and Overseas Territories ,KPMG (Registered) ,204059-102 ,"36,352.00",
DFID,DFID,09/04/2020,Aid Programme - Accountable Grant Payments ,Asia  Caribbean and Overseas Territories ,Aga Khan Foundation  Kyrgyz ,300051-102 ,"50,490.00",
DFID,DFID,09/04/2020,Aid Programme - Accountable Grant Payments ,Asia  Caribbean and Overseas Territories ,Aga Khan Foundation  Kyrgyz ,300619-102 ,"140,583.00",
DFID,DFID,27/04/2020,Aid Programme - Accountable Grant Payments ,Asia  Caribbean and Overseas Territories ,SouthSouthNorth Africa Projects NPC ,204794-109 ,"25,635.62",
DFID,DFID,30/04/2020,Aid Programme - Partnership Programme Arrangements ,Asia  Caribbean and Overseas Territories ,Development Research Center of the State Council of China ,204737-101 ,"94,804.00",
DFID,DFID,21/04/2020,Aid Programme - Voluntary contributions ,Economic Development Division ,FSD Africa ,205231-118 ,"36,187.00",
DFID,DFID,21/04/2020,Aid Programme - Voluntary contributions ,Economic Development Division ,FSD Africa ,205238-101 ,"5,094,748.00",
DFID,DFID,29/04/2020,Aid Programme - Accountable Grant Payments ,Economic Development Division ,Transparency International UK ,300157-109 ,"207,891.69",
DFID,DFID,30/04/2020,Project delivery costs – supplier services ,West and Southern Africa ,ATELIER JURIDICO ,203317-104 ,"3,112.99",
DFID,DFID,09/04/2020,Aid Programme - Accountable Grant Payments ,Research and Evidence Division ,Community Partners International ,205053-126 ,"30,563.00",
DFID,DFID,06/04/2020,Project delivery costs – supplier services ,Asia  Caribbean and Overseas Territories ,Behavioural Insights Ltd ,204059-111 ,"29,728.80",
DFID,DFID,21/04/2020,Project delivery costs – supplier services ,Asia  Caribbean and Overseas Territories ,Behavioural Insights Ltd ,204059-111 ,"59,457.60",
DFID,DFID,30/04/2020,Aid Programme - Accountable Grant Payments ,East and Central Africa ,Global Initiative against Transnational Organized Crime ,204227-109 ,"1,216,561.00",
DFID,DFID,17/04/2020,Aid Programme - Accountable Grant Payments ,Humanitarian  Security and Migration Division ,Global Initiative against Transnational Organized Crime ,300358-121 ,"69,347.76",
DFID,DFID,09/04/2020,Aid Programme - Accountable Grant Payments ,Humanitarian  Security and Migration Division ,Global Initiative against Transnational Organized Crime ,300358-122 ,"47,096.75",
DFID,DFID,30/04/2020,Aid Programme - Accountable Grant Payments ,East and Central Africa ,AgDevCo Limited USD ,204940-110 ,"2,404,424.14",
DFID,DFID,08/04/2020,Aid Programme - Trust Funds contributions ,Middle East and North Africa Division ,European Bank for Reconstruction and Development - UK ICGI ,205101-110 ,"516,023.00",
DFID,DFID,30/04/2020,Aid Programme - Refugee Relief Payments ,Asia  Caribbean and Overseas Territories ,The UN World Food Programme ,205268-112 ,"1,500,000.00",
DFID,DFID,20/04/2020,Fund monies to be managed and dispersed by the supplier ,Policy Division ,Manniondaniels UK Aid Direct ,202035-102 ,"15,625.46",
DFID,DFID,20/04/2020,Fund monies to be managed and dispersed by the supplier ,Policy Division ,Manniondaniels UK Aid Direct ,202035-102 ,"25,576.37",
DFID,DFID,20/04/2020,Fund monies to be managed and dispersed by the supplier ,Policy Division ,Manniondaniels UK Aid Direct ,202035-102 ,"8,891.23",
DFID,DFID,20/04/2020,Fund monies to be managed and dispersed by the supplier ,Policy Division ,Manniondaniels UK Aid Direct ,202035-102 ,"90,872.75",
DFID,DFID,20/04/2020,Fund monies to be managed and dispersed by the supplier ,Policy Division ,Manniondaniels UK Aid Direct ,202035-102 ,"22,679.37",
DFID,DFID,20/04/2020,Fund monies to be managed and dispersed by the supplier ,Policy Division ,Manniondaniels UK Aid Direct ,202035-106 ,"121,412.20",
DFID,DFID,20/04/2020,Fund monies to be managed and dispersed by the supplier ,Policy Division ,Manniondaniels UK Aid Direct ,202035-106 ,"18,777.58",
DFID,DFID,20/04/2020,Fund monies to be managed and dispersed by the supplier ,Policy Division ,Manniondaniels UK Aid Direct ,205210-101 ,"32,517.94",
DFID,DFID,20/04/2020,Fund monies to be managed and dispersed by the supplier ,Policy Division ,Manniondaniels UK Aid Direct ,205210-101 ,"17,545.64",
DFID,DFID,08/04/2020,Aid Programme - Core contributions ,Research and Evidence Division ,International Centre of Insect Physiology and Ecology (ICIPE) ,205271-103 ,"1,050,000.00",
DFID,DFID,27/04/2020,Training Providers/Facilitation Services ,Research and Evidence Division ,Environmental Health Group  London School Of Hygiene And Tropical Medicine ,202331-101 ,"5,000.00",
DFID,DFID,27/04/2020,Training Providers/Facilitation Services ,Research and Evidence Division ,Environmental Health Group  London School Of Hygiene And Tropical Medicine ,300836-101 ,"7,500.00",
DFID,DFID,21/04/2020,Government Car Scheme UK ,Top Management Group ,Department for Transport - GCS ,100232-108 ,"6,902.67",
DFID,DFID,21/04/2020,Government Car Scheme UK ,Top Management Group ,Department for Transport - GCS ,100232-110 ,"6,902.67",
DFID,DFID,30/04/2020,Government Car Scheme UK ,Top Management Group ,Department for Transport - GCS ,100232-110 ,"1,476.00",
DFID,DFID,30/04/2020,Government Car Scheme UK ,Top Management Group ,Department for Transport - GCS ,100232-110 ,"1,485.00",
DFID,DFID,14/04/2020,Computer Software Licenses ,Finance and Corporate Performance Division ,Agylia Group Limited ,204846-103 ,"25,272.00",Computer Software Licenses 
DFID,DFID,07/04/2020,other information and communication technologies ,Business Solutions Division Level ,NTA Monitor Ltd ,200002-176 ,"3,001.43",
DFID,DFID,17/04/2020,Aid Programme - Accountable Grant Payments ,East and Central Africa ,Trocaire (ROI) ,204437-104 ,"53,932.32",
DFID,DFID,02/04/2020,Project delivery costs – supplier services ,East and Central Africa ,Mckinsey And Company Inc East Africa Pty Ltd ,204635-102 ,"160,261.71",
DFID,DFID,03/04/2020,Training Providers/Facilitation Services ,Finance and Corporate Performance Division ,Korn Ferry (UK) Ltd ,100201-101 ,"20,148.00",
DFID,DFID,17/04/2020,Training - Course Fees ,Human Resources ,Korn Ferry (UK) Ltd ,100269-153 ,"7,054.45",
DFID,DFID,17/04/2020,Training - Course Fees ,Human Resources ,Korn Ferry (UK) Ltd ,100269-153 ,"2,775.00",
DFID,DFID,27/04/2020,Training Providers/Facilitation Services ,West and Southern Africa ,Korn Ferry (UK) Ltd ,101620-101 ,529.20,
DFID,DFID,06/04/2020,Training Providers/Facilitation Services ,Economic Development Division ,CSL - KPMG LLP ,100086-101 ,"2,500.00",
DFID,DFID,01/04/2020,Training Providers/Facilitation Services ,Human Resources ,CSL - KPMG LLP ,100269-153 ,"2,500.00",
DFID,DFID,01/04/2020,Training Providers/Facilitation Services ,Human Resources ,CSL - KPMG LLP ,100269-153 ,"2,920.00",
DFID,DFID,06/04/2020,Training Providers/Facilitation Services ,Human Resources ,CSL - KPMG LLP ,100269-153 ,"2,500.00",
DFID,DFID,06/04/2020,Training Providers/Facilitation Services ,Human Resources ,CSL - KPMG LLP ,100269-153 ,"2,500.00",
DFID,DFID,21/04/2020,Aid Programme - Trust Funds contributions ,Economic Development Division ,EU Africa Trust Fund (EUTF Africa) ,300165-103 ,"880,902.49",
DFID,DFID,15/04/2020,Aid Programme - Trust Funds contributions ,Economic Development Division ,EU Africa Trust Fund (EUTF Africa) ,300165-104 ,"6,558,237.60",
DFID,DFID,20/04/2020,Aid Programme - Accountable Grant Payments ,Economic Development Division ,Shift Project Ltd ,203448-101 ,"63,639.00",
DFID,DFID,28/04/2020,Aid Programme - Humanitarian Material Relief Assistance and Services ,Humanitarian  Security and Migration Division ,Merseyside Fire and Rescue Authority ,202878-103 ,"155,665.79",
DFID,DFID,16/04/2020,Aid Programme - Accountable Grant Payments ,Economic Development Division ,B Lab ,203448-101 ,"187,104.00",
DFID,DFID,07/04/2020,other information and communication technologies ,Business Solutions Division Level ,Teleperformance Ltd ,200002-169 ,545.26,
DFID,DFID,30/04/2020,Facilities Management payments ,Group Operations ,Interserve Facilities Management Limited ,100106-101 ,"7,878.60",
DFID,DFID,30/04/2020,Repairs  Maint  Alter - Cleaning Costs ,Group Operations ,Interserve Facilities Management Limited ,100106-101 ,"13,768.67",
DFID,DFID,30/04/2020,Repairs  Maint  Alter - Property & Constrct. Services ,Group Operations ,Interserve Facilities Management Limited ,100106-101 ,"58,930.72",Repairs  Maint  Alter - Property & Constrct. Services 
DFID,DFID,30/04/2020,Facilities Management payments ,Group Operations ,Interserve Facilities Management Limited ,100106-101 ,"5,283.45",
DFID,DFID,30/04/2020,Postage Costs ,Group Operations ,Interserve Facilities Management Limited ,100106-101 ,"1,259.88",
DFID,DFID,01/04/2020,Repairs  Maint  Alter - Property & Constrct. Services ,Group Operations ,Interserve Facilities Management Limited ,100106-101 ,"55,914.26",Repairs  Maint  Alter - Property & Constrct. Services 
DFID,DFID,01/04/2020,Facilities Management payments ,Group Operations ,Interserve Facilities Management Limited ,100106-101 ,"7,878.60",
DFID,DFID,01/04/2020,Repairs  Maint  Alter - Cleaning Costs ,Group Operations ,Interserve Facilities Management Limited ,100106-101 ,"13,768.67",
DFID,DFID,01/04/2020,Facilities Management payments ,Group Operations ,Interserve Facilities Management Limited ,100106-101 ,"5,283.45",
DFID,DFID,01/04/2020,Postage Costs ,Group Operations ,Interserve Facilities Management Limited ,100106-101 ,"1,259.88",
DFID,DFID,30/04/2020,Facilities Management payments ,Group Operations ,Interserve Facilities Management Limited ,203717-101 ,"10,996.13",
DFID,DFID,30/04/2020,Repairs  Maint  Alter - Cleaning Costs ,Group Operations ,Interserve Facilities Management Limited ,203717-101 ,"14,769.21",
DFID,DFID,30/04/2020,Repairs  Maint  Alter - Property & Constrct. Services ,Group Operations ,Interserve Facilities Management Limited ,203717-101 ,"75,644.72",Repairs  Maint  Alter - Property & Constrct. Services 
DFID,DFID,30/04/2020,Facilities Management payments ,Group Operations ,Interserve Facilities Management Limited ,203717-101 ,"5,971.75",
DFID,DFID,30/04/2020,Repairs  Maint  Alter - Removal & waste disposal services ,Group Operations ,Interserve Facilities Management Limited ,203717-101 ,"1,381.33",
DFID,DFID,30/04/2020,Other Building Products ,Group Operations ,Interserve Facilities Management Limited ,203717-101 ,"2,201.65",
DFID,DFID,01/04/2020,Facilities Management payments ,Group Operations ,Interserve Facilities Management Limited ,203717-101 ,"10,996.13",
DFID,DFID,01/04/2020,Repairs  Maint  Alter - Cleaning Costs ,Group Operations ,Interserve Facilities Management Limited ,203717-101 ,"14,769.21",
DFID,DFID,01/04/2020,Facilities Management payments ,Group Operations ,Interserve Facilities Management Limited ,203717-101 ,"5,971.75",
DFID,DFID,01/04/2020,Repairs  Maint  Alter - Removal & waste disposal services ,Group Operations ,Interserve Facilities Management Limited ,203717-101 ,"1,381.33",
DFID,DFID,02/04/2020,Cleaning Costs ,Group Operations ,Interserve Facilities Management Limited ,203717-101 ,516.17,
DFID,DFID,02/04/2020,Repairs  Maintenance and Alterations – Other Building Costs ,Group Operations ,Interserve Facilities Management Limited ,203717-101 ,"6,833.20",
DFID,DFID,02/04/2020,Repairs  Maintenance and Alterations – Other Building Costs ,Group Operations ,Interserve Facilities Management Limited ,203717-101 ,805.63,
DFID,DFID,02/04/2020,Repairs  Maintenance and Alterations – Other Building Costs ,Group Operations ,Interserve Facilities Management Limited ,203717-101 ,"7,021.30",
DFID,DFID,08/04/2020,Repairs  Maintenance and Alterations – Other Building Costs ,Group Operations ,Interserve Facilities Management Limited ,203717-101 ,"1,944.78",
DFID,DFID,01/04/2020,Repairs  Maint  Alter - Property & Constrct. Services ,Group Operations ,Interserve Facilities Management Limited ,203717-101 ,"95,008.68",Repairs  Maint  Alter - Property & Constrct. Services 
DFID,DFID,30/04/2020,Facilities Management payments ,Economic Development Division ,Interserve Facilities Management Limited ,205231-123 ,556.09,
DFID,DFID,01/04/2020,Facilities Management payments ,Economic Development Division ,Interserve Facilities Management Limited ,205231-123 ,677.32,
DFID,DFID,14/04/2020,Aid Programme - Accountable Grant Payments ,West and Southern Africa ,Purposeful Productions ,300183-105 ,"764,665.39",
DFID,DFID,15/04/2020,Aid Programme - Accountable Grant Payments ,Economic Development Division ,Oxford Policy Fellowship ,205191-105 ,"248,218.03",
DFID,DFID,28/04/2020,Aid Programme - Accountable Grant Payments ,Economic Development Division ,Fund for the City of New York / Open Contracting Partnership ,300157-104 ,"163,077.00",
DFID,DFID,29/04/2020,Project delivery costs – supplier services ,Research and Evidence Division ,Knight Frank India Pvt. Ltd. ,205053-122 ,"5,709.00",
DFID,DFID,08/04/2020,Aid Programme - Accountable Grant Payments ,Economic Development Division ,Reall ,204609-102 ,"641,595.00",
DFID,DFID,29/04/2020,Fund monies to be managed and dispersed by the supplier ,Research and Evidence Division ,WYG International (For Grant Payments) ,204563-105 ,"751,203.52",
DFID,DFID,29/04/2020,Fund monies to be managed and dispersed by the supplier ,Climate and Environment Division ,Crown Agents Bank Limited ,202745-104 ,"1,090,036.84",
DFID,DFID,28/04/2020,Fund monies to be managed and dispersed by the supplier ,Climate and Environment Division ,Crown Agents Bank Limited ,202745-104 ,"245,474.58",
DFID,DFID,15/04/2020,Project delivery costs – supplier services ,Economic Development Division ,Crown Agents Bank Limited ,203375-106 ,"3,229.11",
DFID,DFID,17/04/2020,Project delivery costs – supplier services ,Economic Development Division ,Crown Agents Bank Limited ,203375-107 ,"10,433.20",
DFID,DFID,17/04/2020,Project delivery costs – supplier services ,Economic Development Division ,Crown Agents Bank Limited ,203375-107 ,"24,344.00",
DFID,DFID,02/04/2020,Project delivery costs – supplier services ,Economic Development Division ,Crown Agents Bank Limited ,203375-107 ,"10,433.20",
DFID,DFID,22/04/2020,Fund monies to be managed and dispersed by the supplier ,Research and Evidence Division ,Crown Agents Bank Limited ,204415-103 ,"100,545.00",
DFID,DFID,22/04/2020,Fund monies to be managed and dispersed by the supplier ,Research and Evidence Division ,Crown Agents Bank Limited ,204415-103 ,"10,090.00",
DFID,DFID,23/04/2020,Fund monies to be managed and dispersed by the supplier ,Research and Evidence Division ,Crown Agents Bank Limited ,204415-103 ,"103,000.00",
DFID,DFID,23/04/2020,Fund monies to be managed and dispersed by the supplier ,Research and Evidence Division ,Crown Agents Bank Limited ,204415-103 ,"115,000.00",
DFID,DFID,23/04/2020,Fund monies to be managed and dispersed by the supplier ,Research and Evidence Division ,Crown Agents Bank Limited ,204415-103 ,"17,700.00",
DFID,DFID,23/04/2020,Fund monies to be managed and dispersed by the supplier ,Research and Evidence Division ,Crown Agents Bank Limited ,204415-103 ,"35,400.00",
DFID,DFID,09/04/2020,Fund monies to be managed and dispersed by the supplier ,Research and Evidence Division ,Crown Agents Bank Limited ,204415-103 ,"149,698.62",
DFID,DFID,23/04/2020,Fund monies to be managed and dispersed by the supplier ,Research and Evidence Division ,Crown Agents Bank Limited ,204415-103 ,"35,730.00",
DFID,DFID,23/04/2020,Fund monies to be managed and dispersed by the supplier ,Research and Evidence Division ,Crown Agents Bank Limited ,204415-103 ,"47,375.00",
DFID,DFID,23/04/2020,Fund monies to be managed and dispersed by the supplier ,Research and Evidence Division ,Crown Agents Bank Limited ,204415-103 ,"50,433.00",
DFID,DFID,23/04/2020,Fund monies to be managed and dispersed by the supplier ,Research and Evidence Division ,Crown Agents Bank Limited ,204415-103 ,"62,500.00",
DFID,DFID,23/04/2020,Fund monies to be managed and dispersed by the supplier ,Research and Evidence Division ,Crown Agents Bank Limited ,204415-103 ,"77,000.00",
DFID,DFID,23/04/2020,Fund monies to be managed and dispersed by the supplier ,Research and Evidence Division ,Crown Agents Bank Limited ,204415-103 ,"8,920.13",
DFID,DFID,23/04/2020,Fund monies to be managed and dispersed by the supplier ,Research and Evidence Division ,Crown Agents Bank Limited ,204415-103 ,"28,750.00",
DFID,DFID,23/04/2020,Fund monies to be managed and dispersed by the supplier ,Research and Evidence Division ,Crown Agents Bank Limited ,204415-103 ,"99,452.00",
DFID,DFID,23/04/2020,Fund monies to be managed and dispersed by the supplier ,Research and Evidence Division ,Crown Agents Bank Limited ,204415-103 ,"69,001.20",
DFID,DFID,24/04/2020,Fund monies to be managed and dispersed by the supplier ,Research and Evidence Division ,Crown Agents Bank Limited ,205148-102 ,"269,695.42",
DFID,DFID,20/04/2020,Fund monies to be managed and dispersed by the supplier ,Research and Evidence Division ,Crown Agents Bank Limited ,205148-102 ,"93,964.08",
DFID,DFID,15/04/2020,Fund monies to be managed and dispersed by the supplier ,East and Central Africa ,Crown Agents Bank Limited ,300427-103 ,"131,718.00",
DFID,DFID,21/04/2020,Aid Programme - Accountable Grant Payments ,Economic Development Division ,ShareAction (Fairshare Educational Foundation) ,203448-101 ,"178,886.00",
DFID,DFID,22/04/2020,Aid Programme - Voluntary contributions ,Asia  Caribbean and Overseas Territories ,UNDP Myanmar ,204204-103 ,"619,714.00",
DFID,DFID,30/04/2020,Training - Course Fees ,East and Central Africa ,reipient name withheld,101634-101 ,600.00,
DFID,DFID,01/04/2020,Contract & Agency Staff ,Business Solutions Division Level ,LA International Computer Consultants Ltd ,200001-101 ,"2,856.00",
DFID,DFID,07/04/2020,Contract & Agency Staff ,Business Solutions Division Level ,LA International Computer Consultants Ltd ,200001-101 ,"1,428.00",
DFID,DFID,08/04/2020,Contract & Agency Staff ,Business Solutions Division Level ,LA International Computer Consultants Ltd ,200001-101 ,"1,833.36",
DFID,DFID,29/04/2020,Contract & Agency Staff ,Business Solutions Division Level ,LA International Computer Consultants Ltd ,200001-101 ,"1,466.69",
DFID,DFID,29/04/2020,Contract & Agency Staff ,Business Solutions Division Level ,LA International Computer Consultants Ltd ,200001-101 ,"1,466.69",
DFID,DFID,28/04/2020,Contract & Agency Staff ,Business Solutions Division Level ,LA International Computer Consultants Ltd ,200002-176 ,"1,142.40",
DFID,DFID,28/04/2020,Contract & Agency Staff ,Business Solutions Division Level ,LA International Computer Consultants Ltd ,200002-176 ,"1,428.00",
DFID,DFID,21/04/2020,Contract & Agency Staff ,Business Solutions Division Level ,LA International Computer Consultants Ltd ,200002-176 ,"1,142.40",
DFID,DFID,06/04/2020,Contract & Agency Staff ,Business Solutions Division Level ,LA International Computer Consultants Ltd ,200002-176 ,"1,428.00",
DFID,DFID,08/04/2020,Contract & Agency Staff ,Business Solutions Division Level ,LA International Computer Consultants Ltd ,200002-197 ,"1,466.69",
DFID,DFID,03/04/2020,Training - Course Fees ,Group Operations ,MTE Training ,204284-101 ,"1,032.00",
DFID,DFID,06/04/2020,Aid Programme - Accountable Grant Payments ,Economic Development Division ,British Asian Trust ,204722-106 ,"37,412.00",
DFID,DFID,27/04/2020,Project delivery costs – supplier services ,Asia  Caribbean and Overseas Territories ,Abt Britain Ltd ,205145-107 ,"55,791.05",
DFID,DFID,16/04/2020,Project delivery costs – supplier services ,Asia  Caribbean and Overseas Territories ,Abt Britain Ltd ,205145-107 ,"24,811.00",
DFID,DFID,07/04/2020,Training - Course Fees ,West and Southern Africa ,comenfrance ,101610-101 ,"1,169.68",
DFID,DFID,24/04/2020,Aid Programme - Accountable Grant Payments ,Asia  Caribbean and Overseas Territories ,Family Educational Services Foundation ,300238-104 ,"4,248.00",
DFID,DFID,28/04/2020,Aid Programme - Accountable Grant Payments ,Economic Development Division ,Humanity United Charitable Fund ,203448-101 ,"71,120.00",
DFID,DFID,27/04/2020,Aid Programme - Core contributions ,Research and Evidence Division ,The Task Force for Global Health Inc. ,300342-103 ,"1,655,166.27",
DFID,DFID,24/04/2020,Hotels - Accommodation only ,Middle East and North Africa Division ,Citea Apart-Hotel ,204055-101 ,"5,358.35",
DFID,DFID,28/04/2020,Project delivery costs – supplier services ,West and Southern Africa ,COGNISERVE LIMITED ,204918-101 ,"2,120.32",
DFID,DFID,28/04/2020,Project delivery costs – supplier services ,West and Southern Africa ,COGNISERVE LIMITED ,204918-101 ,"4,385.67",
DFID,DFID,24/04/2020,Project delivery costs – supplier services ,West and Southern Africa ,COGNISERVE LIMITED ,204918-101 ,"4,221.98",
DFID,DFID,16/04/2020,Aid Programme - Accountable Grant Payments ,Economic Development Division ,Imperial College of Science Technology and Medicine ,205118-104 ,"124,679.46",
DFID,DFID,15/04/2020,Other ICT ,Business Solutions Division Level ,Hewlett Packard Enterprise ,200002-176 ,"21,532.20",
DFID,DFID,17/04/2020,Other ICT ,Business Solutions Division Level ,Hewlett Packard Enterprise ,200002-176 ,"23,490.00",
DFID,DFID,15/04/2020,Aid Programme - Accountable Grant Payments ,Asia  Caribbean and Overseas Territories ,The Competitiveness Company ,300448-103 ,"50,792.77",
DFID,DFID,28/04/2020,Project delivery costs – supplier services ,West and Southern Africa ,Flame Technical Services Limited ,204918-101 ,"5,806.15",
DFID,DFID,29/04/2020,Aid Programme - Accountable Grant Payments ,Economic Development Division ,The Global Development Incubator  Inc. ,204722-101 ,"48,426.60",
DFID,DFID,03/04/2020,Aid Programme - Voluntary contributions ,Policy Division ,United Nation’s Children Fund ,204695-112 ,"111,672.00",
DFID,DFID,30/04/2020,Aid Programme - Humanitarian Material Relief Assistance and Services ,East and Central Africa ,United Nation’s Children Fund ,204805-114 ,"750,000.00",
DFID,DFID,29/04/2020,Aid Programme - Voluntary contributions ,Middle East and North Africa Division ,United Nation’s Children Fund ,300388-102 ,"5,000,000.00",
DFID,DFID,22/04/2020,Aid Programme - Core contributions ,International Relations Division ,United Nation’s Children Fund ,300396-102 ,"20,000,000.00",
DFID,DFID,24/04/2020,Aid Programme - Voluntary contributions ,Policy Division ,United Nation’s Children Fund ,300402-105 ,"5,000,000.00",
DFID,DFID,01/04/2020,Aid Programme - Voluntary contributions ,West and Southern Africa ,United Nation’s Children Fund ,300832-113 ,"765,000.00",
DFID,DFID,27/04/2020,Aid Programme - Humanitarian Material Relief Assistance and Services ,Humanitarian  Security and Migration Division ,United Nation’s Children Fund ,301150-112 ,"15,000,000.00",
DFID,DFID,30/04/2020,Aid Programme - Accountable Grant Payments ,Asia  Caribbean and Overseas Territories ,NOCN ,202865-104 ,"17,901.00",
DFID,DFID,16/04/2020,Aid Programme - Accountable Grant Payments ,Economic Development Division ,Advisory Centre on WTO Law (ACWL) ,204715-102 ,"62,500.00",
DFID,DFID,27/04/2020,Aid Programme - Accountable Grant Payments ,Asia  Caribbean and Overseas Territories ,Accelerator Nepal ,203426-111 ,"9,736.00",
DFID,DFID,22/04/2020,Project delivery costs – supplier services ,Asia  Caribbean and Overseas Territories ,Sayeman Beach Resort ,205268-112 ,886.24,
DFID,DFID,29/04/2020,Project delivery costs – supplier services ,Asia  Caribbean and Overseas Territories ,Sayeman Beach Resort ,205268-112 ,"1,816.03",
DFID,DFID,29/04/2020,Project delivery costs – supplier services ,Asia  Caribbean and Overseas Territories ,Sayeman Beach Resort ,205268-112 ,878.43,
DFID,DFID,08/04/2020,Project delivery costs – supplier services ,Research and Evidence Division ,ODI Sales Ltd ,205288-101 ,"867,215.59",
DFID,DFID,28/04/2020,Project delivery costs – supplier services ,West and Southern Africa ,SPELK MICRO CONSULT ,204918-101 ,"1,408.44",
DFID,DFID,28/04/2020,Project delivery costs – supplier services ,West and Southern Africa ,Solgift Consult ,204918-101 ,"1,584.50",
DFID,DFID,22/04/2020,Project delivery costs – supplier services ,East and Central Africa ,Fab Inc. ,204288-101 ,"24,571.50",
DFID,DFID,29/04/2020,Legal costs ,West and Southern Africa ,Dentons UKMEA LLP ,203161-103 ,"2,407.74",
DFID,DFID,24/04/2020,Aid Programme - Accountable Grant Payments ,Asia  Caribbean and Overseas Territories ,Supplier Name withheld ,300437-101 ,"72,857.00",
DFID,DFID,14/04/2020,other information and communication technologies ,Business Solutions Division Level ,IS Internet Solutions Ghana ,200002-121 ,"2,526.02",
DFID,DFID,14/04/2020,other information and communication technologies ,Business Solutions Division Level ,IS Internet Solutions Ghana ,203329-102 ,"3,713.23",
DFID,DFID,08/04/2020,Aid Programme - Accountable Grant Payments ,Research and Evidence Division ,Rockefeller Philanthropy Advisors ,204695-111 ,"486,393.27",
DFID,DFID,30/04/2020,Aid Programme - Accountable Grant Payments ,Economic Development Division ,UBS Optimus Foundation ,300539-102 ,"27,624.00",
DFID,DFID,21/04/2020,Data Network - land lines ,Business Solutions Division Level ,4G Telecom Ltd. ,200002-121 ,"3,317.53",
DFID,DFID,21/04/2020,Data Network - land lines ,East and Central Africa ,4G Telecom Ltd. ,202594-101 ,"18,296.69",
DFID,DFID,21/04/2020,Data Network - land lines ,Business Solutions Division Level ,4G Telecom Ltd. ,203329-102 ,"7,740.91",
DFID,DFID,16/04/2020,Training Providers/Facilitation Services ,Middle East and North Africa Division ,Professional Language Solutions ,101619-101 ,595.62,
DFID,DFID,16/04/2020,Training Providers/Facilitation Services ,Middle East and North Africa Division ,Professional Language Solutions ,101619-101 ,595.62,
DFID,DFID,22/04/2020,Project delivery costs – supplier services ,East and Central Africa ,Miske Witt & Associate  International ,204288-103 ,"1,012.28",
DFID,DFID,23/04/2020,Project delivery costs – supplier services ,East and Central Africa ,Miske Witt & Associate  International ,204288-103 ,"1,735.00",
DFID,DFID,21/04/2020,Other rentals ,Group Operations ,CBRE on behalf of GPA ,203717-101 ,"15,375.00",
DFID,DFID,24/04/2020,Professional member subscriptions ,Economic Development Division ,The Financial Times Limited ,205226-107 ,"23,424.00",
DFID,DFID,17/04/2020,Storage & Distribution costs ,Business Solutions Division Level ,Business Solutions (Restore) ,200002-204 ,"5,468.05",
DFID,DFID,01/04/2020,other information and communication technologies ,Business Solutions Division Level ,EOH EUROPE LIMITED ,200002-166 ,"6,508.55",
DFID,DFID,30/04/2020,Project delivery costs – supplier services ,Asia  Caribbean and Overseas Territories ,CRISIL Risk and Infrastructure Solutions Ltd. ,202867-103 ,"6,144.45",
DFID,DFID,27/04/2020,other information and communication technologies ,Business Solutions Division Level ,Pluralsight  LLC ,200001-101 ,687.18,
DFID,DFID,28/04/2020,other information and communication technologies ,Business Solutions Division Level ,Pluralsight  LLC ,200001-101 ,"1,030.40",
DFID,DFID,27/04/2020,other information and communication technologies ,BSD Service Centre ,Pluralsight  LLC ,300328-101 ,"4,358.62",
DFID,DFID,07/04/2020,Aid Programme - Accountable Grant Payments ,Policy Division ,Royal Commonwealth Ex Services League ,300740-101 ,"895,188.23",
DFID,DFID,16/04/2020,Aid Programme - Accountable Grant Payments ,West and Southern Africa ,Prospero Limited ,201980-110 ,"208,746.22",
DFID,DFID,29/04/2020,Air fares ,East and Central Africa ,Skylink Travel and Tours Ltd (USD) ,101634-101 ,"1,338.42",
DFID,DFID,29/04/2020,Air fares ,East and Central Africa ,Skylink Travel and Tours Ltd (USD) ,101634-101 ,"1,290.19",
DFID,DFID,06/04/2020,Air fares ,East and Central Africa ,Skylink Travel and Tours Ltd (USD) ,101634-101 ,"2,663.44",
DFID,DFID,08/04/2020,Hardware -Laptop PCs ,Business Solutions Division Level ,Bechtle direct Ltd ,200004-102 ,"99,423.06",
DFID,DFID,30/04/2020,Project delivery costs – supplier services ,Asia  Caribbean and Overseas Territories ,Ascensive Technologies LLP ,205142-106 ,"7,599.34",
DFID,DFID,16/04/2020,Computer Software Licenses ,Finance and Corporate Performance Division ,State of Flux Limited ,100201-101 ,"75,240.00",Computer Software Licenses 
DFID,DFID,09/04/2020,Aid Programme - Accountable Grant Payments ,Policy Division ,Humanitarian Quality Assurance Initiative ,300648-105 ,"30,000.00",
DFID,DFID,03/04/2020,Repairs  Maint  Alter - Removal & waste disposal services ,BSD Service Centre ,E Recycling Ltd t/a Euro Recycling ,300328-101 ,"1,920.00",
DFID,DFID,03/04/2020,Project delivery costs – supplier services ,Economic Development Division ,OCO Global Limited ,300592-102 ,"2,520.00",
DFID,DFID,02/04/2020,Project delivery costs - supplier services ,Business Solutions Division Level ,NETconnection Systems Ltd ,200002-224 ,"37,515.00",Project delivery costs - supplier services 
DFID,DFID,15/04/2020,Aid Programme - Other Financial Aid to Government ,Asia  Caribbean and Overseas Territories ,Government of Dominica ,300686-101 ,"187,500.00",
DFID,DFID,23/04/2020,Aid Programme - Voluntary contributions ,Asia  Caribbean and Overseas Territories ,Palli Karma-Sahayak Foundation (PKSF) ,203852-101 ,"1,600,000.00",
DFID,DFID,23/04/2020,Aid Programme - Voluntary contributions ,Asia  Caribbean and Overseas Territories ,Palli Karma-Sahayak Foundation (PKSF) ,203852-104 ,"1,000,000.00",
DFID,DFID,09/04/2020,Project delivery costs – supplier services ,Asia  Caribbean and Overseas Territories ,ASB Associates (SMC Pvt) Ltd ,204619-113 ,"28,000.00",
DFID,DFID,14/04/2020,Computer software maintenance ,Business Solutions Division Level ,European Electronique Ltd ,200002-141 ,"14,940.00",
DFID,DFID,27/04/2020,Medical/Health Services ,East and Central Africa ,Strategis Insurance Tanzania Limited ,101634-101 ,"41,316.03",Medical/Health Services 
DFID,DFID,15/04/2020,Project delivery costs – supplier services ,West and Southern Africa ,Eco Dev360 International Limited ,300338-104 ,"5,414.87",
DFID,DFID,30/04/2020,Secure Staff Accommodation ,Central Department Division ,Recipient name withheld ,100279-102 ,"4,849.19",
DFID,DFID,14/04/2020,Secure Staff Accommodation ,Central Department Division ,Recipient name withheld ,100279-103 ,"3,489.00",
DFID,DFID,21/04/2020,Secure Staff Accommodation ,East and Central Africa ,Recipient name withheld ,101630-101 ,"3,489.00",
DFID,DFID,21/04/2020,Secure Staff Accommodation ,East and Central Africa ,Recipient name withheld ,101630-101 ,"3,489.00",
DFID,DFID,21/04/2020,Secure Staff Accommodation ,East and Central Africa ,Recipient name withheld ,300650-106 ,"3,489.00",
DFID,DFID,06/04/2020,Air fares ,Central Department Division ,Recipient name withheld ,100279-104 ,"2,193.28",
DFID,DFID,26/04/2020,Secure Staff Accommodation ,West and Southern Africa ,Recipient name withheld ,101622-105 ,"1,400.00",
DFID,DFID,26/04/2020,Secure Staff Accommodation ,West and Southern Africa ,Recipient name withheld ,101622-105 ,"1,400.00",
DFID,DFID,01/04/2020,Secure Staff Accommodation ,East and Central Africa ,Recipient name withheld ,101635-101 ,"5,000.00",
DFID,DFID,27/04/2020,Secure Staff Accommodation ,Central Department Division ,Recipient name withheld ,100279-102 ,930.86,
DFID,DFID,27/04/2020,Secure Staff Accommodation ,Central Department Division ,Recipient name withheld ,100279-102 ,"1,610.00",
DFID,DFID,27/04/2020,Air fares ,East and Central Africa ,Recipient name withheld ,101634-101 ,"3,207.67",
DFID,DFID,10/04/2020,Secure Staff Accommodation ,Central Department Division ,Recipient name withheld ,100279-104 ,"2,500.00",
DFID,DFID,15/04/2020,Hotels - Accommodation only ,Asia  Caribbean and Overseas Territories ,Recipient name withheld ,101603-103 ,"2,202.06",
DFID,DFID,03/04/2020,Air fares ,Central Department Division ,Recipient name withheld ,100279-103 ,"1,833.40",
DFID,DFID,06/04/2020,Secure Staff Accommodation ,Central Department Division ,Recipient name withheld ,100279-103 ,"3,138.72",
DFID,DFID,16/04/2020,Secure Staff Accommodation ,Policy Division ,Recipient name withheld ,204766-105 ,"4,111.66",
DFID,DFID,13/04/2020,Secure Staff Accommodation ,Central Department Division ,Recipient name withheld ,100279-104 ,"1,960.00",
DFID,DFID,22/04/2020,Hotels - Accommodation only ,Central Department Division ,Recipient name withheld ,100279-104 ,"4,511.71",
DFID,DFID,07/04/2020,Secure Staff Accommodation ,West and Southern Africa ,Recipient name withheld ,101618-101 ,"1,262.00",
DFID,DFID,07/04/2020,Secure Staff Accommodation ,West and Southern Africa ,Recipient name withheld ,101618-101 ,"1,138.00",
DFID,DFID,17/04/2020,Secure Staff Accommodation ,East and Central Africa ,Recipient name withheld ,101635-101 ,"5,324.49",
DFID,DFID,17/04/2020,House rentals ,East and Central Africa ,Recipient name withheld ,101634-101 ,"6,417.00",
DFID,DFID,17/04/2020,House rentals ,East and Central Africa ,Recipient name withheld ,101634-101 ,"5,992.65",
DFID,DFID,13/04/2020,Secure Staff Accommodation ,Central Department Division ,Recipient name withheld ,100279-104 ,"1,100.00",
DFID,DFID,13/04/2020,Hotels - Accommodation only ,Asia  Caribbean and Overseas Territories ,Recipient name withheld ,101603-103 ,"6,600.00",
DFID,DFID,27/04/2020,Secure Staff Accommodation ,Central Department Division ,Recipient name withheld ,100279-104 ,"4,032.00",
DFID,DFID,27/04/2020,Secure Staff Accommodation ,East and Central Africa ,Recipient name withheld ,101634-101 ,"2,425.00",
DFID,DFID,10/04/2020,Secure Staff Accommodation ,Central Department Division ,Recipient name withheld ,100279-104 ,"1,133.43",
DFID,DFID,08/04/2020,Secure Staff Accommodation ,Central Department Division ,Recipient name withheld ,100279-104 ,"5,669.12",
DFID,DFID,17/04/2020,Hotels - Accommodation only ,West and Southern Africa ,Recipient name withheld ,101618-101 ,"1,335.04",
DFID,DFID,22/04/2020,Secure Staff Accommodation ,Central Department Division ,Recipient name withheld ,100279-104 ,"2,535.00",
DFID,DFID,22/04/2020,Secure Staff Accommodation ,West and Southern Africa ,Recipient name withheld ,101620-101 ,595.00,
DFID,DFID,09/04/2020,Secure Staff Accommodation ,Central Department Division ,Recipient name withheld ,100279-102 ,"2,372.08",
DFID,DFID,09/04/2020,Other passenger transport ,Central Department Division ,Recipient name withheld ,100279-102 ,711.34,
DFID,DFID,20/04/2020,Air fares ,Central Department Division ,Recipient name withheld ,100279-104 ,"1,982.83",
DFID,DFID,15/04/2020,Secure Staff Accommodation ,Central Department Division ,Recipient name withheld ,100279-104 ,"1,828.96",
DFID,DFID,13/04/2020,House rentals ,Central Department Division ,Recipient name withheld ,100279-103 ,"6,022.50",
DFID,DFID,07/04/2020,Secure Staff Accommodation ,West and Southern Africa ,Recipient name withheld ,101622-106 ,"2,172.95",
DFID,DFID,14/04/2020,Hotels - Accommodation only ,Asia  Caribbean and Overseas Territories ,Recipient name withheld ,101601-110 ,"1,302.37",
DFID,DFID,01/04/2020,Secure Staff Accommodation ,Central Department Division ,Recipient name withheld ,100279-104 ,"2,166.77",
DFID,DFID,27/04/2020,Secure Staff Accommodation ,East and Central Africa ,Recipient name withheld ,101616-101 ,"1,048.44",
DFID,DFID,27/04/2020,Secure Staff Accommodation ,East and Central Africa ,Recipient name withheld ,101630-101 ,"1,048.44",
DFID,DFID,03/04/2020,Air fares ,Central Department Division ,Recipient name withheld ,100279-103 ,"2,609.96",
DFID,DFID,03/04/2020,Air fares ,Central Department Division ,Recipient name withheld ,100279-103 ,"2,394.00",
DFID,DFID,27/04/2020,Hotels - Accommodation only ,Central Department Division ,Recipient name withheld ,100279-103 ,"4,266.70",
DFID,DFID,27/04/2020,Hotels - Accommodation only ,Central Department Division ,Recipient name withheld ,100279-103 ,"5,228.94",
DFID,DFID,08/04/2020,Secure Staff Accommodation ,Central Department Division ,Recipient name withheld ,100279-104 ,"3,360.87",
DFID,DFID,08/04/2020,Secure Staff Accommodation ,Central Department Division ,Recipient name withheld ,100279-104 ,"2,400.00",
DFID,DFID,28/04/2020,Secure Staff Accommodation ,East and Central Africa ,Recipient name withheld ,101616-101 ,"2,000.00",
DFID,DFID,22/04/2020,Secure Staff Accommodation ,East and Central Africa ,Recipient name withheld ,101616-101 ,"2,034.00",
DFID,DFID,02/04/2020,Secure Staff Accommodation ,Central Department Division ,Recipient name withheld ,100279-103 ,"1,800.00",
DFID,DFID,27/04/2020,Secure Staff Accommodation ,West and Southern Africa ,Recipient name withheld ,101618-101 ,"1,800.00",
DFID,DFID,10/04/2020,Secure Staff Accommodation ,Central Department Division ,Recipient name withheld ,100279-104 ,"1,275.32",
DFID,DFID,10/04/2020,Secure Staff Accommodation ,Central Department Division ,Recipient name withheld ,100279-104 ,"1,300.00",
DFID,DFID,08/04/2020,Secure Staff Accommodation ,Central Department Division ,Recipient name withheld ,100279-104 ,"5,307.12",
DFID,DFID,20/04/2020,Secure Staff Accommodation ,East and Central Africa ,Recipient name withheld ,300230-108 ,"4,361.00",
DFID,DFID,27/04/2020,Secure Staff Accommodation ,Asia  Caribbean and Overseas Territories ,Recipient name withheld ,101605-101 ,822.82,
DFID,DFID,27/04/2020,Secure Staff Accommodation ,Asia  Caribbean and Overseas Territories ,Recipient name withheld ,101605-101 ,"2,680.00",
DFID,DFID,01/04/2020,Air fares ,Asia  Caribbean and Overseas Territories ,Recipient name withheld ,101605-101 ,714.48,
DFID,DFID,01/04/2020,Secure Staff Accommodation ,Asia  Caribbean and Overseas Territories ,Recipient name withheld ,101605-101 ,"3,643.92",
DFID,DFID,11/04/2020,House rentals ,East and Central Africa ,Recipient name withheld ,101630-101 ,"8,240.89",
